{"text_format":"1","workbook":"xlsx","n_sheets":2,"sheets":["Identificación de Riesgos","Mapa de Riesgos Integrado"],"not_rendered":{"charts":0,"images":2,"macros":1,"external_links":0,"defined_names":0,"comments":2,"pivot_tables":0},"unopened":[],"bounds":{"document_bytes":16777216,"sheet_cells":100000,"rows_first":2000,"rows_last":500,"rows_between":2000,"halvings":0,"cell_chars":16384,"cell_head_chars":4096},"cells_cut":0,"cells_raw":0,"read":"whole","date_system":"1900"}

{"sheet":"Identificación de Riesgos","index":0,"n_rows":148,"n_cols":14,"rows_kept":148,"cut":false,"hidden":false,"merged":[[10,5,12,5],[1,1,1,2],[1,3,1,5],[1,6,1,9],[1,10,1,13],[3,1,12,1],[3,2,12,2],[4,3,6,3],[4,4,6,4],[8,3,12,3],[8,4,12,4]]}
[]
[null,"IDENTIFICACIÓN DEL PROCESO",null,"CONTEXTO ",null,null,"IDENTIFICACIÓN DE FACTORES DE RIESGO",null,null,null,"EVALUACIÓN PRELIMINAR"]
[null,"Proceso ","Objetivo","Contexto Interno \n(Fortalezas o Debilidades relevantes para el proceso)","Contexto Externo \n(Oportunidades o Amenazas relevantes para el proceso)","Contexto  del proceso","1. Qué puede afectar el cumplimiento del objetivo del proceso?","2. Cómo puede suceder?","3. Cuándo puede suceder?","4.Qué consecuencias tendría su materialización?","Acción u Omisión ","Uso del Poder","Desviación de la Gestión de lo público","Beneficio particular"]
[null,"Procesos Judiciales y Acciones Constitucionales",{"$f":"IF(B4=\"Ninguno\",\"Seleccione un Proceso\",IF($B$4=C127,E127,IF($B$4=C128,E128,IF($B$4=C129,E129,IF($B$4=C130,E130,IF($B$4=C131,E131,IF($B$4=C132,E132,IF($B$4=C133,E133,IF($B$4=C134,E134,IF($B$4=C135,E135,IF($B$4=C136,E136,IF($B$4=C137,E137,IF($B$4=C138,E138,IF($B$4=C139,E139,IF($B$4=C140,E140,IF($B$4=C141,E141,IF($B$4=C142,E142,IF($B$4=C143,E143,IF($B$4=C144,E144,IF($B$4=C145,E145,IF($B$4=C146,E146,IF($B$4=C147,E147))))))))))))))))))))))","v":"Asesorar y representar en los asuntos relacionados con procesos judicionales, extrajudiciales y administrativos, y adelantar el cobro oportuno por jurisdicción coactiva de las acreencias a favor del Ministerio y de FONVIVIENDA."},"FORTALEZAS:","OPORTUNIDADES:","Alcance:","Inadecuada defensa judicial que beneficie a terceros ","Inadecuada defensa técnica \n\nContestar con normas desactualizadas \n\nInsuficientes controles de vencimiento de términos por la dependencia \n\nOfrecimiento de beneficios o coaación por parte de terceros ","Cada vez que se ejerza la defensa jurídica","Pérdida del proceso\n\nDaño antijurídico","X","X","X","X"]
[null,null,null," - Personal  calificado \ny competente para el desempeño de las funciones\n- Herramientas tecnológicas útiles \n- Mejoramiento de programas y proyectos basados en casos exitosos","Posicionamiento ministerial sectorial.\nExcelentes relaciones con públicos externos.",{"$f":"IF(B4=\"Ninguno\",\"Seleccione un Proceso\",IF($B$4=C127,F127,IF($B$4=C128,F128,IF($B$4=C129,F129,IF($B$4=C130,F130,IF($B$4=C131,F131,IF($B$4=C132,F132,IF($B$4=C133,F133,IF($B$4=C134,F134,IF($B$4=C135,F135,IF($B$4=C136,F136,IF($B$4=C137,F137,IF($B$4=C138,F138,IF($B$4=C139,F139,IF($B$4=C140,F140,IF($B$4=C141,F141,IF($B$4=C142,F142,IF($B$4=C143,F143,IF($B$4=C144,F144,IF($B$4=C145,F145,IF($B$4=C146,F146,IF($B$4=C147,F147))))))))))))))))))))))","v":"Inicia con la conciliación o notificación de la demanda, comunicación de la acción de tutela y los documentos que soporten el cobro de la obligación, continúa con el debido proceso judicial (representación judicial, atención de tutela, conciliaciones o cobro coactivo) y termina con el acuerdo conciliatorio, la expedición del fallo definitivo y comunicación al responsable del cumplimiento del mismo."},"Inoportunidad en la representación judicial o en las actuaciones procesales","Por que el grupo de atención a usuario no traslade a tiempo las Tutelas , o que por equivocación la traslade a otra dependencia diferente a la Oficina Asesora Jurídica.","No ocurre con frecuencia, salvo cuando el Grupo de Atención al Usuarios no cuenta con el personal suficiente para efectuar el traslado a las dependencias.","Que se responden en forma extemporánea.\n\nSanciones pecunarias\n\nInvestigación disciplinaria","X",null,null,"X"]
[null,null,null,null,null,"Responsable ","Respuesta inadecuada a los requerimientos judiciales","Desconocimiento normativo o contestar\n con normas desactualizadas.\n\nPor que existan cambio normativos,\n cambio de legislación.","Cada vez que la norma cambie, es dinámico","Sanciones pecuniarias\n\n","X",null,null,"X"]
[null,null,null,null,null,"Jefe Oficina Asesora Jurídica -\n Coordinador Grupo de Procesos Judiciales \ny de Acciones Constitucionales.","Prescripción de téminos en cobro judicial","Procesos con entrega al Ministerio del PAR INURBE con fechas próximas a prescibir o prescritos\n\n","En la entrega o acta de terminación del contrato de fiducia de los procesos de cobro coactivo","Pérdida de dinero","X",null,null,"X"]
[null,null,null,"DEBILIDADES:","AMENAZAS:","Descripción del Proceso e interrelación con otros Procesos","Factor de Riesgo 5","Causas FR5","Frecuencia FR5","Efectos  FR5"]
[null,null,null," Alta rotación de Personal especialmente contratista.\n- Planta de Personal insuficiente","Dependencia de otras entidades\nDéficit fiscal","Ver Caracterización del Proceso","Factor de Riesgo 6","Causas FR6","Frecuencia FR6","Efectos  FR6"]
[null,null,null,null,null,"Procedimientos","Factor de Riesgo 7","Causas FR7","Frecuencia FR7","Efectos  FR7"]
[null,null,null,null,null,"….","Factor de Riesgo 8","Causas FR8","Frecuencia FR8","Efectos  FR8"]
[null,null,null,null,null,null,"Factor de Riesgo 9","Causas FR9","Frecuencia FR9","Efectos  FR9"]
[null,null,null,null,null,null,"Factor de Riesgo 10","Causas FR10","Frecuencia FR10","Efectos  FR10"]
[]
[null,null,null,"FORTALEZAS MVCT","OPORTUNIDADES MVCT"]
[null,null,null,"Consejo directivo comprometido","Acceso a la oferta de cooperación internacional: Financiera, Técnica, Conocimientos y recursos para el cumplimiento de las metas."]
[null,null,null,"Personal comprometido, calificado y competente para el desempeño de las funciones","Alianzas estratégicas con otras Entidades"]
[null,null,null,"Herramientas tecnológicas útiles ","Asociaciones público-privadas dan oportunidades para el desarrollo del sector."]
[null,null,null,"Alianzas estratégicas con sus grupos de interés","Consolidación de la conectividad entre los entes territoriales y MVCT"]
[null,null,null,"Plataforma estratégica consolidada","Entrada al país de la Organización para la Cooperación y el Desarrollo Económico"]
[null,null,null,"Imagen institucional favorable ","Excelentes relaciones con públicos externos"]
[null,null,null,"Líder en promoción de capacitación y asistencia técnica a entes territoriales","Objetivos de desarrollo sostenible abren oportunidades para hacer sinergias."]
[null,null,null,"Cumplimiento de lineamientos estratégicos","Posicionamiento ministerial sectorial."]
[null,null,null,"Líderes en formulación e instrumentación normativa","Promoción de nuevos mercados (regionalización, aprovechamiento)"]
[null,null,null,"Existencia de alternativas de flexibilidad laboral como tele-trabajo"]
[null,null,null,"Cobertura en temas de vivienda, agua potable y desarrollo urbano"]
[null,null,null,"Mejoramiento de programas y proyectos basados en casos exitosos"]
[]
[null,null,null,"DEBILIDADES MVCT","AMENAZAS MVCT"]
[null,null,null,"Alta rotación de personal especialmente contratista ","Ataques terrorista a los sistemas de acueducto, alcantarillado y aseo"]
[null,null,null,"Ausencia y debilidad de un sistema de la información integrado (herramientas dispersas)","Bajo posicionamiento del sector frente a otros servicios y sectores"]
[null,null,null,"Déficit en Cobertura de vivienda en los territorios y departamentos del país.","Asistencialismo  afecta Políticas estructurales de Estado"]
[null,null,null,"Insuficiencia de personal para los retos estratégicos del Ministerio","Cambio climático"]
[null,null,null,"Falencia en la comunicación","Cambio de gobierno, políticas y programas"]
[null,null,null,"Debilitamiento en la cultura organizacional y clima organizacional","Dependencia de otras entidades"]
[null,null,null,"Falta de empoderamiento del Sistema de Gestión-Enfoque por procesos","Desaceleración en la implementación de la política de vivienda en periodos de cambio o transiciones de gobierno"]
[null,null,null,"Dispersión física de sedes","Déficit fiscal"]
[null,null,null,"Debilitamiento en el funcionamiento de la estructura organizacional","Desconocimiento normativo y de programas por parte de los diferentes públicos"]
[null,null,null,"Capacitación Insuficiente para los contratistas","Economía mundial"]
[null,null,null,"Recursos insuficientes","Falta de control y vigilancia por entes regulatorios"]
[null,null,null,"Planta de personal insuficiente ","Posibilidad de eliminación de incentivos tributarios con la expedición de la reforma tributaria."]
[null,null,null,"Resistencia a cambios para mejorar","Invasión de competencias por parte de otras entidades del sector nacional"]
[null,null,null,"Políticas de gobierno que dependen del gobierno de turno."]
[null,null,null,"Tramites ineficientes y procesos complejos (Tramitología)"]
[null,null,null,"Corrupción"]
[]
[]
[]
[]
[]
[]
[]
[]
[]
[]
[]
[]
[]
[]
[]
[]
[]
[]
[]
[]
[]
[]
[]
[]
[]
[]
[]
[]
[]
[]
[]
[]
[]
[]
[]
[]
[]
[]
[]
[]
[]
[]
[]
[]
[]
[]
[]
[]
[]
[]
[]
[]
[]
[]
[]
[]
[]
[]
[]
[]
[]
[]
[]
[]
[]
[]
[]
[]
[]
[]
[]
[]
[]
[]
[]
[]
[]
[null,"OBJETIVOS Y ALCANCES DE PROCESOS"]
[null,"MINISTERIO DE VIVIENDA, CIUDAD Y TERRITORIO"]
[]
[null,"No.","PROCESO","TIPO","OBJETIVO","ALCANCE"]
[null,1,"Planeación Estratégica y Gestión de Recursos Financieros","Estratégico","Realizar la planeación, seguimiento y evaluación estratégica y financiera del Sector y del Ministerio, en el corto, mediano y largo plazo para dar cumplimiento al Plan Nacional de Desarrollo y la misión institucional.","Inicia con la identificación del contexto sectorial e institucional y las metas y compromisos definidos en el Plan Nacional de Desarrollo de acuerdo con el contexto estratégico sectorial para la construcción del PES y del PEI, continúa con la gestión de recursos de funcionamiento y de proyectos de inversión hasta el seguimiento y evaluación de resultados."]
[null,2,"Gestión de Proyectos de Tecnologías de la Información","Estratégico","Formular e implementar el Plan Estratégico de las Tecnologías de la Información y las Comunicaciones en el Ministerio de Vivienda, Ciudad y Territorio, mediante proyectos de tecnologia de información que  faciliten a los usuarios sistemas de información adecuados para contribuir al cumplimiento de los objetivos de la Entidad.","Inicia con la formulación de los elementos del Plan Estratégico de las Tecnologías de la Información y las Comunicaciones (PETIC), continúa con la respectiva implementación y seguimiento de sus resultados y termina con la entrega del proyecto de Tecnologías de información a los usuarios y al área encargada de su administración y soporte."]
[null,3,"Administración del Sistema Integrado de Gestión","Estratégico","Coordinar la planeación, implementación y seguimiento a la mejora del Sistema Integrado de Gestión del Ministerio, en cumplimiento de los objetivos institucionales.","Inicia con la planeación del Sistema Integrado de Gestión de acuerdo con los referenciales aplicables, continúa con: administración de la documentación, administración de indicadores de gestión, administración de riesgos y orientación para la toma de acciones correctivas y preventivas por procesos, y termina con el informe a la Alta Dirección conducente a la mejora continua."]
[null,4,"Gestión de Comunicaciones Internas y Externas","Estratégico","Dar a conocer a la ciudadanía, a las partes interesadas y a los servidores públicos, mediante canales y procedimientos efectivos, las políticas, programas, planes y actuaciones del Ministerio  para contribuir a la construcción de una imagen institucional favorable en la opinión pública , a través de la divulgación de información veraz, suficiente y oportuna sobre la gestión institucional.","Inicia con la identificación de las necesidades de divulgar la gestión del Ministerio, mediante la administración del Plan de comunicaciones interno y externo y termina con el monitoreo de los resultados obtenidos para generar acciones de mejora."]
[null,5,"Formulación de Políticas e Instrumentación Normativa ","Misional","Formular la política pública de vivienda, agua potable, saneamiento básico  y desarrollo urbano y territorial, así como elaborar los instrumentos normativos que la desarrollen, de acuerdo con las necesidades del país contempladas en el Plan Nacional de Desarrollo, los compromisos internacionales suscritos y la normatividad vigente, con el propósito de contribuir al mejoramiento de  la calidad de vida de la población Colombiana.","Inicia con la identificación de la necesidad de formulación de políticas y/o elaboración de instrumentos normativos, continúa con su respectiva gestión y termina con la comunicación del documento de política o el instrumento normativo aprobado para su implementación.\nIncluye: Documentos de políticas, documentos CONPES e instrumentos normativos del sector."]
[null,6,"Promoción y Acompañamiento","Misional","Brindar información, orientación y/o asistencia técnica para la implementación de políticas, normativa, planes, programas y proyectos en materia de vivienda, agua potable, saneamiento básico  y desarrollo urbano y territorial  a los  beneficiarios, entidades territoriales, autoridades ambientales, empresas públicas y/o particulares con responsabilidad en la implementación.","Inicia con la identificación de la necesidad de brindar información, orientación, asistencia técnica y/o acompañamiento para la implementación de políticas, normativa, planes, programas y proyectos, continua con la ejecución de las actividades de promoción y acompañamiento y termina con la evaluación del servicio prestado según corresponda."]
[null,7,"Gestión del Subsidio","Misional","Administrar, asignar, distribuir y desembolsar los recursos destinados para Subsidios familiares de vivienda (SFV) en cumplimiento a la política de vivienda de interés social urbana.","Inicia con la apertura de las convocatorias para la postulación de los hogares aspirantes al subsidio familiar de vivienda de interés social urbana, de acuerdo al Cronograma de Asignaciones, continua con la  verificación, validación y calificación de la información reportada para la asignación del SFV y termina con los respectivos desembolsos."]
[null,8,"Gestión de Proyectos","Misional","Apoyar a las entidades territoriales y promotores en la gestión de proyectos  de desarrollo urbano y territorial, agua potable y saneamiento básico y vivienda, para contribuir al desarrollo de ciudades compactas y ambientalmente sostenibles.","Inicia con la identificación de las necesidades de las entidades territoriales o los promotores relacionados con los proyectos que requieren apoyo del MVCT, continua con la planificación para apoyar estas necesidades a través de la asistencia técnica en la estructuración o la evaluación de proyectos y/o la gestión de los recursos para su ejecución y/o el seguimiento al desarrollo de los proyectos según corresponda, y termina con la estructuración de proyectos o la evaluación de las operaciones urbanas integrales o la asignación y/o ejecución de los recursos a través de convenios de apoyo financiero o el seguimiento a los proyectos viabilizados o el certificado de existencia según aplique.\nIncluye proyectos de: \nMacroproyectos - operaciones urbanas integrales, Vivienda de interés social urbana, agua potable y saneamiento básico, vivienda de interés prioritario y desarrollo urbano y territorial."]
[null,9,"Titulación y Saneamiento Predial","Misional","Brindar asistencia técnica y jurídica a las entidades territoriales en titulación masiva de predios fiscales urbanos y ejecutar las actividades de saneamiento de predios de los extintos Instituto de Crédito Territorial - ICT e Instituto Nacional de Vivienda de Interés Social y Reforma Urbana - INURBE, con el fin de dar cumplimiento al Programa Nacional de Titulación -PNT- y a las obligaciones del Ministerio de Vivienda, Ciudad y Territorio -MVCT, en virtud de lo dispuesto en la normatividad vigente.","Inicia con la solicitud de las entidades territoriales para la asistencia técnica y jurídica en el proceso de cesión a título gratuito o con la identificación de los bienes inmuebles de propiedad de los extintos ICT-INURBE y de los gravámenes constituidos a favor de dichas entidades, continúa con la revisión técnica y/o jurídica de los bienes inmuebles y finaliza con la respuesta al peticionario, la expedición de actos administrativos y/o con el traslado del expediente al procedimiento o al área del MVCT que es competente para conocer el caso, según corresponda para bienes inmuebles de los extintos ICT-INURBE, y en el caso de predios fiscales urbanos finaliza con la verificación del registro del acto administrativo de cesión a título gratuito."]
[null,10,"Conceptos Jurídicos","Apoyo","Emitir conceptos jurídicos de forma oportuna y pertinente, apoyados en criterios legales vigentes en materia de vivienda, agua, saneamiento básico y desarrollo urbano para atender los requerimientos de los interesados, asi como las reclamaciones presentadas.","Inicia con la recepción de la solicitud del concepto jurídico o reclamación, continúa con el análisis del requerimiento de conformidad con los criterios legales vigentes, y termina con la entrega del mismo a la dependencia encargada del reparto en el Ministerio de Vivienda, Ciudad y Territorio."]
[null,11,"Procesos Judiciales y Acciones Constitucionales","Apoyo","Asesorar y representar en los asuntos relacionados con procesos judicionales, extrajudiciales y administrativos, y adelantar el cobro oportuno por jurisdicción coactiva de las acreencias a favor del Ministerio y de FONVIVIENDA.","Inicia con la conciliación o notificación de la demanda, comunicación de la acción de tutela y los documentos que soporten el cobro de la obligación, continúa con el debido proceso judicial (representación judicial, atención de tutela, conciliaciones o cobro coactivo) y termina con el acuerdo conciliatorio, la expedición del fallo definitivo y comunicación al responsable del cumplimiento del mismo."]
[null,12,"Gestión del Talento Humano","Apoyo","Administrar el talento humano mediante estrategias administrativas y operativas de selección, vinculación, capacitación, seguridad y salud en el trabajo para garantizar la competencia y el bienestar de los servidores públicos del Ministerio.","Inicia con la identificación de las necesidades  de personal, continua con la selección, vinculación, inducción, capacitación, actividades de bienestar, seguridad y salud en el trabajo y evaluación de desempeño, las cuales permiten la toma de acciones correspondientes al seguimiento de las estrategias planteadas y termina con el retiro del servicio del funcionario."]
[null,13,"Procesos Disciplinarios","Apoyo","Dar trámite oportuno a la acción disciplinaria en cumplimiento de la normatividad aplicable; investigando y adoptando las decisiones de sustanciación e interlocutorias en primera instancia, con ocasión del conocimiento de comportamientos constitutivos de faltas disciplinarias, realizados por servidores y ex servidores públicos del Ministerio de Vivienda, Ciudad y Territorio y el Fondo Nacional de Vivienda. Así mismo, realizar actividades de sensibilización, orientadas a garantizar el buen funcionamiento de la gestión pública y la prevención en la incursión de faltas disciplinarias.","Inicia con la recepción y posterior análisis de los hechos descritos en la queja, informe o de oficio, continúa con el impulso y agotamiento de las etapas procesales en primera instancia, definidas en la Ley disciplinaria vigente, hasta el decreto de la decisión que resuelve de fondo la situación jurídica avocada. De otro lado, se definen y ejecutan las actividades orientadas a prevenir la incursión de comportamientos constitutivos de faltas disciplinarias, con el fin de garantizar el correcto funcionamiento de la función pública."]
[null,14,"Gestión de Contratación","Apoyo","Contratar los bienes o servicios requeridos de acuerdo con la normatividad vigente aplicable, mediante contratación directa y procesos contractuales transparentes y ágiles, para el cumplimiento de los objetivos institucionales.","Inicia con la solicitud de necesidad de contratación, continúa con las etapas precontractual, contractual y post contractual y termina con la liquidación de los contratos y convenios, si aplica."]
[null,15,"Gestión, Soporte y Apoyo Informático","Apoyo","Brindar servicios tecnológicos y de comunicaciones mediante la implementación, mantenimiento y puesta en marcha de sistemas tecnológicos que aseguren la disponibilidad y accesibilidad de servicios que permitan interacción y la comunicación entre los ciudadanos y el Ministerio de Vivienda, Ciudad y Territorio.","Inicia con la identificación de la necesidad de soporte informático de acuerdo con los lineamientos del Plan Estratégico de TI, continúa con la atención y resolución de requerimientos y/o solicitudes y termina con la verificación de la disponibilidad de los recursos tecnológicos."]
[null,16,"Gestión de Recursos Físicos","Apoyo","Administrar y mantener de manera oportuna y adecuada los recursos físicos del Ministerio necesarios, para el cumplimiento de la misión institucional.","Inicia con la identificación de las necesidades de bienes muebles e inmuebles y servicios requeridos, la planificación de las actividades de mantenimiento según se requiera, continúa con la administración y mantenimiento de los bienes, prestación de los servicios, terminando con la actualización y control de la información de los activos."]
[null,17,"Gestión Documental","Apoyo","Establecer los mecanismos necesarios para el trámite oportuno y la organización adecuada de la documentación recibida y producida en el Ministerio, con el propósito de garantizar su conservación, acceso y disposición final, de acuerdo a las tablas de retención documental.","Inicia con la radicación de comunicaciones recibidas o generación de documentos oficiales y su distribución para el trámite respectivo, continúa con su consulta, conservación y custodia según corresponda, y termina con la disposición final de acuerdo con la Tabla de Retención Documental - TRD."]
[null,18,"Seguimiento y Control a la Ejecución del Recurso Financiero","Apoyo","Controlar y hacer seguimiento a los recursos financieros del Ministerio y FONVIVIENDA, que permita conocer en forma oportuna y veraz el nivel de ejecución presupuestal.","Inicia con el registro del decreto de liquidación del presupuesto para la vigencia en el SIIF, continúa con el seguimiento y control a la ejecución y sus modificaciones, y termina con la generación y presentación de los estados financieros."]
[null,19,"Saneamiento de activos de los extintos ICT INURBE  ","Apoyo","Realizar el saneamiento de bienes inmuebles activos que estuvieron a cargo del Instituto de Crédito Territorial-ICT, del INURBE, la UAE-ICT, del INURBE en Liquidación y del PAR INURBE en Liquidación, a través de la Subdirección de Servicios Administrativos del Ministerio de Vivienda, Ciudad y Territorio, según la normatividad vigente; así como de los bienes derivados del proceso de titulación y saneamiento predial, la resciliación de bienes sometidos a registro y la venta de los mismos para lograr la depuración de dichos activos.","Inicia con la información de la base de datos y Actas entregadas por el Consorcio PAR INURBE EN LIQUIDACIÓN, y sobre aquella allegada por solicitud de parte o de oficio, continúa con las actividades que permitan determinar el cumplimiento de los requisitos legales para finiquitar las actuaciones inconclusas y actuaciones nuevas en los procesos de saneamiento de bienes inmuebles activos que estuvieron a cargo de las entidades extintas, y finaliza con la expedición de actos administrativos, escrituras públicas, venta y/o su consecuente trámite legal o traslado del caso al área competente."]
[null,20,"Atención al Usuario y Atención Legislativa","Misional","Atender de manera oportuna y pertinente las necesidades de información presentadas por los usuarios y partes interesadas en trámites y temas legislativos competencia del Ministerio.","Inicia con la recepción de las diferentes comunicaciones y solicitudes de información, continúa con la atención del trámite o requerimiento y termina con la consolidación y envío de las respuestas a los usuarios y/o partes interesadas. \n\nIncluye: atención a los usuarios, partes interesadas y atención legislativa."]
[null,21,"Evaluación, Acompañamiento y Asesoría del Sistema de Control Interno","Evaluación","Asesorar, acompañar y evaluar de manera independiente la oportunidad, eficiencia y transparencia de los procesos y procedimientos del Ministerio, fomentando la cultura de autocontrol y agregando valor a las operaciones de la entidad en el  cumplimiento de los planes, programas, proyectos y objetivos institucionales.","Inicia con la planificación de las actividades de evaluación, acompañamiento, asesoría y fomento de la cultura del control en la entidad, continúa con la ejecución y seguimiento a las mismas, la presentación de los resultados de dichas actividades y termina con el seguimiento a los planes de mejoramiento.\n\nCubre:\nMinisterio de Vivienda, Ciudad y Territorio.\nFONVIVIENDA."]
[null,null,"Ninguno"]

{"sheet":"Mapa de Riesgos Integrado","index":1,"n_rows":916,"n_cols":67,"rows_kept":916,"cut":false,"hidden":false,"merged":[[884,2,884,4],[885,2,885,4],[885,5,886,5],[886,2,886,4],[870,7,870,11],[871,8,872,8],[871,9,872,9],[872,2,872,4],[873,2,873,4],[874,2,874,4],[874,5,875,5],[875,2,875,4],[877,1,877,2],[877,3,877,6],[877,8,877,9],[877,10,877,11],[878,7,878,11],[879,8,880,8],[879,9,880,9],[881,7,881,11],[882,8,883,8],[882,9,883,9],[883,2,883,4],[856,7,856,11],[857,8,858,8],[857,9,858,9],[859,7,859,11],[860,8,861,8],[860,9,861,9],[861,2,861,4],[862,2,862,4],[863,2,863,4],[863,5,864,5],[864,2,864,4],[866,1,866,2],[866,3,866,6],[866,8,866,9],[866,10,866,11],[867,7,867,11],[868,8,869,8],[868,9,869,9],[844,1,844,2],[844,3,844,6],[844,8,844,9],[844,10,844,11],[845,7,845,11],[846,8,847,8],[846,9,847,9],[848,7,848,11],[849,8,850,8],[849,9,850,9],[850,2,850,4],[851,2,851,4],[852,2,852,4],[852,5,853,5],[853,2,853,4],[855,1,855,2],[855,3,855,6],[855,8,855,9],[855,10,855,11],[829,2,829,4],[830,2,830,4],[830,5,831,5],[831,2,831,4],[833,1,833,2],[833,3,833,6],[833,8,833,9],[833,10,833,11],[834,7,834,11],[835,8,836,8],[835,9,836,9],[837,7,837,11],[838,8,839,8],[838,9,839,9],[839,2,839,4],[840,2,840,4],[841,2,841,4],[841,5,842,5],[842,2,842,4],[815,7,815,11],[816,8,817,8],[816,9,817,9],[817,2,817,4],[818,2,818,4],[819,2,819,4],[819,5,820,5],[820,2,820,4],[822,1,822,2],[822,3,822,6],[822,8,822,9],[822,10,822,11],[823,7,823,11],[824,8,825,8],[824,9,825,9],[826,7,826,11],[827,8,828,8],[827,9,828,9],[828,2,828,4],[801,7,801,11],[802,8,803,8],[802,9,803,9],[804,7,804,11],[805,8,806,8],[805,9,806,9],[806,2,806,4],[807,2,807,4],[808,2,808,4],[808,5,809,5],[809,2,809,4],[811,1,811,2],[811,3,811,6],[811,8,811,9],[811,10,811,11],[812,7,812,11],[813,8,814,8],[813,9,814,9],[789,1,789,2],[789,3,789,6],[789,8,789,9],[789,10,789,11],[790,7,790,11],[791,8,792,8],[791,9,792,9],[793,7,793,11],[794,8,795,8],[794,9,795,9],[795,2,795,4],[796,2,796,4],[797,2,797,4],[797,5,798,5],[798,2,798,4],[800,1,800,2],[800,3,800,6],[800,8,800,9],[800,10,800,11],[778,1,778,2],[778,3,778,6],[778,8,778,9],[778,10,778,11],[779,7,779,11],[780,8,781,8],[780,9,781,9],[782,7,782,11],[783,8,784,8],[783,9,784,9],[784,2,784,4],[785,2,785,4],[786,2,786,4],[786,5,787,5],[787,2,787,4],[5,5,22,5],[165,22,165,24],[159,22,159,24],[157,22,157,23],[157,24,157,25],[149,24,149,25],[142,22,142,24],[140,22,140,23],[140,24,140,25],[122,22,122,23],[122,24,122,25],[102,18,103,18],[102,19,103,19],[104,18,105,18],[104,19,105,19],[106,18,107,18],[106,19,107,19],[165,27,165,29],[165,32,165,34],[165,37,165,39],[166,22,166,24],[166,27,166,29],[166,32,166,34],[166,37,166,39],[163,22,163,24],[163,27,163,29],[163,32,163,34],[163,37,163,39],[164,22,164,24],[164,27,164,29],[164,32,164,34],[164,37,164,39],[161,22,161,24],[161,27,161,29],[161,32,161,34],[161,37,161,39],[162,22,162,24],[162,27,162,29],[162,32,162,34],[162,37,162,39],[159,27,159,29],[159,32,159,34],[159,37,159,39],[160,22,160,24],[160,27,160,29],[160,32,160,34],[156,34,156,35],[156,37,156,38],[156,39,156,40],[152,9,166,9],[152,10,166,10],[153,8,166,8],[149,20,166,20],[149,21,166,21],[155,24,155,25],[155,27,155,28],[155,29,155,30],[149,12,166,12],[149,13,166,13],[149,14,166,14],[149,17,166,17],[160,37,160,39],[157,37,157,38],[157,39,157,40],[158,22,158,23],[158,24,158,25],[158,27,158,28],[158,29,158,30],[158,32,158,33],[158,34,158,35],[158,37,158,38],[158,39,158,40],[157,27,157,28],[157,29,157,30],[157,32,157,33],[157,34,157,35],[149,50,166,50],[149,51,166,51],[149,52,166,52],[149,53,166,53],[150,22,154,23],[150,24,154,25],[150,27,154,28],[150,29,154,30],[150,32,154,33],[150,34,154,35],[149,44,166,44],[149,45,166,45],[149,46,150,46],[149,47,166,47],[149,48,166,48],[149,49,166,49],[151,46,166,46],[149,32,149,33],[149,34,149,35],[149,37,149,38],[149,39,149,40],[149,42,166,42],[149,43,166,43],[150,37,154,38],[150,39,154,40],[155,32,155,33],[155,34,155,35],[149,22,149,23],[149,27,149,28],[149,29,149,30],[155,22,155,23],[148,27,148,29],[148,32,148,34],[148,37,148,39],[149,6,166,6],[149,7,166,7],[149,8,151,8],[149,9,151,9],[149,10,151,10],[149,11,166,11],[146,27,146,29],[146,32,146,34],[146,37,146,39],[147,22,147,24],[147,27,147,29],[147,32,147,34],[147,37,147,39],[131,12,148,12],[131,13,148,13],[131,14,148,14],[131,17,148,17],[131,6,148,6],[131,7,148,7],[131,8,133,8],[131,9,133,9],[131,10,133,10],[155,37,155,38],[155,39,155,40],[156,22,156,23],[156,24,156,25],[156,27,156,28],[156,29,156,30],[156,32,156,33],[138,34,138,35],[138,37,138,38],[138,39,138,40],[131,20,148,20],[131,21,148,21],[137,24,137,25],[137,27,137,28],[137,29,137,30],[144,22,144,24],[144,27,144,29],[144,32,144,34],[144,37,144,39],[145,22,145,24],[145,27,145,29],[145,32,145,34],[145,37,145,39],[146,22,146,24],[142,32,142,34],[142,37,142,39],[143,22,143,24],[143,27,143,29],[143,32,143,34],[143,37,143,39],[140,37,140,38],[140,39,140,40],[141,22,141,24],[141,27,141,29],[141,32,141,34],[141,37,141,39],[131,50,148,50],[131,51,148,51],[131,52,148,52],[131,53,148,53],[132,22,136,23],[132,24,136,25],[132,27,136,28],[132,29,136,30],[132,32,136,33],[132,34,136,35],[131,44,148,44],[131,45,148,45],[131,46,132,46],[131,47,148,47],[131,48,148,48],[131,49,148,49],[133,46,148,46],[131,32,131,33],[131,34,131,35],[131,37,131,38],[131,39,131,40],[131,42,148,42],[131,43,148,43],[132,37,136,38],[132,39,136,40],[137,32,137,33],[137,34,137,35],[131,22,131,23],[131,24,131,25],[131,27,131,28],[135,8,148,8],[129,22,129,24],[129,27,129,29],[129,32,129,34],[129,37,129,39],[130,22,130,24],[130,27,130,29],[130,32,130,34],[130,37,130,39],[127,22,127,24],[127,27,127,29],[127,32,127,34],[127,37,127,39],[128,22,128,24],[128,27,128,29],[128,32,128,34],[128,37,128,39],[138,18,139,18],[138,19,139,19],[140,18,141,18],[140,19,141,19],[142,18,143,18],[142,19,143,19],[144,18,145,18],[144,19,145,19],[146,18,148,19],[139,32,139,33],[139,34,139,35],[139,37,139,38],[139,39,139,40],[142,27,142,29],[148,22,148,24],[131,11,148,11],[134,9,148,9],[134,10,148,10],[140,27,140,28],[140,29,140,30],[140,32,140,33],[140,34,140,35],[139,22,139,23],[139,24,139,25],[139,27,139,28],[139,29,139,30],[137,37,137,38],[137,39,137,40],[138,22,138,23],[138,24,138,25],[138,27,138,28],[138,29,138,30],[138,32,138,33],[131,29,131,30],[137,22,137,23],[123,22,123,24],[123,27,123,29],[123,32,123,34],[123,37,123,39],[124,22,124,24],[124,27,124,29],[124,32,124,34],[124,37,124,39],[121,37,121,38],[121,39,121,40],[122,27,122,28],[122,29,122,30],[122,32,122,33],[122,34,122,35],[122,37,122,38],[122,39,122,40],[121,22,121,23],[121,24,121,25],[121,27,121,28],[121,29,121,30],[121,32,121,33],[121,34,121,35],[113,42,130,42],[113,43,130,43],[114,37,118,38],[114,39,118,40],[119,32,119,33],[119,34,119,35],[113,22,113,23],[113,24,113,25],[113,27,113,28],[113,29,113,30],[119,22,119,23],[120,39,120,40],[116,9,130,9],[116,10,130,10],[117,8,130,8],[113,20,130,20],[113,21,130,21],[119,24,119,25],[119,27,119,28],[119,29,119,30],[113,12,130,12],[113,13,130,13],[113,14,130,14],[113,17,130,17],[125,22,125,24],[125,27,125,29],[125,32,125,34],[125,37,125,39],[126,22,126,24],[126,27,126,29],[126,32,126,34],[126,37,126,39],[95,10,97,10],[95,11,112,11],[119,37,119,38],[119,39,119,40],[120,22,120,23],[120,24,120,25],[120,27,120,28],[120,29,120,30],[120,32,120,33],[120,34,120,35],[120,37,120,38],[113,50,130,50],[113,51,130,51],[113,52,130,52],[113,53,130,53],[114,22,118,23],[114,24,118,25],[114,27,118,28],[114,29,118,30],[114,32,118,33],[114,34,118,35],[113,44,130,44],[113,45,130,45],[113,46,114,46],[113,47,130,47],[113,48,130,48],[113,49,130,49],[115,46,130,46],[113,32,113,33],[113,34,113,35],[113,37,113,38],[113,39,113,40],[104,39,104,40],[105,22,105,24],[105,27,105,29],[105,32,105,34],[105,37,105,39],[106,22,106,24],[106,27,106,29],[112,22,112,24],[112,27,112,29],[112,32,112,34],[112,37,112,39],[113,6,130,6],[113,7,130,7],[113,8,115,8],[113,9,115,9],[113,10,115,10],[113,11,130,11],[110,27,110,29],[110,32,110,34],[110,37,110,39],[111,22,111,24],[111,27,111,29],[111,32,111,34],[111,37,111,39],[95,12,112,12],[95,13,112,13],[95,14,112,14],[95,17,112,17],[95,6,112,6],[95,7,112,7],[95,8,97,8],[95,9,97,9],[103,29,103,30],[101,37,101,38],[101,39,101,40],[102,22,102,23],[102,24,102,25],[102,27,102,28],[102,29,102,30],[102,32,102,33],[102,34,102,35],[102,37,102,38],[102,39,102,40],[95,20,112,20],[95,21,112,21],[101,24,101,25],[101,27,101,28],[101,29,101,30],[108,22,108,24],[108,27,108,29],[108,32,108,34],[108,37,108,39],[109,22,109,24],[109,27,109,29],[109,32,109,34],[109,37,109,39],[110,22,110,24],[106,32,106,34],[106,37,106,39],[107,22,107,24],[107,27,107,29],[107,32,107,34],[107,37,107,39],[104,37,104,38],[95,50,112,50],[95,51,112,51],[95,52,112,52],[95,53,112,53],[96,22,100,23],[96,24,100,25],[96,27,100,28],[96,29,100,30],[96,32,100,33],[96,34,100,35],[95,44,112,44],[95,45,112,45],[95,46,96,46],[95,47,112,47],[95,48,112,48],[95,49,112,49],[97,46,112,46],[95,32,95,33],[95,34,95,35],[95,37,95,38],[95,39,95,40],[95,42,112,42],[95,43,112,43],[96,37,100,38],[96,39,100,40],[101,32,101,33],[101,34,101,35],[95,22,95,23],[95,24,95,25],[95,27,95,28],[95,29,95,30],[101,22,101,23],[98,9,112,9],[98,10,112,10],[99,8,112,8],[93,22,93,24],[93,27,93,29],[93,32,93,34],[93,37,93,39],[94,22,94,24],[94,27,94,29],[94,32,94,34],[94,37,94,39],[91,22,91,24],[91,27,91,29],[91,32,91,34],[91,37,91,39],[92,22,92,24],[92,27,92,29],[92,32,92,34],[92,37,92,39],[103,32,103,33],[103,34,103,35],[103,37,103,38],[103,39,103,40],[104,22,104,23],[104,24,104,25],[104,27,104,28],[104,29,104,30],[104,32,104,33],[104,34,104,35],[103,22,103,23],[103,24,103,25],[103,27,103,28],[87,37,87,39],[88,22,88,24],[88,27,88,29],[88,32,88,34],[88,37,88,39],[85,37,85,38],[85,39,85,40],[86,22,86,23],[86,24,86,25],[86,27,86,28],[86,29,86,30],[86,32,86,33],[86,34,86,35],[86,37,86,38],[86,39,86,40],[85,22,85,23],[85,24,85,25],[85,27,85,28],[85,29,85,30],[85,32,85,33],[85,34,85,35],[78,39,82,40],[83,32,83,33],[83,34,83,35],[77,22,77,23],[77,24,77,25],[77,27,77,28],[77,29,77,30],[83,22,83,23],[84,39,84,40],[80,9,94,9],[80,10,94,10],[81,8,94,8],[77,20,94,20],[77,21,94,21],[83,24,83,25],[83,27,83,28],[83,29,83,30],[77,12,94,12],[77,13,94,13],[77,14,94,14],[77,17,94,17],[89,22,89,24],[89,27,89,29],[89,32,89,34],[89,37,89,39],[90,22,90,24],[90,27,90,29],[90,32,90,34],[90,37,90,39],[87,22,87,24],[87,27,87,29],[87,32,87,34],[83,39,83,40],[84,22,84,23],[84,24,84,25],[84,27,84,28],[84,29,84,30],[84,32,84,33],[84,34,84,35],[84,37,84,38],[77,50,94,50],[77,51,94,51],[77,52,94,52],[77,53,94,53],[78,22,82,23],[78,24,82,25],[78,27,82,28],[78,29,82,30],[78,32,82,33],[78,34,82,35],[77,44,94,44],[77,45,94,45],[77,46,78,46],[77,47,94,47],[77,48,94,48],[77,49,94,49],[79,46,94,46],[77,32,77,33],[77,34,77,35],[77,37,77,38],[77,39,77,40],[77,42,94,42],[77,43,94,43],[78,37,82,38],[69,32,69,34],[69,37,69,39],[70,22,70,24],[70,27,70,29],[76,22,76,24],[76,27,76,29],[76,32,76,34],[76,37,76,39],[77,6,94,6],[77,7,94,7],[77,8,79,8],[77,9,79,9],[77,10,79,10],[77,11,94,11],[74,27,74,29],[74,32,74,34],[74,37,74,39],[75,22,75,24],[75,27,75,29],[75,32,75,34],[75,37,75,39],[59,12,76,12],[59,13,76,13],[59,14,76,14],[59,17,76,17],[59,6,76,6],[59,7,76,7],[59,8,61,8],[59,9,61,9],[59,10,61,10],[59,11,76,11],[83,37,83,38],[66,22,66,23],[66,24,66,25],[66,27,66,28],[66,29,66,30],[66,32,66,33],[66,34,66,35],[66,37,66,38],[66,39,66,40],[59,20,76,20],[59,21,76,21],[65,24,65,25],[65,27,65,28],[65,29,65,30],[72,22,72,24],[72,27,72,29],[72,32,72,34],[72,37,72,39],[73,22,73,24],[73,27,73,29],[73,32,73,34],[73,37,73,39],[74,22,74,24],[70,32,70,34],[70,37,70,39],[71,22,71,24],[71,27,71,29],[71,32,71,34],[71,37,71,39],[68,37,68,38],[68,39,68,40],[69,22,69,24],[69,27,69,29],[59,50,76,50],[59,51,76,51],[59,52,76,52],[59,53,76,53],[60,22,64,23],[60,24,64,25],[60,27,64,28],[60,29,64,30],[60,32,64,33],[60,34,64,35],[59,44,76,44],[59,45,76,45],[59,46,60,46],[59,47,76,47],[59,48,76,48],[59,49,76,49],[61,46,76,46],[59,32,59,33],[59,34,59,35],[59,37,59,38],[59,39,59,40],[59,42,76,42],[59,43,76,43],[60,37,64,38],[60,39,64,40],[65,32,65,33],[65,34,65,35],[59,22,59,23],[59,24,59,25],[59,27,59,28],[59,29,59,30],[65,22,65,23],[62,9,76,9],[62,10,76,10],[63,8,76,8],[57,37,57,39],[58,37,58,39],[55,37,55,39],[56,37,56,39],[66,18,67,18],[66,19,67,19],[68,18,69,18],[68,19,69,19],[70,18,71,18],[70,19,71,19],[72,18,73,18],[72,19,73,19],[74,18,76,19],[67,32,67,33],[67,34,67,35],[67,37,67,38],[67,39,67,40],[68,22,68,23],[68,24,68,25],[68,27,68,28],[68,29,68,30],[68,32,68,33],[68,34,68,35],[67,22,67,23],[67,24,67,25],[67,27,67,28],[67,29,67,30],[65,37,65,38],[65,39,65,40],[44,9,58,9],[44,10,58,10],[50,37,50,38],[50,39,50,40],[43,18,44,18],[43,19,44,19],[45,18,47,18],[45,19,47,19],[48,18,49,18],[45,8,58,8],[41,20,58,20],[41,21,58,21],[41,12,58,12],[41,13,58,13],[41,14,58,14],[41,17,58,17],[53,37,53,39],[54,37,54,39],[51,37,51,39],[52,37,52,39],[49,37,49,38],[49,39,49,40],[54,22,54,24],[54,27,54,29],[54,32,54,34],[55,22,55,24],[55,27,55,29],[55,32,55,34],[56,22,56,24],[52,32,52,34],[53,22,53,24],[53,27,53,29],[41,6,58,6],[41,7,58,7],[41,8,43,8],[41,9,43,9],[41,10,43,10],[41,11,58,11],[56,27,56,29],[56,32,56,34],[57,22,57,24],[57,27,57,29],[57,32,57,34],[41,50,58,50],[41,51,58,51],[41,52,58,52],[41,53,58,53],[41,44,58,44],[41,45,58,45],[41,46,42,46],[41,47,58,47],[41,48,58,48],[41,49,58,49],[43,46,58,46],[41,32,41,33],[41,34,41,35],[41,37,41,38],[41,39,41,40],[41,42,58,42],[41,43,58,43],[42,37,46,38],[42,39,46,40],[41,22,41,23],[41,24,41,25],[53,32,53,34],[51,22,51,24],[51,27,51,29],[51,32,51,34],[52,22,52,24],[52,27,52,29],[58,22,58,24],[58,27,58,29],[58,32,58,34],[50,22,50,23],[50,24,50,25],[50,27,50,28],[50,29,50,30],[50,32,50,33],[50,34,50,35],[42,22,46,23],[42,24,46,25],[42,27,46,28],[42,29,46,30],[42,32,46,33],[42,34,46,35],[47,32,47,33],[47,34,47,35],[47,22,47,23],[49,22,49,23],[49,24,49,25],[49,27,49,28],[49,29,49,30],[48,22,48,23],[48,24,48,25],[48,27,48,28],[48,29,48,30],[47,24,47,25],[47,27,47,28],[47,29,47,30],[39,22,39,24],[39,27,39,29],[39,32,39,34],[39,37,39,39],[40,22,40,24],[40,27,40,29],[40,32,40,34],[40,37,40,39],[37,22,37,24],[37,27,37,29],[37,32,37,34],[37,37,37,39],[38,22,38,24],[38,27,38,29],[38,32,38,34],[38,37,38,39],[49,32,49,33],[49,34,49,35],[41,27,41,28],[41,29,41,30],[47,37,47,38],[47,39,47,40],[48,37,48,38],[48,39,48,40],[33,32,33,34],[33,37,33,39],[34,22,34,24],[34,27,34,29],[34,32,34,34],[34,37,34,39],[31,37,31,38],[31,39,31,40],[32,22,32,23],[32,24,32,25],[32,27,32,28],[32,29,32,30],[32,32,32,33],[32,34,32,35],[32,37,32,38],[32,39,32,40],[31,22,31,23],[31,24,31,25],[31,27,31,28],[31,29,31,30],[31,32,31,33],[31,34,31,35],[48,32,48,33],[48,34,48,35],[29,37,29,38],[29,39,29,40],[30,22,30,23],[30,24,30,25],[30,27,30,28],[30,29,30,30],[30,32,30,33],[30,34,30,35],[30,37,30,38],[30,39,30,40],[26,9,40,9],[26,10,40,10],[27,8,40,8],[23,20,40,20],[23,21,40,21],[29,24,29,25],[29,27,29,28],[29,29,29,30],[23,12,40,12],[23,13,40,13],[23,14,40,14],[23,17,40,17],[35,22,35,24],[35,27,35,29],[35,32,35,34],[35,37,35,39]],"merged_total":1338,"flags":["merged_cut"]}
[null,null,null,null,null,null,"MAPA DE RIESGOS INTEGRADO POR PROCESO DEL MINISTERIO DE VIVIENDA, CIUDAD Y TERRITORIO"]
[null,null,null,null,null,null,"Proceso","Objetivo del Proceso","IDENTIFICACIÓN DE RIESGOS",null,null,null,null,"ANÁLISIS DE RIESGO INHERENTE",null,null,null,null,null,null,null,null,"EVALUACIÓN DE CONTROLES",null,null,null,null,null,null,null,null,null,null,null,null,null,null,null,null,null,null,null,"RIESGO RESIDUAL",null,null,null,"ACCIONES DE TRATAMIENTO",null,null,"RECURSOS","INDICADOR","MONITOREO",null,null,"RESULTADO DEL MONITOREO"]
[null,null,null,null,null,null,null,null,null,null,null,null,null,"PROBABILIDAD",null,"IMPACTO EN RIESGOS DE CORRUPCIÓN",null,null,"IMPACTO EN RIESGOS DE GESTIÓN",null,null,"Zona de Riesgo Inherente",null,null,null,null,null,null,null,null,null,null,null,null,null,null,null,null,null,null,null,null,"Probabilidad","Impacto","Zona de Riesgo Residual","Tratamiento",null,null,null,null,null,"Periodicidad","Acciones de Monitoreo","Responsable","ENERO","FEBRERO ","MARZO ","ABRIL ","MAYO","JUNIO","JULIO","AGOSTO","SEPTIEMBRE","OCTUBRE","NOVIEMBRE","DICIEMBRE"]
[null,null,null,null,null,null,null,null,"Riesgo","Causas","Consecuencias","Tipo","Clase",null,null,"Preguntas para determinar el Impacto","Rta","Impacto","Temáticas para determinar el Impacto","Respuesta","Impacto",null,null,null,null,null,null,null,null,null,null,null,null,null,null,null,null,null,null,null,null,null,null,null,null,null,"Acciones Complementarias","Fecha","Registro",null,null,null,null,null,"Control 1: Para el primer ejercicio de control, que se refiere a la Revisión de los Procesos a Nivel Nacional, para este efecto en el mes de enero de 2017, no se contó con este control, por cuanto la revisión a nivel nacional la realiza una empresa externa, que se encarga de la vigilancia judicial de los proceso en todo el territorio y mientras se surtieron las etapas de la contratación no fue posible contar con este contar el contrato antes referido, no obstante lo anterior se aclara que la actividad judicial se comenzó a surtir a mediados de enero, puesto que antes la mayoría de despachos judiciales se encontraban en vacancia judicial.\n\nAdicional a esto en  la revisión de comisiones y verificación en el Ekogui; este control se realiza una vez se ejecuta la actividad (es decir, una vez el funcionario o contratista asiste a una comisión y se carga en el EKOGUI) o mensual cuando se exporta el archivo Excel para informarlo a la Subdirección de Finanzas y realizar la respectiva conciliación entre las 2 áreas. ","Control 1: Para el Primer control, la revisión de los procesos a nivel nacional se realizó de manera adecuada y en la totalidad de los procesos a nivel nacional, por la empresa ICARUS, encargada de la vigilancia Judicial. Los informes se presentan mensualmente, los cuales se cotejan e incorporan las novedades procesales, en la base de datos y se tramita la cuenta de cobro correspondiente.\n\nEn cuanto al tema de las comisiones, se realiza una vez se ejecuta la actividad (es decir, una vez el funcionario o contratista asiste a una comisión y se carga en el EKOGUI) o mensual cuando se exporta el archivo Excel para informarlo a la Subdirección de Finanzas y realizar la respectiva conciliación entre las 2 áreas. ","Control 1: Para el Primer control, la revisión de los procesos a nivel nacional se realizó de manera adecuada y en la totalidad de los procesos a nivel nacional, por la empresa ICARUS, encargada de la vigilancia Judicial. Los informes se presentan mensualmente, los cuales se cotejan e incorporan las novedades procesales, en la base de datos y se tramita la cuenta de cobro correspondiente.\n\nEn cuanto al tema de las comisiones, se realiza una vez se ejecuta la actividad (es decir, una vez el funcionario o contratista asiste a una comisión y se carga en el EKOGUI) o mensual cuando se exporta el archivo Excel para informarlo a la Subdirección de Finanzas y realizar la respectiva conciliación entre las 2 áreas. ","Control 1: Para el Primer control, la revisión de los procesos a nivel nacional se realizó de manera adecuada y en la totalidad de los procesos a nivel nacional, por la empresa ICARUS, encargada de la vigilancia Judicial. Los informes se presentan mensualmente, los cuales se cotejan e incorporan las novedades procesales, en la base de datos y se tramita la cuenta de cobro correspondiente.\n\nEn cuanto al tema de las comisiones, se realiza una vez se ejecuta la actividad (es decir, una vez el funcionario o contratista asiste a una comisión y se carga en el EKOGUI) o mensual cuando se exporta el archivo Excel para informarlo a la Subdirección de Finanzas y realizar la respectiva conciliación entre las 2 áreas. ","Control 1: Para el Primer control, la revisión de los procesos a nivel nacional se realizó de manera adecuada y en la totalidad de los procesos a nivel nacional, por la empresa ICARUS, encargada de la vigilancia Judicial. Los informes se presentan mensualmente, los cuales se cotejan e incorporan las novedades procesales, en la base de datos y se tramita la cuenta de cobro correspondiente.\n\nEn cuanto al tema de las comisiones, se realiza una vez se ejecuta la actividad (es decir, una vez el funcionario o contratista asiste a una comisión y se carga en el EKOGUI) o mensual cuando se exporta el archivo Excel para informarlo a la Subdirección de Finanzas y realizar la respectiva conciliación entre las 2 áreas. ","Control 1: Para el Primer control, la revisión de los procesos a nivel nacional se realizó de manera adecuada y en la totalidad de los procesos a nivel nacional, por la empresa ICARUS, encargada de la vigilancia Judicial. Los informes se presentan mensualmente, los cuales se cotejan e incorporan las novedades procesales, en la base de datos y se tramita la cuenta de cobro correspondiente.\n\nEn cuanto al tema de las comisiones, se realiza una vez se ejecuta la actividad (es decir, una vez el funcionario o contratista asiste a una comisión y se carga en el EKOGUI) o mensual cuando se exporta el archivo Excel para informarlo a la Subdirección de Finanzas y realizar la respectiva conciliación entre las 2 áreas. ","Control 1: Para el Primer control, la revisión de los procesos a nivel nacional se realizó de manera adecuada y en la totalidad de los procesos a nivel nacional, por la empresa ICARUS, encargada de la vigilancia Judicial. Los informes se presentan mensualmente, los cuales se cotejan e incorporan las novedades procesales, en la base de datos y se tramita la cuenta de cobro correspondiente.\n\nEn cuanto al tema de las comisiones, se realiza una vez se ejecuta la actividad (es decir, una vez el funcionario o contratista asiste a una comisión y se carga en el EKOGUI) o mensual cuando se exporta el archivo Excel para informarlo a la Subdirección de Finanzas y realizar la respectiva conciliación entre las 2 áreas. ","Control 1: Para el Primer control, la revisión de los procesos a nivel nacional se realizó de manera adecuada y en la totalidad de los procesos a nivel nacional, por la empresa ICARUS, encargada de la vigilancia Judicial. Los informes se presentan mensualmente, los cuales se cotejan e incorporan las novedades procesales, en la base de datos y se tramita la cuenta de cobro correspondiente.\n\nEn cuanto al tema de las comisiones, se realiza una vez se ejecuta la actividad (es decir, una vez el funcionario o contratista asiste a una comisión y se carga en el EKOGUI) o mensual cuando se exporta el archivo Excel para informarlo a la Subdirección de Finanzas y realizar la respectiva conciliación entre las 2 áreas. ","Control 1: Para el Primer control, la revisión de los procesos a nivel nacional se realizó de manera adecuada y en la totalidad de los procesos a nivel nacional, por la empresa ICARUS, encargada de la vigilancia Judicial. Los informes se presentan mensualmente, los cuales se cotejan e incorporan las novedades procesales, en la base de datos y se tramita la cuenta de cobro correspondiente.\n\nEn cuanto al tema de las comisiones, se realiza una vez se ejecuta la actividad (es decir, una vez el funcionario o contratista asiste a una comisión y se carga en el EKOGUI) o mensual cuando se exporta el archivo Excel para informarlo a la Subdirección de Finanzas y realizar la respectiva conciliación entre las 2 áreas. ","Control 1: Para el Primer control, la revisión de los procesos a nivel nacional se realizó de manera adecuada y en la totalidad de los procesos a nivel nacional, por la empresa ICARUS, encargada de la vigilancia Judicial. Los informes se presentan mensualmente, los cuales se cotejan e incorporan las novedades procesales, en la base de datos y se tramita la cuenta de cobro correspondiente.\n\nEn cuanto al tema de las comisiones, se realiza una vez se ejecuta la actividad (es decir, una vez el funcionario o contratista asiste a una comisión y se carga en el EKOGUI) o mensual cuando se exporta el archivo Excel para informarlo a la Subdirección de Finanzas y realizar la respectiva conciliación entre las 2 áreas. ","Control 1: Para el Primer control, la revisión de los procesos a nivel nacional se realizó de manera adecuada y en la totalidad de los procesos a nivel nacional, por la empresa ICARUS, encargada de la vigilancia Judicial. Los informes se presentan mensualmente, los cuales se cotejan e incorporan las novedades procesales, en la base de datos y se tramita la cuenta de cobro correspondiente.\n\nEn cuanto al tema de las comisiones, se realiza una vez se ejecuta la actividad (es decir, una vez el funcionario o contratista asiste a una comisión y se carga en el EKOGUI) o mensual cuando se exporta el archivo Excel para informarlo a la Subdirección de Finanzas y realizar la respectiva conciliación entre las 2 áreas. ","Control 1: Para el Primer control, la revisión de los procesos a nivel nacional se realizó de manera adecuada y en la totalidad de los procesos a nivel nacional, por la empresa ICARUS, encargada de la vigilancia Judicial. Los informes se presentan mensualmente, los cuales se cotejan e incorporan las novedades procesales, en la base de datos y se tramita la cuenta de cobro correspondiente.\n\nEn cuanto al tema de las comisiones, se realiza una vez se ejecuta la actividad (es decir, una vez el funcionario o contratista asiste a una comisión y se carga en el EKOGUI) o mensual cuando se exporta el archivo Excel para informarlo a la Subdirección de Finanzas y realizar la respectiva conciliación entre las 2 áreas. "]
[null,null,null,null,null,null,null,null,null,null,null,null,null,null,null,null,null,null,null,null,null,null,"Control 1. ",null,null,null,null,"Control 2. ",null,null,null,null,"Control 3. ",null,null,null,null,"Control 4. "]
[null,null,null,null,null,null,{"$f":"+'Identificación de Riesgos'!$B$4","v":"Procesos Judiciales y Acciones Constitucionales"},{"$f":"+'Identificación de Riesgos'!$C$4","v":"Asesorar y representar en los asuntos relacionados con procesos judicionales, extrajudiciales y administrativos, y adelantar el cobro oportuno por jurisdicción coactiva de las acreencias a favor del Ministerio y de FONVIVIENDA."},{"$f":"+'Identificación de Riesgos'!G4","v":"Inadecuada defensa judicial que beneficie a terceros "},{"$f":"+'Identificación de Riesgos'!H4","v":"Inadecuada defensa técnica \n\nContestar con normas desactualizadas \n\nInsuficientes controles de vencimiento de términos por la dependencia \n\nOfrecimiento de beneficios o coaación por parte de terceros "},{"$f":"+'Identificación de Riesgos'!J4","v":"Pérdida del proceso\n\nDaño antijurídico"},"Corrupción","Corrupción","El evento puede ocurrir solo en circunstancias excepcionales (poco comunes o anormales) / No se ha presentado en los últimos cinco (5) años.",{"$f":"+E642","v":"Rara vez"},"¿Afectar al grupo de funcionarios del proceso?","No",{"$f":"+E653","v":"Moderado"},"Afecta la ejecución presupuestal de la entidad","No Aplica",{"$f":"+E666","v":"No Aplica"},{"$f":"+E677","v":"Baja"},"DESCRIPCIÓN:",null,"ACCIONES DE CONTROL:",null,null,"DESCRIPCIÓN:",null,"ACCIONES DE CONTROL:",null,null,"DESCRIPCIÓN:",null,"ACCIONES DE CONTROL:",null,null,"DESCRIPCIÓN:",null,"ACCIONES DE CONTROL:",null,null,{"$f":"+E644","v":"Rara vez"},{"$f":"+E679","v":"Moderado"},{"$f":"+E680","v":"Baja"},{"$f":"+E681","v":"Evitar / Transferir"},{"$f":"IF(AT6=\"No Aplica\",\"No Aplica\",IF(AT6=\"Asumir\",\"No requiere Acciones Adicionales\",\"Debe definir Acciones Complementarias\"))","v":"Debe definir Acciones Complementarias"},"2017-12-31","Informes mensuales","Recursos Humanos, Técnicos y Financieros del MVCT","No. de veces en que se ejerce la defensa técnica judicial de manera inadecuada",{"$f":"+E682","v":"Monitoreo permanente y se deja registro mensual"},"Seguimiento a la operación del control",{"$f":"+E683","v":"Jefe Oficina Asesora Jurídica -\n Coordinador Grupo de Procesos Judiciales \ny de Acciones Constitucionales."}]
[null,null,null,null,null,null,null,null,null,null,null,null,null,null,null,"¿Afectar el cumplimiento de metas y objetivos de las dependencias?","No",null,"Pago de indemnizaciones por acciones legales que pueden afectar el presupuesto total de la entidad","No Aplica",null,null,"Hacer seguimiento a las actividades de los apoderados",null,"Revisión de procesos a nivel nacional \n\nRevisión a las comisiones y verificación en el EKOGUI"]
[null,null,null,null,null,null,null,null,null,null,null,null,null,null,null,"¿Afectar el cumplimiento de la misión de la entidad?","No",null,"Pago de sanciones económicas por incumplimiento de la normatividad  que pueden afectar el presupuesto total de la entidad","No Aplica",null,null,null,null,null,null,null,null,null,null,null,null,null,null,null,null,null,null,null,null,null,null,null,null,null,null,"Mantener las acciones de control "]
[null,null,null,null,null,null,null,null,"RIESGO No 1","Contestar con normas desactualizadas \n\nOfrecimiento de beneficios o coacción por parte de terceros","Pérdida del proceso\n\nDaño antijurídico",null,null,null,null,"¿Afectar el cumplimiento de la misión del sector al que pertenece la entidad?","No"]
[null,null,null,null,null,null,null,null,"Ejercer la defensa técnica judicial de manera inadecuada con el fin de favorecer a un tercero ",null,null,null,null,null,null,"¿Generar pérdida de confianza de la entidad, afectando su reputación?","No",null,"Interrupción de las operaciones de la Entidad","No Aplica"]
[null,null,null,null,null,null,null,null,null,null,null,null,null,null,null,"¿Generar pérdida de recursos económicos?","Si"]
[null,null,null,null,null,null,null,null,null,null,null,null,null,null,null,"¿Afectar la generación de productos o la prestación de servicios?","No",null,null,null,null,null,"Cargo: Responsable del Control",null,"Evidencia del Control",null,null,"Cargo: Responsable del Control",null,"Evidencia del Control",null,null,"Cargo: Responsable del Control",null,"Evidencia del Control",null,null,"Cargo: Responsable del Control",null,"Evidencia del Control"]
[null,null,null,null,null,null,null,null,null,null,null,null,null,null,null,"¿Da lugar al detrimento de calidad de vida de la comunidad por la pérdida del bien o servicios o los recursos públicos?","No",null,"Investigación, reclamación o sanción","No Aplica",null,null,"Coordinador Grupo de Seguimiento y Control ",null,"Informes mensuales"]
[null,null,null,null,null,null,null,null,null,null,null,null,null,null,null,"¿Generar pérdida de información de la entidad?","Si",null,null,null,null,null,"Naturaleza",null,"Periodicidad de aplicación",null,null,"Naturaleza",null,"Periodicidad de aplicación",null,null,"Naturaleza",null,"Periodicidad de aplicación",null,null,"Naturaleza",null,"Periodicidad de aplicación"]
[null,null,null,null,null,null,null,null,null,null,null,null,null,null,null,"¿Generar intervención de los órganos de control, de la fiscalía u otro Ente?","Si",null,"Información","No Aplica",null,null,"Preventivo",null,"Mensual",null,null,"No Aplica",null,"No Aplica",null,null,"No Aplica",null,"No Aplica",null,null,"No Aplica",null,"No Aplica"]
[null,null,null,null,null,null,null,null,null,null,null,null,null,null,null,"¿Dar lugar a procesos sancionatorios?","No",null,null,null,null,null,"Preguntas de Evaluación",null,null,{"$f":"+SUM(AA17:AA23)","v":85},null,"Preguntas de Evaluación",null,null,{"$f":"+SUM(AF17:AF23)","v":0},null,"Preguntas de Evaluación",null,null,{"$f":"+SUM(AK17:AK23)","v":0},null,"Preguntas de Evaluación",null,null,{"$f":"+SUM(AP17:AP23)","v":0}]
[null,null,null,null,null,null,null,null,null,null,null,null,null,null,null,"¿Dar lugar a procesos disciplinarios?","Si",null,"Imagen institucional afectada","No Aplica",null,null,"Existen manuales, instructivos o procedimientos para el manejo del control",null,null,"No",{"$f":"+IF(Z17=\"Si\",15,0)","v":0},"Existen manuales, instructivos o procedimientos para el manejo del control",null,null,"No Aplica",{"$f":"+IF(AE17=\"Si\",15,0)","v":0},"Existen manuales, instructivos o procedimientos para el manejo del control",null,null,"No Aplica",{"$f":"+IF(AJ17=\"Si\",15,0)","v":0},"Existen manuales, instructivos o procedimientos para el manejo del control",null,null,"No Aplica",{"$f":"+IF(AO17=\"Si\",15,0)","v":0}]
[null,null,null,null,null,null,null,null,null,null,null,null,null,null,null,"¿Dar lugar a procesos fiscales?","No",null,null,null,null,null,"Está definido el responsable de la ejecución del control y seguimiento",null,null,"Si",{"$f":"+IF(Z18=\"Si\",5,0)","v":5},"Está definido el responsable de la ejecución del control y seguimiento",null,null,"No Aplica",{"$f":"+IF(AE18=\"Si\",5,0)","v":0},"Está definido el responsable de la ejecución del control y seguimiento",null,null,"No Aplica",{"$f":"+IF(AJ18=\"Si\",5,0)","v":0},"Está definido el responsable de la ejecución del control y seguimiento",null,null,"No Aplica",{"$f":"+IF(AO18=\"Si\",5,0)","v":0}]
[null,null,null,null,null,null,null,null,null,null,null,null,null,null,null,"¿Generar pérdida de credibilidad de la entidad?","No",null,"Metas, objetivos y operaciones ","No Aplica",null,null,"El control es automático",null,null,"Si",{"$f":"+IF(Z19=\"Si\",15,0)","v":15},"El control es automático",null,null,"No Aplica",{"$f":"+IF(AE19=\"Si\",15,0)","v":0},"El control es automático",null,null,"No Aplica",{"$f":"+IF(AJ19=\"Si\",15,0)","v":0},"El control es automático",null,null,"No Aplica",{"$f":"+IF(AO19=\"Si\",15,0)","v":0}]
[null,null,null,null,null,null,null,null,null,null,null,null,null,null,null,"¿Generar pérdida de credibilidad del sector?","No",null,null,null,null,null,"El control es manual",null,null,"Si",{"$f":"+IF(Z20=\"Si\",10,0)","v":10},"El control es manual",null,null,"No Aplica",{"$f":"+IF(AE20=\"Si\",10,0)","v":0},"El control es manual",null,null,"No Aplica",{"$f":"+IF(AJ20=\"Si\",10,0)","v":0},"El control es manual",null,null,"No Aplica",{"$f":"+IF(AO20=\"Si\",10,0)","v":0}]
[null,null,null,null,null,null,null,null,null,null,null,null,null,null,null,"¿Ocasionar lesiones físicas o pérdida de vidas humanas? ","Si",null,null,null,null,null,"La frecuencia de ejecución del control y seguimiento es adecuada ",null,null,"Si",{"$f":"+IF(Z21=\"Si\",15,0)","v":15},"La frecuencia de ejecución del control y seguimiento es adecuada ",null,null,"No Aplica",{"$f":"+IF(AE21=\"Si\",15,0)","v":0},"La frecuencia de ejecución del control y seguimiento es adecuada ",null,null,"No Aplica",{"$f":"+IF(AJ21=\"Si\",15,0)","v":0},"La frecuencia de ejecución del control y seguimiento es adecuada ",null,null,"No Aplica",{"$f":"+IF(AO21=\"Si\",15,0)","v":0}]
[null,null,null,null,null,null,null,null,null,null,null,null,null,null,null,"¿Afectar la imagen regional?","No",null,null,null,null,null,"Se cuenta con evidencias de la ejecución y seguimiento del control",null,null,"Si",{"$f":"+IF(Z22=\"Si\",10,0)","v":10},"Se cuenta con evidencias de la ejecución y seguimiento del control",null,null,"No Aplica",{"$f":"+IF(AE22=\"Si\",10,0)","v":0},"Se cuenta con evidencias de la ejecución y seguimiento del control",null,null,"No Aplica",{"$f":"+IF(AJ22=\"Si\",10,0)","v":0},"Se cuenta con evidencias de la ejecución y seguimiento del control",null,null,"No Aplica",{"$f":"+IF(AO22=\"Si\",10,0)","v":0}]
[null,null,null,null,null,null,null,null,null,null,null,null,null,null,null,"¿Afectar la imagen nacional?","No",null,null,null,null,null,"En el tiempo que lleva la herramienta ha demostrado ser efectiva",null,null,"Si",{"$f":"+IF(Z23=\"Si\",30,0)","v":30},"En el tiempo que lleva la herramienta ha demostrado ser efectiva",null,null,"No Aplica",{"$f":"+IF(AE23=\"Si\",30,0)","v":0},"En el tiempo que lleva la herramienta ha demostrado ser efectiva",null,null,"No Aplica",{"$f":"+IF(AJ23=\"Si\",30,0)","v":0},"En el tiempo que lleva la herramienta ha demostrado ser efectiva",null,null,"No Aplica",{"$f":"+IF(AO23=\"Si\",30,0)","v":0}]
[null,null,null,null,null,null,{"$f":"+'Identificación de Riesgos'!$B$4","v":"Procesos Judiciales y Acciones Constitucionales"},{"$f":"+'Identificación de Riesgos'!$C$4","v":"Asesorar y representar en los asuntos relacionados con procesos judicionales, extrajudiciales y administrativos, y adelantar el cobro oportuno por jurisdicción coactiva de las acreencias a favor del Ministerio y de FONVIVIENDA."},{"$f":"+'Identificación de Riesgos'!G5","v":"Inoportunidad en la representación judicial o en las actuaciones procesales"},{"$f":"+'Identificación de Riesgos'!H5","v":"Por que el grupo de atención a usuario no traslade a tiempo las Tutelas , o que por equivocación la traslade a otra dependencia diferente a la Oficina Asesora Jurídica."},{"$f":"+'Identificación de Riesgos'!J5","v":"Que se responden en forma extemporánea.\n\nSanciones pecunarias\n\nInvestigación disciplinaria"},"Gestión","G. Cumplimiento","Es viable que el evento ocurra en la mayoría de las circunstancias / Al menos una vez en el último año.",{"$f":"+F642","v":"Probable"},"¿Afectar al grupo de funcionarios del proceso?","No Aplica",{"$f":"+F653","v":"No Aplica"},"Afecta la ejecución presupuestal de la entidad","No Aplica",{"$f":"+F666","v":"Catastrófico"},{"$f":"+F677","v":"Extrema"},"DESCRIPCIÓN:",null,"ACCIONES DE CONTROL:",null,null,"DESCRIPCIÓN:",null,"ACCIONES DE CONTROL:",null,null,"DESCRIPCIÓN:",null,"ACCIONES DE CONTROL:",null,null,"DESCRIPCIÓN:",null,"ACCIONES DE CONTROL:",null,null,{"$f":"+F644","v":"Posible"},{"$f":"+F679","v":"Catastrófico"},{"$f":"+F680","v":"Extrema"},{"$f":"+F681","v":"Evitar / Transferir"},{"$f":"IF(AT24=\"No Aplica\",\"No Aplica\",IF(AT24=\"Asumir\",\"No requiere Acciones Adicionales\",\"Debe definir Acciones Complementarias\"))","v":"Debe definir Acciones Complementarias"},"2017-10-31","Lista de asistencia","Recurso Humano\nContratista para vigilancia (presupuesto)\n","Sanciones al MVCT por acciones extemporaneas",{"$f":"+F682","v":"Monitoreo permanente y se deja registro mensual"},null,{"$f":"BD24","v":"Control 1:Los documentos como lo son Tutelas, Incidentes de desacato, telegramas y notificaciones entre otros fueron radicados en el transcurso del día que ingresaron y no se reportaron demoras en los documentos de alta importancia en el mes y la evidencia reposa en la Herramienta de Gestión Documental con un total de 4435 direccionados a Jurídica en el mes.\n\nPara este control los funcionarios asignados clasifican los documentos recibidos en ventanilla, correo certificado o correo electrónico por importancia (términos de respuesta y asunto), luego se procede al cargue en la herramienta de Gestión Documental y  se traslada el oficio por medio del formato GD-F-13 mensajería interna diariamente a la Dependencia encargada de emitir respuesta.\nEn el momento de la recepción de los documentos con términos de respuesta muy cortos se le informa a  la dependencia vía correo electrónico o telefónicamente para su efectivo tramite.\n\nControl 2: Para el control que se refiere a vigilancia a través de un tercero, la revisión de los procesos a nivel nacional se realizó de manera adecuada, por la empresa ICARUS, encargada de la vigilancia Judicial.\n\nControl 3: Para el control que se refiere a  la verificación de las comunicaciones al correo de notificaciones judiciales, la OAJ cuenta con las planillas de reparto o asignación de casos, en donde se refleja a quien se le asigno y la fecha. Ingresaron 34 procesos  nuevos"},"Control 1:Los documentos como lo son Tutelas, Incidentes de desacato, telegramas y notificaciones entre otros fueron radicados en el transcurso del día que ingresaron y no se reportaron demoras en los documentos de alta importancia en el mes y la evidencia reposa en la Herramienta de Gestión Documental con un total de 2199 direccionados a Jurídica en el mes.\n\nPara este control los funcionarios asignados clasifican los documentos recibidos en ventanilla, correo certificado o correo electrónico por importancia (términos de respuesta y asunto), luego se procede al cargue en la herramienta de Gestión Documental y  se traslada el oficio por medio del formato GD-F-13 mensajería interna diariamente a la Dependencia encargada de emitir respuesta.\nEn el momento de la recepción de los documentos con términos de respuesta muy cortos se le informa a  la dependencia vía correo electrónico o telefónicamente para su efectivo tramite. \n\nControl 2:  Para el control que se refiere a Vigilancia a través de un tercero, que se contempla la Revisión de los Procesos a Nivel Nacional, para este efecto en el mes de enero de 2017, no se contó con este control, por cuanto la revisión a nivel nacional la realiza una empresa externa, que se encarga de la vigilancia judicial de los proceso en todo el territorio y mientras se surtieron las etapas de la contratación no fue posible contar con este contar el contrato antes referido, no obstante lo anterior se aclara que la actividad judicial se comenzó a surtir a mediados de enero, puesto que antes la mayoría de despachos judiciales se encontraban en vacancia judicial.\n\nControl 3: y en cuanto a la verificación de las comunicaciones al correo de notificaciones judiciales,  la OAJ cuenta con las planillas de reparto o asignación de casos, en donde se refleja a quien se le asigno y la fecha ","Control 1:Los documentos como lo son Tutelas, Incidentes de desacato, telegramas y notificaciones entre otros fueron radicados en el transcurso del día que ingresaron y no se reportaron demoras en los documentos de alta importancia en el mes y la evidencia reposa en la Herramienta de Gestión Documental con un total de 4435 direccionados a Jurídica en el mes.\n\nPara este control los funcionarios asignados clasifican los documentos recibidos en ventanilla, correo certificado o correo electrónico por importancia (términos de respuesta y asunto), luego se procede al cargue en la herramienta de Gestión Documental y  se traslada el oficio por medio del formato GD-F-13 mensajería interna diariamente a la Dependencia encargada de emitir respuesta.\nEn el momento de la recepción de los documentos con términos de respuesta muy cortos se le informa a  la dependencia vía correo electrónico o telefónicamente para su efectivo tramite.\n\nControl 2: Para el control que se refiere a vigilancia a través de un tercero, la revisión de los procesos a nivel nacional se realizó de manera adecuada, por la empresa ICARUS, encargada de la vigilancia Judicial.\n\nControl 3: Para el control que se refiere a  la verificación de las comunicaciones al correo de notificaciones judiciales, la OAJ cuenta con las planillas de reparto o asignación de casos, en donde se refleja a quien se le asigno y la fecha. Ingresaron 34 procesos  nuevos","Control 1:Los documentos como lo son Tutelas, Incidentes de desacato, telegramas y notificaciones entre otros fueron radicados en el transcurso del día que ingresaron y no se reportaron demoras en los documentos de alta importancia en el mes y la evidencia reposa en la Herramienta de Gestión Documental con un total de 4925 direccionados a Jurídica en el mes.\n\nPara este control los funcionarios asignados clasifican los documentos recibidos en ventanilla, correo certificado o correo electrónico por importancia (términos de respuesta y asunto), luego se procede al cargue en la herramienta de Gestión Documental y  se traslada el oficio por medio del formato GD-F-13 mensajería interna diariamente a la Dependencia encargada de emitir respuesta.\nEn el momento de la recepción de los documentos con términos de respuesta muy cortos se le informa a  la dependencia vía correo electrónico o telefónicamente para su efectivo tramite.\n\nControl 2: Para el control que se refiere a vigilancia a través de un tercero, la revisión de los procesos a nivel nacional se realizó de manera adecuada, por la empresa ICARUS, encargada de la vigilancia Judicial.\n\nControl 3: Para el control que se refiere a  la verificación de las comunicaciones al correo de notificaciones judiciales, la OAJ cuenta con las planillas de reparto o asignación de casos, en donde se refleja a quien se le asigno y la fecha. Ingrearon 7 procesos nuevos","Control 1:Los documentos como lo son Tutelas, Incidentes de desacato, telegramas y notificaciones entre otros fueron radicados en el transcurso del día que ingresaron y no se reportaron demoras en los documentos de alta importancia en el mes y la evidencia reposa en la Herramienta de Gestión Documental con un total de 3069 direccionados a Jurídica en el mes.\n\nPara este control los funcionarios asignados clasifican los documentos recibidos en ventanilla, correo certificado o correo electrónico por importancia (términos de respuesta y asunto), luego se procede al cargue en la herramienta de Gestión Documental y  se traslada el oficio por medio del formato GD-F-13 mensajería interna diariamente a la Dependencia encargada de emitir respuesta.\nEn el momento de la recepción de los documentos con términos de respuesta muy cortos se le informa a  la dependencia vía correo electrónico o telefónicamente para su efectivo tramite.\n\nControl 2: Para el control que se refiere a vigilancia a través de un tercero, la revisión de los procesos a nivel nacional se realizó de manera adecuada, por la empresa ICARUS, encargada de la vigilancia Judicial.\n\nControl 3:  Para el control que se refiere a  la verificación de las comunicaciones al correo de notificaciones judiciales, la OAJ cuenta con las planillas de reparto o asignación de casos, en donde se refleja a quien se le asigno y la fecha. Ingresaron 5 procesos nuevos","Control 1:Los documentos como lo son Tutelas, Incidentes de desacato, telegramas y notificaciones entre otros fueron radicados en el transcurso del día que ingresaron y no se reportaron demoras en los documentos de alta importancia en el mes y la evidencia reposa en la Herramienta de Gestión Documental con un total de 3576 direccionados a Jurídica en el mes.\n\nPara este control los funcionarios asignados clasifican los documentos recibidos en ventanilla, correo certificado o correo electrónico por importancia (términos de respuesta y asunto), luego se procede al cargue en la herramienta de Gestión Documental y  se traslada el oficio por medio del formato GD-F-13 mensajería interna diariamente a la Dependencia encargada de emitir respuesta.\nEn el momento de la recepción de los documentos con términos de respuesta muy cortos se le informa a  la dependencia vía correo electrónico o telefónicamente para su efectivo tramite.\n\nControl 2: Para el control que se refiere a vigilancia a través de un tercero, la revisión de los procesos a nivel nacional se realizó de manera adecuada, por la empresa ICARUS, encargada de la vigilancia Judicial.\n\nControl 3: Para el control que se refiere a  la verificación de las comunicaciones al correo de notificaciones judiciales, la OAJ cuenta con las planillas de reparto o asignación de casos, en donde se refleja a quien se le asigno y la fecha. Ingresaron 14 procesos nuevos ","Control 1:Los documentos como lo son Tutelas, Incidentes de desacato, telegramas y notificaciones entre otros fueron radicados en el transcurso del día que ingresaron y no se reportaron demoras en los documentos de alta importancia en el mes y la evidencia reposa en la Herramienta de Gestión Documental con un total de 2905 direccionados a Jurídica en el mes.\n\nPara este control los funcionarios asignados clasifican los documentos recibidos en ventanilla, correo certificado o correo electrónico por importancia (términos de respuesta y asunto), luego se procede al cargue en la herramienta de Gestión Documental y  se traslada el oficio por medio del formato GD-F-13 mensajería interna diariamente a la Dependencia encargada de emitir respuesta.\nEn el momento de la recepción de los documentos con términos de respuesta muy cortos se le informa a  la dependencia vía correo electrónico o telefónicamente para su efectivo tramite.\n\n\nControl 2: Para el control que se refiere a vigilancia a través de un tercero, la revisión de los procesos a nivel nacional se realizó de manera adecuada, por la empresa ICARUS, encargada de la vigilancia Judicial.\n\nControl 3: Para el control que se refiere a  la verificación de las comunicaciones al correo de notificaciones judiciales, la OAJ cuenta con las planillas de reparto o asignación de casos, en donde se refleja a quien se le asigno y la fecha. Ingresaron 14 procesos nuevos","Control 1:Los documentos como lo son Tutelas, Incidentes de desacato, telegramas y notificaciones entre otros fueron radicados en el transcurso del día que ingresaron y no se reportaron demoras en los documentos de alta importancia en el mes y la evidencia reposa en la Herramienta de Gestión Documental con un total de 2996 direccionados a Jurídica en el mes.\n\n\nControl 2: Para el control que se refiere a vigilancia a través de un tercero, la revisión de los procesos a nivel nacional se realizó de manera adecuada, por la empresa ICARUS, encargada de la vigilancia Judicial.\n\nControl 3: Para el control que se refiere a  la verificación de las comunicaciones al correo de notificaciones judiciales, la OAJ cuenta con las planillas de reparto o asignación de casos, en donde se refleja a quien se le asigno y la fecha. Ingresaron 18 procesos nuevos","Control 1:Los documentos como lo son Tutelas, Incidentes de desacato, telegramas y notificaciones entre otros fueron radicados en el transcurso del día que ingresaron y no se reportaron demoras en los documentos de alta importancia en el mes y la evidencia reposa en la Herramienta de Gestión Documental con un total de 3544 direccionados a Jurídica en el mes.\n\n\nControl 2: Para el control que se refiere a vigilancia a través de un tercero, la revisión de los procesos a nivel nacional se realizó de manera adecuada, por la empresa ICARUS, encargada de la vigilancia Judicial.\n\nControl 3: Para el control que se refiere a  la verificación de las comunicaciones al correo de notificaciones judiciales, la OAJ cuenta con las planillas de reparto o asignación de casos, en donde se refleja a quien se le asigno y la fecha. Ingresaron 21 procesos nuevos","Control 1:Los documentos como lo son Tutelas, Incidentes de desacato, telegramas y notificaciones entre otros fueron radicados en el transcurso del día que ingresaron y no se reportaron demoras en los documentos de alta importancia en el mes y la evidencia reposa en la Herramienta de Gestión Documental con un total de 3265 direccionados a Jurídica en el mes.\n\n\nControl 2: Para el control que se refiere a vigilancia a través de un tercero, la revisión de los procesos a nivel nacional se realizó de manera adecuada, por la empresa ICARUS, encargada de la vigilancia Judicial.\n\nControl 3: Para el control que se refiere a  la verificación de las comunicaciones al correo de notificaciones judiciales, la OAJ cuenta con las planillas de reparto o asignación de casos, en donde se refleja a quien se le asigno y la fecha. Ingresaron 18 procesos nuevos","Control 1:Los documentos como lo son Tutelas, Incidentes de desacato, telegramas y notificaciones entre otros fueron radicados en el transcurso del día que ingresaron y no se reportaron demoras en los documentos de alta importancia en el mes y la evidencia reposa en la Herramienta de Gestión Documental con un total de 3265 direccionados a Jurídica en el mes.\n\n\nControl 2: Para el control que se refiere a vigilancia a través de un tercero, la revisión de los procesos a nivel nacional se realizó de manera adecuada, por la empresa ICARUS, encargada de la vigilancia Judicial.\n\nControl 3: Para el control que se refiere a  la verificación de las comunicaciones al correo de notificaciones judiciales, la OAJ cuenta con las planillas de reparto o asignación de casos, en donde se refleja a quien se le asigno y la fecha. Ingresaron 17 procesos nuevos","Control 1:Los documentos como lo son Tutelas, Incidentes de desacato, telegramas y notificaciones entre otros fueron radicados en el transcurso del día que ingresaron y no se reportaron demoras en los documentos de alta importancia en el mes y la evidencia reposa en la Herramienta de Gestión Documental con un total de 3265 direccionados a Jurídica en el mes.\n\n\nControl 2: Para el control que se refiere a vigilancia a través de un tercero, la revisión de los procesos a nivel nacional se realizó de manera adecuada, por la empresa ICARUS, encargada de la vigilancia Judicial.\n\nControl 3: Para el control que se refiere a  la verificación de las comunicaciones al correo de notificaciones judiciales, la OAJ cuenta con las planillas de reparto o asignación de casos, en donde se refleja a quien se le asigno y la fecha. Ingresaron 31 procesos nuevos","Control 1:Los documentos como lo son Tutelas, Incidentes de desacato, telegramas y notificaciones entre otros fueron radicados en el transcurso del día que ingresaron y no se reportaron demoras en los documentos de alta importancia en el mes y la evidencia reposa en la Herramienta de Gestión Documental con un total de 3265 direccionados a Jurídica en el mes.\n\n\nControl 2: Para el control que se refiere a vigilancia a través de un tercero, la revisión de los procesos a nivel nacional se realizó de manera adecuada, por la empresa ICARUS, encargada de la vigilancia Judicial.\n\nControl 3: Para el control que se refiere a  la verificación de las comunicaciones al correo de notificaciones judiciales, la OAJ cuenta con las planillas de reparto o asignación de casos, en donde se refleja a quien se le asigno y la fecha. Ingresaron 25 procesos nuevos"]
[null,null,null,null,null,null,null,null,null,null,null,null,null,null,null,"¿Afectar el cumplimiento de metas y objetivos de las dependencias?","No Aplica",null,"Pago de indemnizaciones por acciones legales que pueden afectar el presupuesto total de la entidad","No Aplica",null,null,"Verificación de fechas en correspondencia",null,"Revisión en la recepción de tipología documental, fechas, y cargue a la herramienta de Gestión documental, en para ser visualizado por el responsable de manera inmediata  a la recepción.",null,null,"Vigilancia Judicial a través de un tercero",null,"Verificación por parte de un tercero del estado diario de los procesos y reporte diario de los mismos a los servidores públicos encargados del procesos, tanto del administrador del sistema y el coordinador del grupo",null,null,"Verificación de las comunicaciones al correo de notificaciones judiciales",null,"Revisar el correo de notificaciones judiciales para identificar nuevos procesos o actuaciones de los procesos existentes."]
[null,null,null,null,null,null,null,null,null,null,null,null,null,null,null,"¿Afectar el cumplimiento de la misión de la entidad?","No Aplica",null,"Pago de sanciones económicas por incumplimiento de la normatividad  que pueden afectar el presupuesto total de la entidad","En un valor ≥ 0,5%",null,null,null,null,null,null,null,null,null,null,null,null,null,null,null,null,null,null,null,null,null,null,null,null,null,null,"Capacitaciones en control de términos.\n\n"]
[null,null,null,null,null,null,null,null,"RIESGO No 2","Por que el grupo de atención al usuario no traslade a tiempo las Tutelas, o que por equivocación la traslade a otra dependencia diferente a la Oficina Asesora Jurídica.","Que se responden en forma extemporánea.\n\nSanciones pecuniarias\n\nInvestigación disciplinaria.",null,null,null,null,"¿Afectar el cumplimiento de la misión del sector al que pertenece la entidad?","No Aplica",null,null,null,null,null,null,null,null,null,null,null,null,null,null,null,null,null,null,null,null,null,null,null,null,null,null,null,null,null,null,null,null,null,null,null,null,null,null,null,null,null,null,null,null,null,null,null,null,null,"El dato que esta en rojo es que proporciona GAUA"]
[null,null,null,null,null,null,null,null,"Inoportunidad en la representación judicial o en las actuaciones procesales",null,null,null,null,null,null,"¿Generar pérdida de confianza de la entidad, afectando su reputación?","No Aplica",null,"Interrupción de las operaciones de la Entidad","No Aplica"]
[null,null,null,null,null,null,null,null,null,null,null,null,null,null,null,"¿Generar pérdida de recursos económicos?","No Aplica"]
[null,null,null,null,null,null,null,null,null,null,null,null,null,null,null,"¿Afectar la generación de productos o la prestación de servicios?","No Aplica",null,null,null,null,null,"Cargo: Responsable del Control",null,"Evidencia del Control",null,null,"Cargo: Responsable del Control",null,"Evidencia del Control",null,null,"Cargo: Responsable del Control",null,"Evidencia del Control",null,null,"Cargo: Responsable del Control",null,"Evidencia del Control"]
[null,null,null,null,null,null,null,null,null,null,null,null,null,null,null,"¿Da lugar al detrimento de calidad de vida de la comunidad por la pérdida del bien o servicios o los recursos públicos?","No Aplica",null,"Investigación, reclamación o sanción","Sanción por parte del ente de control u otro ente regulador.",null,null,"Servidor Público con funciones de Radicado de Gestión Documental",null,"Herramienta de Gestión Documental\nPlanillas para entrega de correspondencia",null,null,"Tercero - contratista\nServidor Público delegado\nCoordinador de Grupo de procesos Judiciales o acciones constitucionales",null,"Seguimiento a estado de procesos judiciales",null,null,"Secretaria de la OAJ\nCoordinador del Grupo de procesos Judiciales o acciones constitucionales",null,"Planilla de Reparto"]
[null,null,null,null,null,null,null,null,null,null,null,null,null,null,null,"¿Generar pérdida de información de la entidad?","No Aplica",null,null,null,null,null,"Naturaleza",null,"Periodicidad de aplicación",null,null,"Naturaleza",null,"Periodicidad de aplicación",null,null,"Naturaleza",null,"Periodicidad de aplicación",null,null,"Naturaleza",null,"Periodicidad de aplicación"]
[null,null,null,null,null,null,null,null,null,null,null,null,null,null,null,"¿Generar intervención de los órganos de control, de la fiscalía u otro Ente?","No Aplica",null,"Información","No Aplica",null,null,"Preventivo",null,"Diaria",null,null,"Preventivo",null,"Diaria",null,null,"Preventivo",null,"Diaria",null,null,"No Aplica",null,"No Aplica"]
[null,null,null,null,null,null,null,null,null,null,null,null,null,null,null,"¿Dar lugar a procesos sancionatorios?","No Aplica",null,null,null,null,null,"Preguntas de Evaluación",null,null,{"$f":"+SUM(AA35:AA41)","v":45},null,"Preguntas de Evaluación",null,null,{"$f":"+SUM(AF35:AF41)","v":70},null,"Preguntas de Evaluación",null,null,{"$f":"+SUM(AK35:AK41)","v":70},null,"Preguntas de Evaluación",null,null,{"$f":"+SUM(AP35:AP41)","v":0}]
[null,null,null,null,null,null,null,null,null,null,null,null,null,null,null,"¿Dar lugar a procesos disciplinarios?","No Aplica",null,"Imagen institucional afectada","No Aplica",null,null,"Existen manuales, instructivos o procedimientos para el manejo del control",null,null,"Si",{"$f":"+IF(Z35=\"Si\",15,0)","v":15},"Existen manuales, instructivos o procedimientos para el manejo del control",null,null,"No",{"$f":"+IF(AE35=\"Si\",15,0)","v":0},"Existen manuales, instructivos o procedimientos para el manejo del control",null,null,"No",{"$f":"+IF(AJ35=\"Si\",15,0)","v":0},"Existen manuales, instructivos o procedimientos para el manejo del control",null,null,"No Aplica",{"$f":"+IF(AO35=\"Si\",15,0)","v":0}]
[null,null,null,null,null,null,null,null,null,null,null,null,null,null,null,"¿Dar lugar a procesos fiscales?","No Aplica",null,null,null,null,null,"Está definido el responsable de la ejecución del control y seguimiento",null,null,"Si",{"$f":"+IF(Z36=\"Si\",5,0)","v":5},"Está definido el responsable de la ejecución del control y seguimiento",null,null,"Si",{"$f":"+IF(AE36=\"Si\",5,0)","v":5},"Está definido el responsable de la ejecución del control y seguimiento",null,null,"Si",{"$f":"+IF(AJ36=\"Si\",5,0)","v":5},"Está definido el responsable de la ejecución del control y seguimiento",null,null,"No Aplica",{"$f":"+IF(AO36=\"Si\",5,0)","v":0}]
[null,null,null,null,null,null,null,null,null,null,null,null,null,null,null,"¿Generar pérdida de credibilidad de la entidad?","No Aplica",null,"Metas, objetivos y operaciones ","Reproceso de actividades y aumento de carga operativa.",null,null,"El control es automático",null,null,"No",{"$f":"+IF(Z37=\"Si\",15,0)","v":0},"El control es automático",null,null,"No",{"$f":"+IF(AE37=\"Si\",15,0)","v":0},"El control es automático",null,null,"No",{"$f":"+IF(AJ37=\"Si\",15,0)","v":0},"El control es automático",null,null,"No Aplica",{"$f":"+IF(AO37=\"Si\",15,0)","v":0}]
[null,null,null,null,null,null,null,null,null,null,null,null,null,null,null,"¿Generar pérdida de credibilidad del sector?","No Aplica",null,null,null,null,null,"El control es manual",null,null,"No",{"$f":"+IF(Z38=\"Si\",10,0)","v":0},"El control es manual",null,null,"Si",{"$f":"+IF(AE38=\"Si\",10,0)","v":10},"El control es manual",null,null,"Si",{"$f":"+IF(AJ38=\"Si\",10,0)","v":10},"El control es manual",null,null,"No Aplica",{"$f":"+IF(AO38=\"Si\",10,0)","v":0}]
[null,null,null,null,null,null,null,null,null,null,null,null,null,null,null,"¿Ocasionar lesiones físicas o pérdida de vidas humanas? ","No Aplica",null,null,null,null,null,"La frecuencia de ejecución del control y seguimiento es adecuada ",null,null,"Si",{"$f":"+IF(Z39=\"Si\",15,0)","v":15},"La frecuencia de ejecución del control y seguimiento es adecuada ",null,null,"Si",{"$f":"+IF(AE39=\"Si\",15,0)","v":15},"La frecuencia de ejecución del control y seguimiento es adecuada ",null,null,"Si",{"$f":"+IF(AJ39=\"Si\",15,0)","v":15},"La frecuencia de ejecución del control y seguimiento es adecuada ",null,null,"No Aplica",{"$f":"+IF(AO39=\"Si\",15,0)","v":0}]
[null,null,null,null,null,null,null,null,null,null,null,null,null,null,null,"¿Afectar la imagen regional?","No Aplica",null,null,null,null,null,"Se cuenta con evidencias de la ejecución y seguimiento del control",null,null,"Si",{"$f":"+IF(Z40=\"Si\",10,0)","v":10},"Se cuenta con evidencias de la ejecución y seguimiento del control",null,null,"Si",{"$f":"+IF(AE40=\"Si\",10,0)","v":10},"Se cuenta con evidencias de la ejecución y seguimiento del control",null,null,"Si",{"$f":"+IF(AJ40=\"Si\",10,0)","v":10},"Se cuenta con evidencias de la ejecución y seguimiento del control",null,null,"No Aplica",{"$f":"+IF(AO40=\"Si\",10,0)","v":0}]
[null,null,null,null,null,null,null,null,null,null,null,null,null,null,null,"¿Afectar la imagen nacional?","No Aplica",null,null,null,null,null,"En el tiempo que lleva la herramienta ha demostrado ser efectiva",null,null,"No",{"$f":"+IF(Z41=\"Si\",30,0)","v":0},"En el tiempo que lleva la herramienta ha demostrado ser efectiva",null,null,"Si",{"$f":"+IF(AE41=\"Si\",30,0)","v":30},"En el tiempo que lleva la herramienta ha demostrado ser efectiva",null,null,"Si",{"$f":"+IF(AJ41=\"Si\",30,0)","v":30},"En el tiempo que lleva la herramienta ha demostrado ser efectiva",null,null,"No Aplica",{"$f":"+IF(AO41=\"Si\",30,0)","v":0}]
[null,null,null,null,null,null,{"$f":"+'Identificación de Riesgos'!$B$4","v":"Procesos Judiciales y Acciones Constitucionales"},{"$f":"+'Identificación de Riesgos'!$C$4","v":"Asesorar y representar en los asuntos relacionados con procesos judicionales, extrajudiciales y administrativos, y adelantar el cobro oportuno por jurisdicción coactiva de las acreencias a favor del Ministerio y de FONVIVIENDA."},{"$f":"+'Identificación de Riesgos'!G6","v":"Respuesta inadecuada a los requerimientos judiciales"},{"$f":"+'Identificación de Riesgos'!H6","v":"Desconocimiento normativo o contestar\n con normas desactualizadas.\n\nPor que existan cambio normativos,\n cambio de legislación."},{"$f":"+'Identificación de Riesgos'!J6","v":"Sanciones pecuniarias\n\n"},"Gestión","G. Cumplimiento","El evento puede ocurrir en algún momento /Al menos una vez en los últimos 5 años.",{"$f":"H642","v":"Improbable"},"¿Afectar al grupo de funcionarios del proceso?","No Aplica",{"$f":"+H653","v":"No Aplica"},"Afecta la ejecución presupuestal de la entidad","No Aplica",{"$f":"+H666","v":"Insignificante"},{"$f":"+H677","v":"Baja"},"DESCRIPCIÓN:",null,"ACCIONES DE CONTROL:",null,null,"DESCRIPCIÓN:",null,"ACCIONES DE CONTROL:",null,null,"DESCRIPCIÓN:",null,"ACCIONES DE CONTROL:",null,null,"DESCRIPCIÓN:",null,"ACCIONES DE CONTROL:",null,null,{"$f":"+H644","v":"Rara vez"},{"$f":"+H679","v":"Insignificante"},{"$f":"+H680","v":"Baja"},{"$f":"+H681","v":"Asumir"},{"$f":"IF(AT42=\"No Aplica\",\"No Aplica\",IF(AT42=\"Asumir\",\"No requiere Acciones Adicionales\",\"Debe definir Acciones Complementarias\"))","v":"No requiere Acciones Adicionales"},null,null,"Recurso Humano \n","Sanciones al MVCT por respuestas sin fundamento legal",{"$f":"+H682","v":"Monitoreo mensual y se deja registro trimestral"},null,{"$f":"+H683","v":"Jefe Oficina Asesora Jurídica -\n Coordinador Grupo de Procesos Judiciales \ny de Acciones Constitucionales."},"Control 1: Se realiza el comité de conciliación mensual los cuales se llevaron a cabo en las siguientes fechas 13 y 20 de enero, las actas reposan en la Oficina Asesora Jurídica.\n\n\nControl 2: Al presentarse los casos al comité de conciliación, se revisan los fundamentos de hecho y de derecho que se someten al comité y las conclusiones de cada uno de los comités, se encuentran evidenciadas en las actas y en la discusión de cada uno de los casos.\n\nControl 3: Se revisan aleatoriamente las respuestas a las tutelas, teniendo encuenta que son bastantes las respuestas diarias y que los grupos internos de trabajo de Acciones Constitucionales se encuentran en diferentes sedes del Ministerio. de conformidad con la solicitud de apoyo que cada apoderado requiera del coordinador, o por la importancia de la tutela a tratar.","Control 1:Se realiza el comité de conciliación mensual los cuales se llevaron a cabo en las siguientes fechas 09, 14, 23 de febrero, las actas reposan en la Oficina Asesora Jurídica.\n\nControl 2: Al presentarse los casos al comité de conciliación, se revisan los fundamentos de hecho y de derecho que se someten al comité y las conclusiones de cada uno de los comités, se encuentran evidenciadas en las actas y en la discusión de cada uno de los casos.\n\nControl 3: Se revisan aleatoriamente las respuestas a las tutelas, teniendo encuenta que son bastantes las respuestas diarias y que los grupos internos de trabajo de Acciones Constitucionales se encuentran en diferentes sedes del Ministerio. de conformidad con la solicitud de apoyo que cada apoderado requiera del coordinador, o por la importancia de la tutela a tratar. \n\n\n\n","Control 1:Se realiza el comité de conciliación mensual los cuales se llevaron a cabo en las siguientes fechas  07, 08, 23 marzo, las actas reposan en la Oficina Asesora Jurídica.\n\n\nControl 2: Al presentarse los casos al comité de conciliación, se revisan los fundamentos de hecho y de derecho que se someten al comité y las conclusiones de cada uno de los comités, se encuentran evidenciadas en las actas y en la discusión de cada uno de los casos.\n\nControl 3: Se revisan aleatoriamente las respuestas a las tutelas, teniendo encuenta que son bastantes las respuestas diarias y que los grupos internos de trabajo de Acciones Constitucionales se encuentran en diferentes sedes del Ministerio. de conformidad con la solicitud de apoyo que cada apoderado requiera del coordinador, o por la importancia de la tutela a tratar. \n\n\n\n\n\n\n\n","Control 1: Se realiza el comité de conciliación mensual los cuales se llevaron a cabo en las siguientes fechas 03, 17 y 27 de abril, las actas reposan en la Oficina Asesora Jurídica.\n\n\nControl 2: Al presentarse los casos al comité de conciliación, se revisan los fundamentos de hecho y de derecho que se someten al comité y las conclusiones de cada uno de los comités, se encuentran evidenciadas en las actas y en la discusión de cada uno de los casos.\n\nControl 3: Se revisan aleatoriamente las respuestas a las tutelas, teniendo encuenta que son bastantes las respuestas diarias y que los grupos internos de trabajo de Acciones Constitucionales se encuentran en diferentes sedes del Ministerio. de conformidad con la solicitud de apoyo que cada apoderado requiera del coordinador, o por la importancia de la tutela a tratar. \n\n\n\n\n\n\n\n\n\nControl 3:\n\n","Control 1:Se realiza el comité de conciliación mensual los cuales se llevaron a cabo en las siguientes fechas 11,25 y 31 de mayo, las actas reposan en la Oficina Asesora Jurídica.\n\n\nControl 2: Al presentarse los casos al comité de conciliación, se revisan los fundamentos de hecho y de derecho que se someten al comité y las conclusiones de cada uno de los comités, se encuentran evidenciadas en las actas y en la discusión de cada uno de los casos.\n\nControl 3: Se revisan aleatoriamente las respuestas a las tutelas, teniendo encuenta que son bastantes las respuestas diarias y que los grupos internos de trabajo de Acciones Constitucionales se encuentran en diferentes sedes del Ministerio. de conformidad con la solicitud de apoyo que cada apoderado requiera del coordinador, o por la importancia de la tutela a tratar. \n\n\n\n\n\n\n\n\n\nControl 3:\n\n\n","Control 1:Se realiza el comité de conciliación mensual los cuales se llevaron a cabo en las siguientes fechas 1,2,7,9 y 27 de junio, las actas reposan en la Oficina Asesora Jurídica.\n\n\nControl 2: Al presentarse los casos al comité de conciliación, se revisan los fundamentos de hecho y de derecho que se someten al comité y las conclusiones de cada uno de los comités, se encuentran evidenciadas en las actas y en la discusión de cada uno de los casos.\n\nControl 3: Se revisan aleatoriamente las respuestas a las tutelas, teniendo encuenta que son bastantes las respuestas diarias y que los grupos internos de trabajo de Acciones Constitucionales se encuentran en diferentes sedes del Ministerio. de conformidad con la solicitud de apoyo que cada apoderado requiera del coordinador, o por la importancia de la tutela a tratar. \n\n\n\n\n\n","Control 1:Se realiza el comité de conciliación mensual los cuales se llevaron a cabo en las siguientes fechas 19 y 25 de julio, las actas reposan en la Oficina Asesora Jurídica.\n\n\nControl 2: Al presentarse los casos al comité de conciliación, se revisan los fundamentos de hecho y de derecho que se someten al comité y las conclusiones de cada uno de los comités, se encuentran evidenciadas en las actas y en la discusión de cada uno de los casos.\n\nControl 3: Se revisan aleatoriamente las respuestas a las tutelas, teniendo encuenta que son bastantes las respuestas diarias y que los grupos internos de trabajo de Acciones Constitucionales se encuentran en diferentes sedes del Ministerio. de conformidad con la solicitud de apoyo que cada apoderado requiera del coordinador, o por la importancia de la tutela a tratar. ","Control 1:Se realiza el comité de conciliación mensual los cuales se llevaron a cabo en las siguientes fechas 3,10 y 22 de agosto, las actas reposan en la Oficina Asesora Jurídica.\n\n\nControl 2: Al presentarse los casos al comité de conciliación, se revisan los fundamentos de hecho y de derecho que se someten al comité y las conclusiones de cada uno de los comités, se encuentran evidenciadas en las actas y en la discusión de cada uno de los casos.\n\nControl 3:Se revisan aleatoriamente las respuestas a las tutelas, teniendo encuenta que son bastantes las respuestas diarias y que los grupos internos de trabajo de Acciones Constitucionales se encuentran en diferentes sedes del Ministerio. de conformidad con la solicitud de apoyo que cada apoderado requiera del coordinador, o por la importancia de la tutela a tratar. ","Control 1:Se realiza el comité de conciliación mensual los cuales se llevaron a cabo en las siguientes fechas 4,15 y 22 de septiembre, las actas reposan en la Oficina Asesora Jurídica.\n\n\nControl 2: Al presentarse los casos al comité de conciliación, se revisan los fundamentos de hecho y de derecho que se someten al comité y las conclusiones de cada uno de los comités, se encuentran evidenciadas en las actas y en la discusión de cada uno de los casos.\n\nControl 3: Se revisan aleatoriamente las respuestas a las tutelas, teniendo encuenta que son bastantes las respuestas diarias y que los grupos internos de trabajo de Acciones Constitucionales se encuentran en diferentes sedes del Ministerio. de conformidad con la solicitud de apoyo que cada apoderado requiera del coordinador, o por la importancia de la tutela a tratar. ","Control 1:Se realiza el comité de conciliación mensual los cuales se llevaron a cabo en las siguientes fechas 5 y 17de Octubre, las actas reposan en la Oficina Asesora Jurídica.\n\n\nControl 2: Al presentarse los casos al comité de conciliación, se revisan los fundamentos de hecho y de derecho que se someten al comité y las conclusiones de cada uno de los comités, se encuentran evidenciadas en las actas y en la discusión de cada uno de los casos.\n\nControl 3: Se revisan aleatoriamente las respuestas a las tutelas, teniendo encuenta que son bastantes las respuestas diarias y que los grupos internos de trabajo de Acciones Constitucionales se encuentran en diferentes sedes del Ministerio. de conformidad con la solicitud de apoyo que cada apoderado requiera del coordinador, o por la importancia de la tutela a tratar. ","Control 1:Se realiza el comité de conciliación mensual los cuales se llevaron a cabo en las siguientes fechas 2,8,15 y 21 de Noviembre, las actas reposan en la Oficina Asesora Jurídica.\n\n\nControl 2: Al presentarse los casos al comité de conciliación, se revisan los fundamentos de hecho y de derecho que se someten al comité y las conclusiones de cada uno de los comités, se encuentran evidenciadas en las actas y en la discusión de cada uno de los casos.\n\nControl 3: Se revisan aleatoriamente las respuestas a las tutelas, teniendo encuenta que son bastantes las respuestas diarias y que los grupos internos de trabajo de Acciones Constitucionales se encuentran en diferentes sedes del Ministerio. de conformidad con la solicitud de apoyo que cada apoderado requiera del coordinador, o por la importancia de la tutela a tratar. ","Control 1: Para el mes de diciembre, no se realizó comité de conciliación, puesto que no se tenían casos paraser presentados, por la vacancia judicial.\n\n\nControl 2: Al presentarse los casos al comité de conciliación, se revisan los fundamentos de hecho y de derecho que se someten al comité y las conclusiones de cada uno de los comités, se encuentran evidenciadas en las actas y en la discusión de cada uno de los casos.\n\nControl 3: Se revisan aleatoriamente las respuestas a las tutelas, teniendo encuenta que son bastantes las respuestas diarias y que los grupos internos de trabajo de Acciones Constitucionales se encuentran en diferentes sedes del Ministerio. de conformidad con la solicitud de apoyo que cada apoderado requiera del coordinador, o por la importancia de la tutela a tratar. "]
[null,null,null,null,null,null,null,null,null,null,null,null,null,null,null,"¿Afectar el cumplimiento de metas y objetivos de las dependencias?","No Aplica",null,"Pago de indemnizaciones por acciones legales que pueden afectar el presupuesto total de la entidad","No Aplica",null,null,"Revisión de actualización de normatividad relacionada con el proceso",null,"Revisión de actualización de la normatividad  relacionada con el proceso y en caso de requerirse comunicarse con el área técnica para verificar antecedentes\n",null,null,"Revisión por parte del Comité de Conciliación",null,"Revisión de los fundamentos de hechos y de derecho, para definición de directrices para el caso",null,null,"Revisión de la respuesta a tutelas ",null,"Revisión aleatoria por parte del Coordinador, de tal forma que la respuesta sea adecuada a la tutela"]
[null,null,null,null,null,null,null,null,null,null,null,null,null,null,null,"¿Afectar el cumplimiento de la misión de la entidad?","No Aplica",null,"Pago de sanciones económicas por incumplimiento de la normatividad  que pueden afectar el presupuesto total de la entidad","En un valor ≥ 0,5%"]
[null,null,null,null,null,null,null,null,"RIESGO No 3","Desconocimiento normativo o contestar\n con normas desactualizadas.\n\nPor que existan cambio normativos,\n cambio de legislación.","Sanciones pecuniarias\n\n",null,null,null,null,"¿Afectar el cumplimiento de la misión del sector al que pertenece la entidad?","No Aplica"]
[null,null,null,null,null,null,null,null,"Respuesta inadecuada a los requerimientos judiciales",null,null,null,null,null,null,"¿Generar pérdida de confianza de la entidad, afectando su reputación?","No Aplica",null,"Interrupción de las operaciones de la Entidad","No Aplica"]
[null,null,null,null,null,null,null,null,null,null,null,null,null,null,null,"¿Generar pérdida de recursos económicos?","No Aplica"]
[null,null,null,null,null,null,null,null,null,null,null,null,null,null,null,"¿Afectar la generación de productos o la prestación de servicios?","No Aplica",null,null,null,null,null,"Cargo: Responsable del Control",null,"Evidencia del Control",null,null,"Cargo: Responsable del Control",null,"Evidencia del Control",null,null,"Cargo: Responsable del Control",null,"Evidencia del Control",null,null,"Cargo: Responsable del Control",null,"Evidencia del Control"]
[null,null,null,null,null,null,null,null,null,null,null,null,null,null,null,"¿Da lugar al detrimento de calidad de vida de la comunidad por la pérdida del bien o servicios o los recursos públicos?","No Aplica",null,"Investigación, reclamación o sanción","No se generan sanciones económicas o administrativas.",null,null,"Profesional Asignado ",null,"Inclusión de la normatividad en el texto de la respuesta",null,null,"Comité de Conciliación",null,"Acta de comité de conciliación",null,null,"Coordinador de Acciones Constitucionales",null,"Vistos Bueno del Coordinador\n"]
[null,null,null,null,null,null,null,null,null,null,null,null,null,null,null,"¿Generar pérdida de información de la entidad?","No Aplica",null,null,null,null,null,"Naturaleza",null,"Periodicidad de aplicación",null,null,"Naturaleza",null,"Periodicidad de aplicación",null,null,"Naturaleza",null,"Periodicidad de aplicación",null,null,"Naturaleza",null,"Periodicidad de aplicación"]
[null,null,null,null,null,null,null,null,null,null,null,null,null,null,null,"¿Generar intervención de los órganos de control, de la fiscalía u otro Ente?","No Aplica",null,"Información","No Aplica",null,null,"Detectivo",null,"Cuando se Requiera",null,null,"Preventivo",null,"Mensual",null,null,"Detectivo",null,"Cuando se Requiera",null,null,"No Aplica",null,"No Aplica"]
[null,null,null,null,null,null,null,null,null,null,null,null,null,null,null,"¿Dar lugar a procesos sancionatorios?","No Aplica",null,null,null,null,null,"Preguntas de Evaluación",null,null,{"$f":"+SUM(AA53:AA59)","v":85},null,"Preguntas de Evaluación",null,null,{"$f":"+SUM(AF53:AF59)","v":85},null,"Preguntas de Evaluación",null,null,{"$f":"+SUM(AK53:AK59)","v":85},null,"Preguntas de Evaluación",null,null,{"$f":"+SUM(AP53:AP59)","v":0}]
[null,null,null,null,null,null,null,null,null,null,null,null,null,null,null,"¿Dar lugar a procesos disciplinarios?","No Aplica",null,"Imagen institucional afectada","No Aplica",null,null,"Existen manuales, instructivos o procedimientos para el manejo del control",null,null,"Si",{"$f":"+IF(Z53=\"Si\",15,0)","v":15},"Existen manuales, instructivos o procedimientos para el manejo del control",null,null,"Si",{"$f":"+IF(AE53=\"Si\",15,0)","v":15},"Existen manuales, instructivos o procedimientos para el manejo del control",null,null,"Si",{"$f":"+IF(AJ53=\"Si\",15,0)","v":15},"Existen manuales, instructivos o procedimientos para el manejo del control",null,null,"No Aplica",{"$f":"+IF(AO53=\"Si\",15,0)","v":0}]
[null,null,null,null,null,null,null,null,null,null,null,null,null,null,null,"¿Dar lugar a procesos fiscales?","No Aplica",null,null,null,null,null,"Está definido el responsable de la ejecución del control y seguimiento",null,null,"Si",{"$f":"+IF(Z54=\"Si\",5,0)","v":5},"Está definido el responsable de la ejecución del control y seguimiento",null,null,"Si",{"$f":"+IF(AE54=\"Si\",5,0)","v":5},"Está definido el responsable de la ejecución del control y seguimiento",null,null,"Si",{"$f":"+IF(AJ54=\"Si\",5,0)","v":5},"Está definido el responsable de la ejecución del control y seguimiento",null,null,"No Aplica",{"$f":"+IF(AO54=\"Si\",5,0)","v":0}]
[null,null,null,null,null,null,null,null,null,null,null,null,null,null,null,"¿Generar pérdida de credibilidad de la entidad?","No Aplica",null,"Metas, objetivos y operaciones ","No Aplica",null,null,"El control es automático",null,null,"No",{"$f":"+IF(Z55=\"Si\",15,0)","v":0},"El control es automático",null,null,"No",{"$f":"+IF(AE55=\"Si\",15,0)","v":0},"El control es automático",null,null,"No",{"$f":"+IF(AJ55=\"Si\",15,0)","v":0},"El control es automático",null,null,"No Aplica",{"$f":"+IF(AO55=\"Si\",15,0)","v":0}]
[null,null,null,null,null,null,null,null,null,null,null,null,null,null,null,"¿Generar pérdida de credibilidad del sector?","No Aplica",null,null,null,null,null,"El control es manual",null,null,"Si",{"$f":"+IF(Z56=\"Si\",10,0)","v":10},"El control es manual",null,null,"Si",{"$f":"+IF(AE56=\"Si\",10,0)","v":10},"El control es manual",null,null,"Si",{"$f":"+IF(AJ56=\"Si\",10,0)","v":10},"El control es manual",null,null,"No Aplica",{"$f":"+IF(AO56=\"Si\",10,0)","v":0}]
[null,null,null,null,null,null,null,null,null,null,null,null,null,null,null,"¿Ocasionar lesiones físicas o pérdida de vidas humanas? ","No Aplica",null,null,null,null,null,"La frecuencia de ejecución del control y seguimiento es adecuada ",null,null,"Si",{"$f":"+IF(Z57=\"Si\",15,0)","v":15},"La frecuencia de ejecución del control y seguimiento es adecuada ",null,null,"Si",{"$f":"+IF(AE57=\"Si\",15,0)","v":15},"La frecuencia de ejecución del control y seguimiento es adecuada ",null,null,"Si",{"$f":"+IF(AJ57=\"Si\",15,0)","v":15},"La frecuencia de ejecución del control y seguimiento es adecuada ",null,null,"No Aplica",{"$f":"+IF(AO57=\"Si\",15,0)","v":0}]
[null,null,null,null,null,null,null,null,null,null,null,null,null,null,null,"¿Afectar la imagen regional?","No Aplica",null,null,null,null,null,"Se cuenta con evidencias de la ejecución y seguimiento del control",null,null,"Si",{"$f":"+IF(Z58=\"Si\",10,0)","v":10},"Se cuenta con evidencias de la ejecución y seguimiento del control",null,null,"Si",{"$f":"+IF(AE58=\"Si\",10,0)","v":10},"Se cuenta con evidencias de la ejecución y seguimiento del control",null,null,"Si",{"$f":"+IF(AJ58=\"Si\",10,0)","v":10},"Se cuenta con evidencias de la ejecución y seguimiento del control",null,null,"No Aplica",{"$f":"+IF(AO58=\"Si\",10,0)","v":0}]
[null,null,null,null,null,null,null,null,null,null,null,null,null,null,null,"¿Afectar la imagen nacional?","No Aplica",null,null,null,null,null,"En el tiempo que lleva la herramienta ha demostrado ser efectiva",null,null,"Si",{"$f":"+IF(Z59=\"Si\",30,0)","v":30},"En el tiempo que lleva la herramienta ha demostrado ser efectiva",null,null,"Si",{"$f":"+IF(AE59=\"Si\",30,0)","v":30},"En el tiempo que lleva la herramienta ha demostrado ser efectiva",null,null,"Si",{"$f":"+IF(AJ59=\"Si\",30,0)","v":30},"En el tiempo que lleva la herramienta ha demostrado ser efectiva",null,null,"No Aplica",{"$f":"+IF(AO59=\"Si\",30,0)","v":0}]
[null,null,null,null,null,null,{"$f":"+'Identificación de Riesgos'!$B$4","v":"Procesos Judiciales y Acciones Constitucionales"},{"$f":"+'Identificación de Riesgos'!$C$4","v":"Asesorar y representar en los asuntos relacionados con procesos judicionales, extrajudiciales y administrativos, y adelantar el cobro oportuno por jurisdicción coactiva de las acreencias a favor del Ministerio y de FONVIVIENDA."},{"$f":"+'Identificación de Riesgos'!G7","v":"Prescripción de téminos en cobro judicial"},{"$f":"+'Identificación de Riesgos'!H7","v":"Procesos con entrega al Ministerio del PAR INURBE con fechas próximas a prescibir o prescritos\n\n"},{"$f":"+'Identificación de Riesgos'!J7","v":"Pérdida de dinero"},"Gestión","G. Financiero","Es viable que el evento ocurra en la mayoría de las circunstancias / Al menos una vez en el último año.",{"$f":"I642","v":"Probable"},"¿Afectar al grupo de funcionarios del proceso?","No Aplica",{"$f":"+I653","v":"No Aplica"},"Afecta la ejecución presupuestal de la entidad","No Aplica",{"$f":"+I666","v":"Mayor"},{"$f":"+I677","v":"Extrema"},"DESCRIPCIÓN:",null,"ACCIONES DE CONTROL:",null,null,"DESCRIPCIÓN:",null,"ACCIONES DE CONTROL:",null,null,"DESCRIPCIÓN:",null,"ACCIONES DE CONTROL:",null,null,"DESCRIPCIÓN:",null,"ACCIONES DE CONTROL:",null,null,{"$f":"+I644","v":"Probable"},{"$f":"+I679","v":"Mayor"},{"$f":"+I680","v":"Extrema"},{"$f":"+I681","v":"Evitar / Transferir"},{"$f":"IF(AT60=\"No Aplica\",\"No Aplica\",IF(AT60=\"Asumir\",\"No requiere Acciones Adicionales\",\"Debe definir Acciones Complementarias\"))","v":"Debe definir Acciones Complementarias"},"2017-06-30","Resolución de prescripción","Recurso Humano","Casos prescritos/Casos recibidos del PAR INURBE ",{"$f":"+I682","v":"Monitoreo permanente y se deja registro mensual"},null,{"$f":"+I683","v":"Jefe Oficina Asesora Jurídica -\n Coordinador Grupo de Procesos Judiciales \ny de Acciones Constitucionales."},"Control 1: En este mes no se llevó a cabo el comité de normalización de cartera, por lo tanto no se profirió Resolución de Prescripción ","Control 1: En este mes no se llevó a cabo el comité de normalización de cartera, por lo tanto no se profirió Resolución de Prescripción ","Control 1: En este mes no se llevó a cabo el comité de normalización de cartera, por lo tanto no se profirió Resolución de Prescripción ","Control 1: Se celebro el comité de normalización de cartera el día 06 de abril de 2017, y como producto de este se profirió la Resolución No 200 de 2017","Control 1: Se celebro el comité de normalización de cartera el día 24 de mayo de 2017.","Control 1: En este mes no se llevó a cabo el comité de normalización de cartera, por lo tanto no se profirió Resolución de Prescripción ","Control 1: En este mes no se llevó a cabo el comité de normalización de cartera, por lo tanto no se profirió Resolución de Prescripción ","Control 1: En este mes no se llevó a cabo el comité de normalización de cartera, por lo tanto no se profirió Resolución de Prescripción ","Control 1: En este mes no se llevó a cabo el comité de normalización de cartera, por lo tanto no se profirió Resolución de Prescripción ","Control 1: En este mes no se llevó a cabo el comité de normalización de cartera, por lo tanto no se profirió Resolución de Prescripción ","Control 1: Se celebro el comité de normalización de cartera el día 30 de noviembre de 2017.","Control 1: Se celebro el comité de normalización de cartera el día 15 de diciembre de 2017."]
[null,null,null,null,null,null,null,null,null,null,null,null,null,null,null,"¿Afectar el cumplimiento de metas y objetivos de las dependencias?","No Aplica",null,"Pago de indemnizaciones por acciones legales que pueden afectar el presupuesto total de la entidad","No Aplica",null,null,"Verificación de lo recibido anteriormente",null,"Verificación de los procesos recibidos del PAR INURBE e identificación de su estado con relación a la prescripción."]
[null,null,null,null,null,null,null,null,null,null,null,null,null,null,null,"¿Afectar el cumplimiento de la misión de la entidad?","No Aplica",null,"Pago de sanciones económicas por incumplimiento de la normatividad  que pueden afectar el presupuesto total de la entidad","No Aplica",null,null,null,null,null,null,null,null,null,null,null,null,null,null,null,null,null,null,null,null,null,null,null,null,null,null,"Revisar el estado de los casos recibidos del par INURBE y determinar su estado frente a términos"]
[null,null,null,null,null,null,null,null,"RIESGO No 4","Procesos con entrega al Ministerio del PAR INURBE con fechas próximas a prescribir o prescritos\n\n","Pérdida de dinero",null,null,null,null,"¿Afectar el cumplimiento de la misión del sector al que pertenece la entidad?","No Aplica"]
[null,null,null,null,null,null,null,null,"Prescripción de términos en cobro judicial",null,null,null,null,null,null,"¿Generar pérdida de confianza de la entidad, afectando su reputación?","No Aplica",null,"Interrupción de las operaciones de la Entidad","No Aplica"]
[null,null,null,null,null,null,null,null,null,null,null,null,null,null,null,"¿Generar pérdida de recursos económicos?","No Aplica"]
[null,null,null,null,null,null,null,null,null,null,null,null,null,null,null,"¿Afectar la generación de productos o la prestación de servicios?","No Aplica",null,null,null,null,null,"Cargo: Responsable del Control",null,"Evidencia del Control",null,null,"Cargo: Responsable del Control",null,"Evidencia del Control",null,null,"Cargo: Responsable del Control",null,"Evidencia del Control",null,null,"Cargo: Responsable del Control",null,"Evidencia del Control"]
[null,null,null,null,null,null,null,null,null,null,null,null,null,null,null,"¿Da lugar al detrimento de calidad de vida de la comunidad por la pérdida del bien o servicios o los recursos públicos?","No Aplica",null,"Investigación, reclamación o sanción","No Aplica",null,null,"Servidor Público del grupo de procesos judiciales",null,"Resolución de prescripción"]
[null,null,null,null,null,null,null,null,null,null,null,null,null,null,null,"¿Generar pérdida de información de la entidad?","No Aplica",null,null,null,null,null,"Naturaleza",null,"Periodicidad de aplicación",null,null,"Naturaleza",null,"Periodicidad de aplicación",null,null,"Naturaleza",null,"Periodicidad de aplicación",null,null,"Naturaleza",null,"Periodicidad de aplicación"]
[null,null,null,null,null,null,null,null,null,null,null,null,null,null,null,"¿Generar intervención de los órganos de control, de la fiscalía u otro Ente?","No Aplica",null,"Información","No Aplica",null,null,"Correctivo",null,"Cuando se Requiera",null,null,"No Aplica",null,"No Aplica",null,null,"No Aplica",null,"No Aplica",null,null,"No Aplica",null,"No Aplica"]
[null,null,null,null,null,null,null,null,null,null,null,null,null,null,null,"¿Dar lugar a procesos sancionatorios?","No Aplica",null,null,null,null,null,"Preguntas de Evaluación",null,null,{"$f":"+SUM(AA71:AA77)","v":25},null,"Preguntas de Evaluación",null,null,{"$f":"+SUM(AF71:AF77)","v":0},null,"Preguntas de Evaluación",null,null,{"$f":"+SUM(AK71:AK77)","v":0},null,"Preguntas de Evaluación",null,null,{"$f":"+SUM(AP71:AP77)","v":0}]
[null,null,null,null,null,null,null,null,null,null,null,null,null,null,null,"¿Dar lugar a procesos disciplinarios?","No Aplica",null,"Imagen institucional afectada","No Aplica",null,null,"Existen manuales, instructivos o procedimientos para el manejo del control",null,null,"No",{"$f":"+IF(Z71=\"Si\",15,0)","v":0},"Existen manuales, instructivos o procedimientos para el manejo del control",null,null,"No Aplica",{"$f":"+IF(AE71=\"Si\",15,0)","v":0},"Existen manuales, instructivos o procedimientos para el manejo del control",null,null,"No Aplica",{"$f":"+IF(AJ71=\"Si\",15,0)","v":0},"Existen manuales, instructivos o procedimientos para el manejo del control",null,null,"No Aplica",{"$f":"+IF(AO71=\"Si\",15,0)","v":0}]
[null,null,null,null,null,null,null,null,null,null,null,null,null,null,null,"¿Dar lugar a procesos fiscales?","No Aplica",null,null,null,null,null,"Está definido el responsable de la ejecución del control y seguimiento",null,null,"Si",{"$f":"+IF(Z72=\"Si\",5,0)","v":5},"Está definido el responsable de la ejecución del control y seguimiento",null,null,"No Aplica",{"$f":"+IF(AE72=\"Si\",5,0)","v":0},"Está definido el responsable de la ejecución del control y seguimiento",null,null,"No Aplica",{"$f":"+IF(AJ72=\"Si\",5,0)","v":0},"Está definido el responsable de la ejecución del control y seguimiento",null,null,"No Aplica",{"$f":"+IF(AO72=\"Si\",5,0)","v":0}]
[null,null,null,null,null,null,null,null,null,null,null,null,null,null,null,"¿Generar pérdida de credibilidad de la entidad?","No Aplica",null,"Metas, objetivos y operaciones ","Incumplimiento en las metas y objetivos institucionales afectando el cumplimiento en las metas de gobierno.",null,null,"El control es automático",null,null,"No",{"$f":"+IF(Z73=\"Si\",15,0)","v":0},"El control es automático",null,null,"No Aplica",{"$f":"+IF(AE73=\"Si\",15,0)","v":0},"El control es automático",null,null,"No Aplica",{"$f":"+IF(AJ73=\"Si\",15,0)","v":0},"El control es automático",null,null,"No Aplica",{"$f":"+IF(AO73=\"Si\",15,0)","v":0}]
[null,null,null,null,null,null,null,null,null,null,null,null,null,null,null,"¿Generar pérdida de credibilidad del sector?","No Aplica",null,null,null,null,null,"El control es manual",null,null,"Si",{"$f":"+IF(Z74=\"Si\",10,0)","v":10},"El control es manual",null,null,"No Aplica",{"$f":"+IF(AE74=\"Si\",10,0)","v":0},"El control es manual",null,null,"No Aplica",{"$f":"+IF(AJ74=\"Si\",10,0)","v":0},"El control es manual",null,null,"No Aplica",{"$f":"+IF(AO74=\"Si\",10,0)","v":0}]
[null,null,null,null,null,null,null,null,null,null,null,null,null,null,null,"¿Ocasionar lesiones físicas o pérdida de vidas humanas? ","No Aplica",null,null,null,null,null,"La frecuencia de ejecución del control y seguimiento es adecuada ",null,null,"No",{"$f":"+IF(Z75=\"Si\",15,0)","v":0},"La frecuencia de ejecución del control y seguimiento es adecuada ",null,null,"No Aplica",{"$f":"+IF(AE75=\"Si\",15,0)","v":0},"La frecuencia de ejecución del control y seguimiento es adecuada ",null,null,"No Aplica",{"$f":"+IF(AJ75=\"Si\",15,0)","v":0},"La frecuencia de ejecución del control y seguimiento es adecuada ",null,null,"No Aplica",{"$f":"+IF(AO75=\"Si\",15,0)","v":0}]
[null,null,null,null,null,null,null,null,null,null,null,null,null,null,null,"¿Afectar la imagen regional?","No Aplica",null,null,null,null,null,"Se cuenta con evidencias de la ejecución y seguimiento del control",null,null,"Si",{"$f":"+IF(Z76=\"Si\",10,0)","v":10},"Se cuenta con evidencias de la ejecución y seguimiento del control",null,null,"No Aplica",{"$f":"+IF(AE76=\"Si\",10,0)","v":0},"Se cuenta con evidencias de la ejecución y seguimiento del control",null,null,"No Aplica",{"$f":"+IF(AJ76=\"Si\",10,0)","v":0},"Se cuenta con evidencias de la ejecución y seguimiento del control",null,null,"No Aplica",{"$f":"+IF(AO76=\"Si\",10,0)","v":0}]
[null,null,null,null,null,null,null,null,null,null,null,null,null,null,null,"¿Afectar la imagen nacional?","No Aplica",null,null,null,null,null,"En el tiempo que lleva la herramienta ha demostrado ser efectiva",null,null,"No",{"$f":"+IF(Z77=\"Si\",30,0)","v":0},"En el tiempo que lleva la herramienta ha demostrado ser efectiva",null,null,"No Aplica",{"$f":"+IF(AE77=\"Si\",30,0)","v":0},"En el tiempo que lleva la herramienta ha demostrado ser efectiva",null,null,"No Aplica",{"$f":"+IF(AJ77=\"Si\",30,0)","v":0},"En el tiempo que lleva la herramienta ha demostrado ser efectiva",null,null,"No Aplica",{"$f":"+IF(AO77=\"Si\",30,0)","v":0}]
[null,null,null,null,null,null,{"$f":"+'Identificación de Riesgos'!$B$4","v":"Procesos Judiciales y Acciones Constitucionales"},{"$f":"+'Identificación de Riesgos'!$C$4","v":"Asesorar y representar en los asuntos relacionados con procesos judicionales, extrajudiciales y administrativos, y adelantar el cobro oportuno por jurisdicción coactiva de las acreencias a favor del Ministerio y de FONVIVIENDA."},{"$f":"+'Identificación de Riesgos'!G9","v":"Factor de Riesgo 6"},{"$f":"+'Identificación de Riesgos'!H9","v":"Causas FR6"},{"$f":"+'Identificación de Riesgos'!J9","v":"Efectos  FR6"},"No Aplica","No Aplica","No Aplica",{"$f":"J642","v":"No Aplica"},"¿Afectar al grupo de funcionarios del proceso?","No Aplica",{"$f":"+J653","v":"No Aplica"},"Afecta la ejecución presupuestal de la entidad","No Aplica",{"$f":"+J666","v":"No Aplica"},{"$f":"+J677","v":"No Aplica"},"DESCRIPCIÓN:",null,"ACCIONES DE CONTROL:",null,null,"DESCRIPCIÓN:",null,"ACCIONES DE CONTROL:",null,null,"DESCRIPCIÓN:",null,"ACCIONES DE CONTROL:",null,null,"DESCRIPCIÓN:",null,"ACCIONES DE CONTROL:",null,null,{"$f":"+J644","v":"No Aplica"},{"$f":"+J679","v":"No Aplica"},{"$f":"+J680","v":"No Aplica"},{"$f":"+J681","v":"No Aplica"},{"$f":"IF(AT78=\"No Aplica\",\"No Aplica\",IF(AT78=\"Asumir\",\"No requiere Acciones Adicionales\",\"Debe definir Acciones Complementarias\"))","v":"No Aplica"},null,null,null,null,{"$f":"+J682","v":"No Aplica"},null,{"$f":"+J683","v":"Jefe Oficina Asesora Jurídica -\n Coordinador Grupo de Procesos Judiciales \ny de Acciones Constitucionales."}]
[null,null,null,null,null,null,null,null,null,null,null,null,null,null,null,"¿Afectar el cumplimiento de metas y objetivos de las dependencias?","No Aplica",null,"Pago de indemnizaciones por acciones legales que pueden afectar el presupuesto total de la entidad","No Aplica"]
[null,null,null,null,null,null,null,null,null,null,null,null,null,null,null,"¿Afectar el cumplimiento de la misión de la entidad?","No Aplica",null,"Pago de sanciones económicas por incumplimiento de la normatividad  que pueden afectar el presupuesto total de la entidad","No Aplica"]
[null,null,null,null,null,null,null,null,"RIESGO No 6","Describa las causas de acuerdo al insumo establecido en el cuadro anterior (letras en color gris)","Describa las consecuencias de acuerdo al insumo establecido en el cuadro anterior (letras en color gris)",null,null,null,null,"¿Afectar el cumplimiento de la misión del sector al que pertenece la entidad?","No Aplica"]
[null,null,null,null,null,null,null,null,"Describa el Riesgo de acuerdo al insumo establecido en el cuadro anterior (letras en color gris)",null,null,null,null,null,null,"¿Generar pérdida de confianza de la entidad, afectando su reputación?","No Aplica",null,"Interrupción de las operaciones de la Entidad","No Aplica"]
[null,null,null,null,null,null,null,null,null,null,null,null,null,null,null,"¿Generar pérdida de recursos económicos?","No Aplica"]
[null,null,null,null,null,null,null,null,null,null,null,null,null,null,null,"¿Afectar la generación de productos o la prestación de servicios?","No Aplica",null,null,null,null,null,"Cargo: Responsable del Control",null,"Evidencia del Control",null,null,"Cargo: Responsable del Control",null,"Evidencia del Control",null,null,"Cargo: Responsable del Control",null,"Evidencia del Control",null,null,"Cargo: Responsable del Control",null,"Evidencia del Control"]
[null,null,null,null,null,null,null,null,null,null,null,null,null,null,null,"¿Da lugar al detrimento de calidad de vida de la comunidad por la pérdida del bien o servicios o los recursos públicos?","No Aplica",null,"Investigación, reclamación o sanción","No Aplica"]
[null,null,null,null,null,null,null,null,null,null,null,null,null,null,null,"¿Generar pérdida de información de la entidad?","No Aplica",null,null,null,null,null,"Naturaleza",null,"Periodicidad de aplicación",null,null,"Naturaleza",null,"Periodicidad de aplicación",null,null,"Naturaleza",null,"Periodicidad de aplicación",null,null,"Naturaleza",null,"Periodicidad de aplicación"]
[null,null,null,null,null,null,null,null,null,null,null,null,null,null,null,"¿Generar intervención de los órganos de control, de la fiscalía u otro Ente?","No Aplica",null,"Información","No Aplica",null,null,"No Aplica",null,"No Aplica",null,null,"No Aplica",null,"No Aplica",null,null,"No Aplica",null,"No Aplica",null,null,"No Aplica",null,"No Aplica"]
[null,null,null,null,null,null,null,null,null,null,null,null,null,null,null,"¿Dar lugar a procesos sancionatorios?","No Aplica",null,null,null,null,null,"Preguntas de Evaluación",null,null,{"$f":"+SUM(AA89:AA95)","v":0},null,"Preguntas de Evaluación",null,null,{"$f":"+SUM(AF89:AF95)","v":0},null,"Preguntas de Evaluación",null,null,{"$f":"+SUM(AK89:AK95)","v":0},null,"Preguntas de Evaluación",null,null,{"$f":"+SUM(AP89:AP95)","v":0}]
[null,null,null,null,null,null,null,null,null,null,null,null,null,null,null,"¿Dar lugar a procesos disciplinarios?","No Aplica",null,"Imagen institucional afectada","No Aplica",null,null,"Existen manuales, instructivos o procedimientos para el manejo del control",null,null,"No Aplica",{"$f":"+IF(Z89=\"Si\",15,0)","v":0},"Existen manuales, instructivos o procedimientos para el manejo del control",null,null,"No Aplica",{"$f":"+IF(AE89=\"Si\",15,0)","v":0},"Existen manuales, instructivos o procedimientos para el manejo del control",null,null,"No Aplica",{"$f":"+IF(AJ89=\"Si\",15,0)","v":0},"Existen manuales, instructivos o procedimientos para el manejo del control",null,null,"No Aplica",{"$f":"+IF(AO89=\"Si\",15,0)","v":0}]
[null,null,null,null,null,null,null,null,null,null,null,null,null,null,null,"¿Dar lugar a procesos fiscales?","No Aplica",null,null,null,null,null,"Está definido el responsable de la ejecución del control y seguimiento",null,null,"No Aplica",{"$f":"+IF(Z90=\"Si\",5,0)","v":0},"Está definido el responsable de la ejecución del control y seguimiento",null,null,"No Aplica",{"$f":"+IF(AE90=\"Si\",5,0)","v":0},"Está definido el responsable de la ejecución del control y seguimiento",null,null,"No Aplica",{"$f":"+IF(AJ90=\"Si\",5,0)","v":0},"Está definido el responsable de la ejecución del control y seguimiento",null,null,"No Aplica",{"$f":"+IF(AO90=\"Si\",5,0)","v":0}]
[null,null,null,null,null,null,null,null,null,null,null,null,null,null,null,"¿Generar pérdida de credibilidad de la entidad?","No Aplica",null,"Metas, objetivos y operaciones ","No Aplica",null,null,"El control es automático",null,null,"No Aplica",{"$f":"+IF(Z91=\"Si\",15,0)","v":0},"El control es automático",null,null,"No Aplica",{"$f":"+IF(AE91=\"Si\",15,0)","v":0},"El control es automático",null,null,"No Aplica",{"$f":"+IF(AJ91=\"Si\",15,0)","v":0},"El control es automático",null,null,"No Aplica",{"$f":"+IF(AO91=\"Si\",15,0)","v":0}]
[null,null,null,null,null,null,null,null,null,null,null,null,null,null,null,"¿Generar pérdida de credibilidad del sector?","No Aplica",null,null,null,null,null,"El control es manual",null,null,"No Aplica",{"$f":"+IF(Z92=\"Si\",10,0)","v":0},"El control es manual",null,null,"No Aplica",{"$f":"+IF(AE92=\"Si\",10,0)","v":0},"El control es manual",null,null,"No Aplica",{"$f":"+IF(AJ92=\"Si\",10,0)","v":0},"El control es manual",null,null,"No Aplica",{"$f":"+IF(AO92=\"Si\",10,0)","v":0}]
[null,null,null,null,null,null,null,null,null,null,null,null,null,null,null,"¿Ocasionar lesiones físicas o pérdida de vidas humanas? ","No Aplica",null,null,null,null,null,"La frecuencia de ejecución del control y seguimiento es adecuada ",null,null,"No Aplica",{"$f":"+IF(Z93=\"Si\",15,0)","v":0},"La frecuencia de ejecución del control y seguimiento es adecuada ",null,null,"No Aplica",{"$f":"+IF(AE93=\"Si\",15,0)","v":0},"La frecuencia de ejecución del control y seguimiento es adecuada ",null,null,"No Aplica",{"$f":"+IF(AJ93=\"Si\",15,0)","v":0},"La frecuencia de ejecución del control y seguimiento es adecuada ",null,null,"No Aplica",{"$f":"+IF(AO93=\"Si\",15,0)","v":0}]
[null,null,null,null,null,null,null,null,null,null,null,null,null,null,null,"¿Afectar la imagen regional?","No Aplica",null,null,null,null,null,"Se cuenta con evidencias de la ejecución y seguimiento del control",null,null,"No Aplica",{"$f":"+IF(Z94=\"Si\",10,0)","v":0},"Se cuenta con evidencias de la ejecución y seguimiento del control",null,null,"No Aplica",{"$f":"+IF(AE94=\"Si\",10,0)","v":0},"Se cuenta con evidencias de la ejecución y seguimiento del control",null,null,"No Aplica",{"$f":"+IF(AJ94=\"Si\",10,0)","v":0},"Se cuenta con evidencias de la ejecución y seguimiento del control",null,null,"No Aplica",{"$f":"+IF(AO94=\"Si\",10,0)","v":0}]
[null,null,null,null,null,null,null,null,null,null,null,null,null,null,null,"¿Afectar la imagen nacional?","No Aplica",null,null,null,null,null,"En el tiempo que lleva la herramienta ha demostrado ser efectiva",null,null,"No Aplica",{"$f":"+IF(Z95=\"Si\",30,0)","v":0},"En el tiempo que lleva la herramienta ha demostrado ser efectiva",null,null,"No Aplica",{"$f":"+IF(AE95=\"Si\",30,0)","v":0},"En el tiempo que lleva la herramienta ha demostrado ser efectiva",null,null,"No Aplica",{"$f":"+IF(AJ95=\"Si\",30,0)","v":0},"En el tiempo que lleva la herramienta ha demostrado ser efectiva",null,null,"No Aplica",{"$f":"+IF(AO95=\"Si\",30,0)","v":0}]
[null,null,null,null,null,null,{"$f":"+'Identificación de Riesgos'!$B$4","v":"Procesos Judiciales y Acciones Constitucionales"},{"$f":"+'Identificación de Riesgos'!$C$4","v":"Asesorar y representar en los asuntos relacionados con procesos judicionales, extrajudiciales y administrativos, y adelantar el cobro oportuno por jurisdicción coactiva de las acreencias a favor del Ministerio y de FONVIVIENDA."},{"$f":"+'Identificación de Riesgos'!G10","v":"Factor de Riesgo 7"},{"$f":"+'Identificación de Riesgos'!H10","v":"Causas FR7"},{"$f":"+'Identificación de Riesgos'!J10","v":"Efectos  FR7"},"No Aplica","No Aplica","No Aplica",{"$f":"K642","v":"No Aplica"},"¿Afectar al grupo de funcionarios del proceso?","No Aplica",{"$f":"+K653","v":"No Aplica"},"Afecta la ejecución presupuestal de la entidad","No Aplica",{"$f":"+K666","v":"No Aplica"},{"$f":"+K677","v":"No Aplica"},"DESCRIPCIÓN:",null,"ACCIONES DE CONTROL:",null,null,"DESCRIPCIÓN:",null,"ACCIONES DE CONTROL:",null,null,"DESCRIPCIÓN:",null,"ACCIONES DE CONTROL:",null,null,"DESCRIPCIÓN:",null,"ACCIONES DE CONTROL:",null,null,{"$f":"+K644","v":"No Aplica"},{"$f":"+K679","v":"No Aplica"},{"$f":"+K680","v":"No Aplica"},{"$f":"+K681","v":"No Aplica"},{"$f":"IF(AT96=\"No Aplica\",\"No Aplica\",IF(AT96=\"Asumir\",\"No requiere Acciones Adicionales\",\"Debe definir Acciones Complementarias\"))","v":"No Aplica"},null,null,null,null,{"$f":"+K682","v":"No Aplica"},null,{"$f":"+K683","v":"Jefe Oficina Asesora Jurídica -\n Coordinador Grupo de Procesos Judiciales \ny de Acciones Constitucionales."}]
[null,null,null,null,null,null,null,null,null,null,null,null,null,null,null,"¿Afectar el cumplimiento de metas y objetivos de las dependencias?","No Aplica",null,"Pago de indemnizaciones por acciones legales que pueden afectar el presupuesto total de la entidad","No Aplica"]
[null,null,null,null,null,null,null,null,null,null,null,null,null,null,null,"¿Afectar el cumplimiento de la misión de la entidad?","No Aplica",null,"Pago de sanciones económicas por incumplimiento de la normatividad  que pueden afectar el presupuesto total de la entidad","No Aplica"]
[null,null,null,null,null,null,null,null,"RIESGO No 7","Describa las causas de acuerdo al insumo establecido en el cuadro anterior (letras en color gris)","Describa las consecuencias de acuerdo al insumo establecido en el cuadro anterior (letras en color gris)",null,null,null,null,"¿Afectar el cumplimiento de la misión del sector al que pertenece la entidad?","No Aplica"]
[null,null,null,null,null,null,null,null,"Describa el Riesgo de acuerdo al insumo establecido en el cuadro anterior (letras en color gris)",null,null,null,null,null,null,"¿Generar pérdida de confianza de la entidad, afectando su reputación?","No Aplica",null,"Interrupción de las operaciones de la Entidad","No Aplica"]
[null,null,null,null,null,null,null,null,null,null,null,null,null,null,null,"¿Generar pérdida de recursos económicos?","No Aplica"]
[null,null,null,null,null,null,null,null,null,null,null,null,null,null,null,"¿Afectar la generación de productos o la prestación de servicios?","No Aplica",null,null,null,null,null,"Cargo: Responsable del Control",null,"Evidencia del Control",null,null,"Cargo: Responsable del Control",null,"Evidencia del Control",null,null,"Cargo: Responsable del Control",null,"Evidencia del Control",null,null,"Cargo: Responsable del Control",null,"Evidencia del Control"]
[null,null,null,null,null,null,null,null,null,null,null,null,null,null,null,"¿Da lugar al detrimento de calidad de vida de la comunidad por la pérdida del bien o servicios o los recursos públicos?","No Aplica",null,"Investigación, reclamación o sanción","No Aplica"]
[null,null,null,null,null,null,null,null,null,null,null,null,null,null,null,"¿Generar pérdida de información de la entidad?","No Aplica",null,null,null,null,null,"Naturaleza",null,"Periodicidad de aplicación",null,null,"Naturaleza",null,"Periodicidad de aplicación",null,null,"Naturaleza",null,"Periodicidad de aplicación",null,null,"Naturaleza",null,"Periodicidad de aplicación"]
[null,null,null,null,null,null,null,null,null,null,null,null,null,null,null,"¿Generar intervención de los órganos de control, de la fiscalía u otro Ente?","No Aplica",null,"Información","No Aplica",null,null,"No Aplica",null,"No Aplica",null,null,"No Aplica",null,"No Aplica",null,null,"No Aplica",null,"No Aplica",null,null,"No Aplica",null,"No Aplica"]
[null,null,null,null,null,null,null,null,null,null,null,null,null,null,null,"¿Dar lugar a procesos sancionatorios?","No Aplica",null,null,null,null,null,"Preguntas de Evaluación",null,null,{"$f":"+SUM(AA107:AA113)","v":0},null,"Preguntas de Evaluación",null,null,{"$f":"+SUM(AF107:AF113)","v":0},null,"Preguntas de Evaluación",null,null,{"$f":"+SUM(AK107:AK113)","v":0},null,"Preguntas de Evaluación",null,null,{"$f":"+SUM(AP107:AP113)","v":0}]
[null,null,null,null,null,null,null,null,null,null,null,null,null,null,null,"¿Dar lugar a procesos disciplinarios?","No Aplica",null,"Imagen institucional afectada","No Aplica",null,null,"Existen manuales, instructivos o procedimientos para el manejo del control",null,null,"No Aplica",{"$f":"+IF(Z107=\"Si\",15,0)","v":0},"Existen manuales, instructivos o procedimientos para el manejo del control",null,null,"No Aplica",{"$f":"+IF(AE107=\"Si\",15,0)","v":0},"Existen manuales, instructivos o procedimientos para el manejo del control",null,null,"No Aplica",{"$f":"+IF(AJ107=\"Si\",15,0)","v":0},"Existen manuales, instructivos o procedimientos para el manejo del control",null,null,"No Aplica",{"$f":"+IF(AO107=\"Si\",15,0)","v":0}]
[null,null,null,null,null,null,null,null,null,null,null,null,null,null,null,"¿Dar lugar a procesos fiscales?","No Aplica",null,null,null,null,null,"Está definido el responsable de la ejecución del control y seguimiento",null,null,"No Aplica",{"$f":"+IF(Z108=\"Si\",5,0)","v":0},"Está definido el responsable de la ejecución del control y seguimiento",null,null,"No Aplica",{"$f":"+IF(AE108=\"Si\",5,0)","v":0},"Está definido el responsable de la ejecución del control y seguimiento",null,null,"No Aplica",{"$f":"+IF(AJ108=\"Si\",5,0)","v":0},"Está definido el responsable de la ejecución del control y seguimiento",null,null,"No Aplica",{"$f":"+IF(AO108=\"Si\",5,0)","v":0}]
[null,null,null,null,null,null,null,null,null,null,null,null,null,null,null,"¿Generar pérdida de credibilidad de la entidad?","No Aplica",null,"Metas, objetivos y operaciones ","No Aplica",null,null,"El control es automático",null,null,"No Aplica",{"$f":"+IF(Z109=\"Si\",15,0)","v":0},"El control es automático",null,null,"No Aplica",{"$f":"+IF(AE109=\"Si\",15,0)","v":0},"El control es automático",null,null,"No Aplica",{"$f":"+IF(AJ109=\"Si\",15,0)","v":0},"El control es automático",null,null,"No Aplica",{"$f":"+IF(AO109=\"Si\",15,0)","v":0}]
[null,null,null,null,null,null,null,null,null,null,null,null,null,null,null,"¿Generar pérdida de credibilidad del sector?","No Aplica",null,null,null,null,null,"El control es manual",null,null,"No Aplica",{"$f":"+IF(Z110=\"Si\",10,0)","v":0},"El control es manual",null,null,"No Aplica",{"$f":"+IF(AE110=\"Si\",10,0)","v":0},"El control es manual",null,null,"No Aplica",{"$f":"+IF(AJ110=\"Si\",10,0)","v":0},"El control es manual",null,null,"No Aplica",{"$f":"+IF(AO110=\"Si\",10,0)","v":0}]
[null,null,null,null,null,null,null,null,null,null,null,null,null,null,null,"¿Ocasionar lesiones físicas o pérdida de vidas humanas? ","No Aplica",null,null,null,null,null,"La frecuencia de ejecución del control y seguimiento es adecuada ",null,null,"No Aplica",{"$f":"+IF(Z111=\"Si\",15,0)","v":0},"La frecuencia de ejecución del control y seguimiento es adecuada ",null,null,"No Aplica",{"$f":"+IF(AE111=\"Si\",15,0)","v":0},"La frecuencia de ejecución del control y seguimiento es adecuada ",null,null,"No Aplica",{"$f":"+IF(AJ111=\"Si\",15,0)","v":0},"La frecuencia de ejecución del control y seguimiento es adecuada ",null,null,"No Aplica",{"$f":"+IF(AO111=\"Si\",15,0)","v":0}]
[null,null,null,null,null,null,null,null,null,null,null,null,null,null,null,"¿Afectar la imagen regional?","No Aplica",null,null,null,null,null,"Se cuenta con evidencias de la ejecución y seguimiento del control",null,null,"No Aplica",{"$f":"+IF(Z112=\"Si\",10,0)","v":0},"Se cuenta con evidencias de la ejecución y seguimiento del control",null,null,"No Aplica",{"$f":"+IF(AE112=\"Si\",10,0)","v":0},"Se cuenta con evidencias de la ejecución y seguimiento del control",null,null,"No Aplica",{"$f":"+IF(AJ112=\"Si\",10,0)","v":0},"Se cuenta con evidencias de la ejecución y seguimiento del control",null,null,"No Aplica",{"$f":"+IF(AO112=\"Si\",10,0)","v":0}]
[null,null,null,null,null,null,null,null,null,null,null,null,null,null,null,"¿Afectar la imagen nacional?","No Aplica",null,null,null,null,null,"En el tiempo que lleva la herramienta ha demostrado ser efectiva",null,null,"No Aplica",{"$f":"+IF(Z113=\"Si\",30,0)","v":0},"En el tiempo que lleva la herramienta ha demostrado ser efectiva",null,null,"No Aplica",{"$f":"+IF(AE113=\"Si\",30,0)","v":0},"En el tiempo que lleva la herramienta ha demostrado ser efectiva",null,null,"No Aplica",{"$f":"+IF(AJ113=\"Si\",30,0)","v":0},"En el tiempo que lleva la herramienta ha demostrado ser efectiva",null,null,"No Aplica",{"$f":"+IF(AO113=\"Si\",30,0)","v":0}]
[null,null,null,null,null,null,{"$f":"+'Identificación de Riesgos'!$B$4","v":"Procesos Judiciales y Acciones Constitucionales"},{"$f":"+'Identificación de Riesgos'!$C$4","v":"Asesorar y representar en los asuntos relacionados con procesos judicionales, extrajudiciales y administrativos, y adelantar el cobro oportuno por jurisdicción coactiva de las acreencias a favor del Ministerio y de FONVIVIENDA."},{"$f":"+'Identificación de Riesgos'!G11","v":"Factor de Riesgo 8"},{"$f":"+'Identificación de Riesgos'!H11","v":"Causas FR8"},{"$f":"+'Identificación de Riesgos'!J11","v":"Efectos  FR8"},"No Aplica","No Aplica","No Aplica",{"$f":"L642","v":"No Aplica"},"¿Afectar al grupo de funcionarios del proceso?","No Aplica",{"$f":"+L653","v":"No Aplica"},"Afecta la ejecución presupuestal de la entidad","No Aplica",{"$f":"+L666","v":"No Aplica"},{"$f":"+L677","v":"No Aplica"},"DESCRIPCIÓN:",null,"ACCIONES DE CONTROL:",null,null,"DESCRIPCIÓN:",null,"ACCIONES DE CONTROL:",null,null,"DESCRIPCIÓN:",null,"ACCIONES DE CONTROL:",null,null,"DESCRIPCIÓN:",null,"ACCIONES DE CONTROL:",null,null,{"$f":"+L644","v":"No Aplica"},{"$f":"+L679","v":"No Aplica"},{"$f":"+L680","v":"No Aplica"},{"$f":"+L681","v":"No Aplica"},{"$f":"IF(AT114=\"No Aplica\",\"No Aplica\",IF(AT114=\"Asumir\",\"No requiere Acciones Adicionales\",\"Debe definir Acciones Complementarias\"))","v":"No Aplica"},null,null,null,null,{"$f":"+L682","v":"No Aplica"},null,{"$f":"+L683","v":"Jefe Oficina Asesora Jurídica -\n Coordinador Grupo de Procesos Judiciales \ny de Acciones Constitucionales."}]
[null,null,null,null,null,null,null,null,null,null,null,null,null,null,null,"¿Afectar el cumplimiento de metas y objetivos de las dependencias?","No Aplica",null,"Pago de indemnizaciones por acciones legales que pueden afectar el presupuesto total de la entidad","No Aplica"]
[null,null,null,null,null,null,null,null,null,null,null,null,null,null,null,"¿Afectar el cumplimiento de la misión de la entidad?","No Aplica",null,"Pago de sanciones económicas por incumplimiento de la normatividad  que pueden afectar el presupuesto total de la entidad","No Aplica"]
[null,null,null,null,null,null,null,null,"RIESGO No 8","Describa las causas de acuerdo al insumo establecido en el cuadro anterior (letras en color gris)","Describa las consecuencias de acuerdo al insumo establecido en el cuadro anterior (letras en color gris)",null,null,null,null,"¿Afectar el cumplimiento de la misión del sector al que pertenece la entidad?","No Aplica"]
[null,null,null,null,null,null,null,null,"Describa el Riesgo de acuerdo al insumo establecido en el cuadro anterior (letras en color gris)",null,null,null,null,null,null,"¿Generar pérdida de confianza de la entidad, afectando su reputación?","No Aplica",null,"Interrupción de las operaciones de la Entidad","No Aplica"]
[null,null,null,null,null,null,null,null,null,null,null,null,null,null,null,"¿Generar pérdida de recursos económicos?","No Aplica"]
[null,null,null,null,null,null,null,null,null,null,null,null,null,null,null,"¿Afectar la generación de productos o la prestación de servicios?","No Aplica",null,null,null,null,null,"Cargo: Responsable del Control",null,"Evidencia del Control",null,null,"Cargo: Responsable del Control",null,"Evidencia del Control",null,null,"Cargo: Responsable del Control",null,"Evidencia del Control",null,null,"Cargo: Responsable del Control",null,"Evidencia del Control"]
[null,null,null,null,null,null,null,null,null,null,null,null,null,null,null,"¿Da lugar al detrimento de calidad de vida de la comunidad por la pérdida del bien o servicios o los recursos públicos?","No Aplica",null,"Investigación, reclamación o sanción","No Aplica"]
[null,null,null,null,null,null,null,null,null,null,null,null,null,null,null,"¿Generar pérdida de información de la entidad?","No Aplica",null,null,null,null,null,"Naturaleza",null,"Periodicidad de aplicación",null,null,"Naturaleza",null,"Periodicidad de aplicación",null,null,"Naturaleza",null,"Periodicidad de aplicación",null,null,"Naturaleza",null,"Periodicidad de aplicación"]
[null,null,null,null,null,null,null,null,null,null,null,null,null,null,null,"¿Generar intervención de los órganos de control, de la fiscalía u otro Ente?","No Aplica",null,"Información","No Aplica",null,null,"No Aplica",null,"No Aplica",null,null,"No Aplica",null,"No Aplica",null,null,"No Aplica",null,"No Aplica",null,null,"No Aplica",null,"No Aplica"]
[null,null,null,null,null,null,null,null,null,null,null,null,null,null,null,"¿Dar lugar a procesos sancionatorios?","No Aplica",null,null,null,null,null,"Preguntas de Evaluación",null,null,{"$f":"+SUM(AA125:AA131)","v":0},null,"Preguntas de Evaluación",null,null,{"$f":"+SUM(AF125:AF131)","v":0},null,"Preguntas de Evaluación",null,null,{"$f":"+SUM(AK125:AK131)","v":0},null,"Preguntas de Evaluación",null,null,{"$f":"+SUM(AP125:AP131)","v":0}]
[null,null,null,null,null,null,null,null,null,null,null,null,null,null,null,"¿Dar lugar a procesos disciplinarios?","No Aplica",null,"Imagen institucional afectada","No Aplica",null,null,"Existen manuales, instructivos o procedimientos para el manejo del control",null,null,"No Aplica",{"$f":"+IF(Z125=\"Si\",15,0)","v":0},"Existen manuales, instructivos o procedimientos para el manejo del control",null,null,"No Aplica",{"$f":"+IF(AE125=\"Si\",15,0)","v":0},"Existen manuales, instructivos o procedimientos para el manejo del control",null,null,"No Aplica",{"$f":"+IF(AJ125=\"Si\",15,0)","v":0},"Existen manuales, instructivos o procedimientos para el manejo del control",null,null,"No Aplica",{"$f":"+IF(AO125=\"Si\",15,0)","v":0}]
[null,null,null,null,null,null,null,null,null,null,null,null,null,null,null,"¿Dar lugar a procesos fiscales?","No Aplica",null,null,null,null,null,"Está definido el responsable de la ejecución del control y seguimiento",null,null,"No Aplica",{"$f":"+IF(Z126=\"Si\",5,0)","v":0},"Está definido el responsable de la ejecución del control y seguimiento",null,null,"No Aplica",{"$f":"+IF(AE126=\"Si\",5,0)","v":0},"Está definido el responsable de la ejecución del control y seguimiento",null,null,"No Aplica",{"$f":"+IF(AJ126=\"Si\",5,0)","v":0},"Está definido el responsable de la ejecución del control y seguimiento",null,null,"No Aplica",{"$f":"+IF(AO126=\"Si\",5,0)","v":0}]
[null,null,null,null,null,null,null,null,null,null,null,null,null,null,null,"¿Generar pérdida de credibilidad de la entidad?","No Aplica",null,"Metas, objetivos y operaciones ","No Aplica",null,null,"El control es automático",null,null,"No Aplica",{"$f":"+IF(Z127=\"Si\",15,0)","v":0},"El control es automático",null,null,"No Aplica",{"$f":"+IF(AE127=\"Si\",15,0)","v":0},"El control es automático",null,null,"No Aplica",{"$f":"+IF(AJ127=\"Si\",15,0)","v":0},"El control es automático",null,null,"No Aplica",{"$f":"+IF(AO127=\"Si\",15,0)","v":0}]
[null,null,null,null,null,null,null,null,null,null,null,null,null,null,null,"¿Generar pérdida de credibilidad del sector?","No Aplica",null,null,null,null,null,"El control es manual",null,null,"No Aplica",{"$f":"+IF(Z128=\"Si\",10,0)","v":0},"El control es manual",null,null,"No Aplica",{"$f":"+IF(AE128=\"Si\",10,0)","v":0},"El control es manual",null,null,"No Aplica",{"$f":"+IF(AJ128=\"Si\",10,0)","v":0},"El control es manual",null,null,"No Aplica",{"$f":"+IF(AO128=\"Si\",10,0)","v":0}]
[null,null,null,null,null,null,null,null,null,null,null,null,null,null,null,"¿Ocasionar lesiones físicas o pérdida de vidas humanas? ","No Aplica",null,null,null,null,null,"La frecuencia de ejecución del control y seguimiento es adecuada ",null,null,"No Aplica",{"$f":"+IF(Z129=\"Si\",15,0)","v":0},"La frecuencia de ejecución del control y seguimiento es adecuada ",null,null,"No Aplica",{"$f":"+IF(AE129=\"Si\",15,0)","v":0},"La frecuencia de ejecución del control y seguimiento es adecuada ",null,null,"No Aplica",{"$f":"+IF(AJ129=\"Si\",15,0)","v":0},"La frecuencia de ejecución del control y seguimiento es adecuada ",null,null,"No Aplica",{"$f":"+IF(AO129=\"Si\",15,0)","v":0}]
[null,null,null,null,null,null,null,null,null,null,null,null,null,null,null,"¿Afectar la imagen regional?","No Aplica",null,null,null,null,null,"Se cuenta con evidencias de la ejecución y seguimiento del control",null,null,"No Aplica",{"$f":"+IF(Z130=\"Si\",10,0)","v":0},"Se cuenta con evidencias de la ejecución y seguimiento del control",null,null,"No Aplica",{"$f":"+IF(AE130=\"Si\",10,0)","v":0},"Se cuenta con evidencias de la ejecución y seguimiento del control",null,null,"No Aplica",{"$f":"+IF(AJ130=\"Si\",10,0)","v":0},"Se cuenta con evidencias de la ejecución y seguimiento del control",null,null,"No Aplica",{"$f":"+IF(AO130=\"Si\",10,0)","v":0}]
[null,null,null,null,null,null,null,null,null,null,null,null,null,null,null,"¿Afectar la imagen nacional?","No Aplica",null,null,null,null,null,"En el tiempo que lleva la herramienta ha demostrado ser efectiva",null,null,"No Aplica",{"$f":"+IF(Z131=\"Si\",30,0)","v":0},"En el tiempo que lleva la herramienta ha demostrado ser efectiva",null,null,"No Aplica",{"$f":"+IF(AE131=\"Si\",30,0)","v":0},"En el tiempo que lleva la herramienta ha demostrado ser efectiva",null,null,"No Aplica",{"$f":"+IF(AJ131=\"Si\",30,0)","v":0},"En el tiempo que lleva la herramienta ha demostrado ser efectiva",null,null,"No Aplica",{"$f":"+IF(AO131=\"Si\",30,0)","v":0}]
[null,null,null,null,null,null,{"$f":"+'Identificación de Riesgos'!$B$4","v":"Procesos Judiciales y Acciones Constitucionales"},{"$f":"+'Identificación de Riesgos'!$C$4","v":"Asesorar y representar en los asuntos relacionados con procesos judicionales, extrajudiciales y administrativos, y adelantar el cobro oportuno por jurisdicción coactiva de las acreencias a favor del Ministerio y de FONVIVIENDA."},{"$f":"+'Identificación de Riesgos'!G12","v":"Factor de Riesgo 9"},{"$f":"+'Identificación de Riesgos'!H12","v":"Causas FR9"},{"$f":"+'Identificación de Riesgos'!J12","v":"Efectos  FR9"},"No Aplica","No Aplica","No Aplica",{"$f":"M642","v":"No Aplica"},"¿Afectar al grupo de funcionarios del proceso?","No Aplica",{"$f":"+M653","v":"No Aplica"},"Afecta la ejecución presupuestal de la entidad","No Aplica",{"$f":"+M666","v":"No Aplica"},{"$f":"+M677","v":"No Aplica"},"DESCRIPCIÓN:",null,"ACCIONES DE CONTROL:",null,null,"DESCRIPCIÓN:",null,"ACCIONES DE CONTROL:",null,null,"DESCRIPCIÓN:",null,"ACCIONES DE CONTROL:",null,null,"DESCRIPCIÓN:",null,"ACCIONES DE CONTROL:",null,null,{"$f":"+M644","v":"No Aplica"},{"$f":"+M679","v":"No Aplica"},{"$f":"+M680","v":"No Aplica"},{"$f":"+M681","v":"No Aplica"},{"$f":"IF(AT132=\"No Aplica\",\"No Aplica\",IF(AT132=\"Asumir\",\"No requiere Acciones Adicionales\",\"Debe definir Acciones Complementarias\"))","v":"No Aplica"},null,null,null,null,{"$f":"+M682","v":"No Aplica"},null,{"$f":"+M683","v":"Jefe Oficina Asesora Jurídica -\n Coordinador Grupo de Procesos Judiciales \ny de Acciones Constitucionales."}]
[null,null,null,null,null,null,null,null,null,null,null,null,null,null,null,"¿Afectar el cumplimiento de metas y objetivos de las dependencias?","No Aplica",null,"Pago de indemnizaciones por acciones legales que pueden afectar el presupuesto total de la entidad","No Aplica"]
[null,null,null,null,null,null,null,null,null,null,null,null,null,null,null,"¿Afectar el cumplimiento de la misión de la entidad?","No Aplica",null,"Pago de sanciones económicas por incumplimiento de la normatividad  que pueden afectar el presupuesto total de la entidad","No Aplica"]
[null,null,null,null,null,null,null,null,"RIESGO No 9","Describa las causas de acuerdo al insumo establecido en el cuadro anterior (letras en color gris)","Describa las consecuencias de acuerdo al insumo establecido en el cuadro anterior (letras en color gris)",null,null,null,null,"¿Afectar el cumplimiento de la misión del sector al que pertenece la entidad?","No Aplica"]
[null,null,null,null,null,null,null,null,"Describa el Riesgo de acuerdo al insumo establecido en el cuadro anterior (letras en color gris)",null,null,null,null,null,null,"¿Generar pérdida de confianza de la entidad, afectando su reputación?","No Aplica",null,"Interrupción de las operaciones de la Entidad","No Aplica"]
[null,null,null,null,null,null,null,null,null,null,null,null,null,null,null,"¿Generar pérdida de recursos económicos?","No Aplica"]
[null,null,null,null,null,null,null,null,null,null,null,null,null,null,null,"¿Afectar la generación de productos o la prestación de servicios?","No Aplica",null,null,null,null,null,"Cargo: Responsable del Control",null,"Evidencia del Control",null,null,"Cargo: Responsable del Control",null,"Evidencia del Control",null,null,"Cargo: Responsable del Control",null,"Evidencia del Control",null,null,"Cargo: Responsable del Control",null,"Evidencia del Control"]
[null,null,null,null,null,null,null,null,null,null,null,null,null,null,null,"¿Da lugar al detrimento de calidad de vida de la comunidad por la pérdida del bien o servicios o los recursos públicos?","No Aplica",null,"Investigación, reclamación o sanción","No Aplica"]
[null,null,null,null,null,null,null,null,null,null,null,null,null,null,null,"¿Generar pérdida de información de la entidad?","No Aplica",null,null,null,null,null,"Naturaleza",null,"Periodicidad de aplicación",null,null,"Naturaleza",null,"Periodicidad de aplicación",null,null,"Naturaleza",null,"Periodicidad de aplicación",null,null,"Naturaleza",null,"Periodicidad de aplicación"]
[null,null,null,null,null,null,null,null,null,null,null,null,null,null,null,"¿Generar intervención de los órganos de control, de la fiscalía u otro Ente?","No Aplica",null,"Información","No Aplica",null,null,"No Aplica",null,"No Aplica",null,null,"No Aplica",null,"No Aplica",null,null,"No Aplica",null,"No Aplica",null,null,"No Aplica",null,"No Aplica"]
[null,null,null,null,null,null,null,null,null,null,null,null,null,null,null,"¿Dar lugar a procesos sancionatorios?","No Aplica",null,null,null,null,null,"Preguntas de Evaluación",null,null,{"$f":"+SUM(AA143:AA149)","v":0},null,"Preguntas de Evaluación",null,null,{"$f":"+SUM(AF143:AF149)","v":0},null,"Preguntas de Evaluación",null,null,{"$f":"+SUM(AK143:AK149)","v":0},null,"Preguntas de Evaluación",null,null,{"$f":"+SUM(AP143:AP149)","v":0}]
[null,null,null,null,null,null,null,null,null,null,null,null,null,null,null,"¿Dar lugar a procesos disciplinarios?","No Aplica",null,"Imagen institucional afectada","No Aplica",null,null,"Existen manuales, instructivos o procedimientos para el manejo del control",null,null,"No Aplica",{"$f":"+IF(Z143=\"Si\",15,0)","v":0},"Existen manuales, instructivos o procedimientos para el manejo del control",null,null,"No Aplica",{"$f":"+IF(AE143=\"Si\",15,0)","v":0},"Existen manuales, instructivos o procedimientos para el manejo del control",null,null,"No Aplica",{"$f":"+IF(AJ143=\"Si\",15,0)","v":0},"Existen manuales, instructivos o procedimientos para el manejo del control",null,null,"No Aplica",{"$f":"+IF(AO143=\"Si\",15,0)","v":0}]
[null,null,null,null,null,null,null,null,null,null,null,null,null,null,null,"¿Dar lugar a procesos fiscales?","No Aplica",null,null,null,null,null,"Está definido el responsable de la ejecución del control y seguimiento",null,null,"No Aplica",{"$f":"+IF(Z144=\"Si\",5,0)","v":0},"Está definido el responsable de la ejecución del control y seguimiento",null,null,"No Aplica",{"$f":"+IF(AE144=\"Si\",5,0)","v":0},"Está definido el responsable de la ejecución del control y seguimiento",null,null,"No Aplica",{"$f":"+IF(AJ144=\"Si\",5,0)","v":0},"Está definido el responsable de la ejecución del control y seguimiento",null,null,"No Aplica",{"$f":"+IF(AO144=\"Si\",5,0)","v":0}]
[null,null,null,null,null,null,null,null,null,null,null,null,null,null,null,"¿Generar pérdida de credibilidad de la entidad?","No Aplica",null,"Metas, objetivos y operaciones ","No Aplica",null,null,"El control es automático",null,null,"No Aplica",{"$f":"+IF(Z145=\"Si\",15,0)","v":0},"El control es automático",null,null,"No Aplica",{"$f":"+IF(AE145=\"Si\",15,0)","v":0},"El control es automático",null,null,"No Aplica",{"$f":"+IF(AJ145=\"Si\",15,0)","v":0},"El control es automático",null,null,"No Aplica",{"$f":"+IF(AO145=\"Si\",15,0)","v":0}]
[null,null,null,null,null,null,null,null,null,null,null,null,null,null,null,"¿Generar pérdida de credibilidad del sector?","No Aplica",null,null,null,null,null,"El control es manual",null,null,"No Aplica",{"$f":"+IF(Z146=\"Si\",10,0)","v":0},"El control es manual",null,null,"No Aplica",{"$f":"+IF(AE146=\"Si\",10,0)","v":0},"El control es manual",null,null,"No Aplica",{"$f":"+IF(AJ146=\"Si\",10,0)","v":0},"El control es manual",null,null,"No Aplica",{"$f":"+IF(AO146=\"Si\",10,0)","v":0}]
[null,null,null,null,null,null,null,null,null,null,null,null,null,null,null,"¿Ocasionar lesiones físicas o pérdida de vidas humanas? ","No Aplica",null,null,null,null,null,"La frecuencia de ejecución del control y seguimiento es adecuada ",null,null,"No Aplica",{"$f":"+IF(Z147=\"Si\",15,0)","v":0},"La frecuencia de ejecución del control y seguimiento es adecuada ",null,null,"No Aplica",{"$f":"+IF(AE147=\"Si\",15,0)","v":0},"La frecuencia de ejecución del control y seguimiento es adecuada ",null,null,"No Aplica",{"$f":"+IF(AJ147=\"Si\",15,0)","v":0},"La frecuencia de ejecución del control y seguimiento es adecuada ",null,null,"No Aplica",{"$f":"+IF(AO147=\"Si\",15,0)","v":0}]
[null,null,null,null,null,null,null,null,null,null,null,null,null,null,null,"¿Afectar la imagen regional?","No Aplica",null,null,null,null,null,"Se cuenta con evidencias de la ejecución y seguimiento del control",null,null,"No Aplica",{"$f":"+IF(Z148=\"Si\",10,0)","v":0},"Se cuenta con evidencias de la ejecución y seguimiento del control",null,null,"No Aplica",{"$f":"+IF(AE148=\"Si\",10,0)","v":0},"Se cuenta con evidencias de la ejecución y seguimiento del control",null,null,"No Aplica",{"$f":"+IF(AJ148=\"Si\",10,0)","v":0},"Se cuenta con evidencias de la ejecución y seguimiento del control",null,null,"No Aplica",{"$f":"+IF(AO148=\"Si\",10,0)","v":0}]
[null,null,null,null,null,null,null,null,null,null,null,null,null,null,null,"¿Afectar la imagen nacional?","No Aplica",null,null,null,null,null,"En el tiempo que lleva la herramienta ha demostrado ser efectiva",null,null,"No Aplica",{"$f":"+IF(Z149=\"Si\",30,0)","v":0},"En el tiempo que lleva la herramienta ha demostrado ser efectiva",null,null,"No Aplica",{"$f":"+IF(AE149=\"Si\",30,0)","v":0},"En el tiempo que lleva la herramienta ha demostrado ser efectiva",null,null,"No Aplica",{"$f":"+IF(AJ149=\"Si\",30,0)","v":0},"En el tiempo que lleva la herramienta ha demostrado ser efectiva",null,null,"No Aplica",{"$f":"+IF(AO149=\"Si\",30,0)","v":0}]
[null,null,null,null,null,null,{"$f":"+'Identificación de Riesgos'!$B$4","v":"Procesos Judiciales y Acciones Constitucionales"},{"$f":"+'Identificación de Riesgos'!$C$4","v":"Asesorar y representar en los asuntos relacionados con procesos judicionales, extrajudiciales y administrativos, y adelantar el cobro oportuno por jurisdicción coactiva de las acreencias a favor del Ministerio y de FONVIVIENDA."},{"$f":"+'Identificación de Riesgos'!G13","v":"Factor de Riesgo 10"},{"$f":"+'Identificación de Riesgos'!H13","v":"Causas FR10"},{"$f":"+'Identificación de Riesgos'!J13","v":"Efectos  FR10"},"No Aplica","No Aplica","No Aplica",{"$f":"N642","v":"No Aplica"},"¿Afectar al grupo de funcionarios del proceso?","No Aplica",{"$f":"+N653","v":"No Aplica"},"Afecta la ejecución presupuestal de la entidad","No Aplica",{"$f":"+N666","v":"No Aplica"},{"$f":"+N677","v":"No Aplica"},"DESCRIPCIÓN:",null,"ACCIONES DE CONTROL:",null,null,"DESCRIPCIÓN:",null,"ACCIONES DE CONTROL:",null,null,"DESCRIPCIÓN:",null,"ACCIONES DE CONTROL:",null,null,"DESCRIPCIÓN:",null,"ACCIONES DE CONTROL:",null,null,{"$f":"+N644","v":"No Aplica"},{"$f":"+N679","v":"No Aplica"},{"$f":"+N680","v":"No Aplica"},{"$f":"+N681","v":"No Aplica"},{"$f":"IF(AT150=\"No Aplica\",\"No Aplica\",IF(AT150=\"Asumir\",\"No requiere Acciones Adicionales\",\"Debe definir Acciones Complementarias\"))","v":"No Aplica"},null,null,null,null,{"$f":"+N682","v":"No Aplica"},null,{"$f":"+N683","v":"Jefe Oficina Asesora Jurídica -\n Coordinador Grupo de Procesos Judiciales \ny de Acciones Constitucionales."}]
[null,null,null,null,null,null,null,null,null,null,null,null,null,null,null,"¿Afectar el cumplimiento de metas y objetivos de las dependencias?","No Aplica",null,"Pago de indemnizaciones por acciones legales que pueden afectar el presupuesto total de la entidad","No Aplica"]
[null,null,null,null,null,null,null,null,null,null,null,null,null,null,null,"¿Afectar el cumplimiento de la misión de la entidad?","No Aplica",null,"Pago de sanciones económicas por incumplimiento de la normatividad  que pueden afectar el presupuesto total de la entidad","No Aplica"]
[null,null,null,null,null,null,null,null,"RIESGO No 10","Describa las causas de acuerdo al insumo establecido en el cuadro anterior (letras en color gris)","Describa las consecuencias de acuerdo al insumo establecido en el cuadro anterior (letras en color gris)",null,null,null,null,"¿Afectar el cumplimiento de la misión del sector al que pertenece la entidad?","No Aplica"]
[null,null,null,null,null,null,null,null,"Describa el Riesgo de acuerdo al insumo establecido en el cuadro anterior (letras en color gris)",null,null,null,null,null,null,"¿Generar pérdida de confianza de la entidad, afectando su reputación?","No Aplica",null,"Interrupción de las operaciones de la Entidad","No Aplica"]
[null,null,null,null,null,null,null,null,null,null,null,null,null,null,null,"¿Generar pérdida de recursos económicos?","No Aplica"]
[null,null,null,null,null,null,null,null,null,null,null,null,null,null,null,"¿Afectar la generación de productos o la prestación de servicios?","No Aplica",null,null,null,null,null,"Cargo: Responsable del Control",null,"Evidencia del Control",null,null,"Cargo: Responsable del Control",null,"Evidencia del Control",null,null,"Cargo: Responsable del Control",null,"Evidencia del Control",null,null,"Cargo: Responsable del Control",null,"Evidencia del Control"]
[null,null,null,null,null,null,null,null,null,null,null,null,null,null,null,"¿Da lugar al detrimento de calidad de vida de la comunidad por la pérdida del bien o servicios o los recursos públicos?","No Aplica",null,"Investigación, reclamación o sanción","No Aplica"]
[null,null,null,null,null,null,null,null,null,null,null,null,null,null,null,"¿Generar pérdida de información de la entidad?","No Aplica",null,null,null,null,null,"Naturaleza",null,"Periodicidad de aplicación",null,null,"Naturaleza",null,"Periodicidad de aplicación",null,null,"Naturaleza",null,"Periodicidad de aplicación",null,null,"Naturaleza",null,"Periodicidad de aplicación"]
[null,null,null,null,null,null,null,null,null,null,null,null,null,null,null,"¿Generar intervención de los órganos de control, de la fiscalía u otro Ente?","No Aplica",null,"Información","No Aplica",null,null,"No Aplica",null,"No Aplica",null,null,"No Aplica",null,"No Aplica",null,null,"No Aplica",null,"No Aplica",null,null,"No Aplica",null,"No Aplica"]
[null,null,null,null,null,null,null,null,null,null,null,null,null,null,null,"¿Dar lugar a procesos sancionatorios?","No Aplica",null,null,null,null,null,"Preguntas de Evaluación",null,null,{"$f":"+SUM(AA161:AA167)","v":0},null,"Preguntas de Evaluación",null,null,{"$f":"+SUM(AF161:AF167)","v":0},null,"Preguntas de Evaluación",null,null,{"$f":"+SUM(AK161:AK167)","v":0},null,"Preguntas de Evaluación",null,null,{"$f":"+SUM(AP161:AP167)","v":0}]
[null,null,null,null,null,null,null,null,null,null,null,null,null,null,null,"¿Dar lugar a procesos disciplinarios?","No Aplica",null,"Imagen institucional afectada","No Aplica",null,null,"Existen manuales, instructivos o procedimientos para el manejo del control",null,null,"No Aplica",{"$f":"+IF(Z161=\"Si\",15,0)","v":0},"Existen manuales, instructivos o procedimientos para el manejo del control",null,null,"No Aplica",{"$f":"+IF(AE161=\"Si\",15,0)","v":0},"Existen manuales, instructivos o procedimientos para el manejo del control",null,null,"No Aplica",{"$f":"+IF(AJ161=\"Si\",15,0)","v":0},"Existen manuales, instructivos o procedimientos para el manejo del control",null,null,"No Aplica",{"$f":"+IF(AO161=\"Si\",15,0)","v":0}]
[null,null,null,null,null,null,null,null,null,null,null,null,null,null,null,"¿Dar lugar a procesos fiscales?","No Aplica",null,null,null,null,null,"Está definido el responsable de la ejecución del control y seguimiento",null,null,"No Aplica",{"$f":"+IF(Z162=\"Si\",5,0)","v":0},"Está definido el responsable de la ejecución del control y seguimiento",null,null,"No Aplica",{"$f":"+IF(AE162=\"Si\",5,0)","v":0},"Está definido el responsable de la ejecución del control y seguimiento",null,null,"No Aplica",{"$f":"+IF(AJ162=\"Si\",5,0)","v":0},"Está definido el responsable de la ejecución del control y seguimiento",null,null,"No Aplica",{"$f":"+IF(AO162=\"Si\",5,0)","v":0}]
[null,null,null,null,null,null,null,null,null,null,null,null,null,null,null,"¿Generar pérdida de credibilidad de la entidad?","No Aplica",null,"Metas, objetivos y operaciones ","No Aplica",null,null,"El control es automático",null,null,"No Aplica",{"$f":"+IF(Z163=\"Si\",15,0)","v":0},"El control es automático",null,null,"No Aplica",{"$f":"+IF(AE163=\"Si\",15,0)","v":0},"El control es automático",null,null,"No Aplica",{"$f":"+IF(AJ163=\"Si\",15,0)","v":0},"El control es automático",null,null,"No Aplica",{"$f":"+IF(AO163=\"Si\",15,0)","v":0}]
[null,null,null,null,null,null,null,null,null,null,null,null,null,null,null,"¿Generar pérdida de credibilidad del sector?","No Aplica",null,null,null,null,null,"El control es manual",null,null,"No Aplica",{"$f":"+IF(Z164=\"Si\",10,0)","v":0},"El control es manual",null,null,"No Aplica",{"$f":"+IF(AE164=\"Si\",10,0)","v":0},"El control es manual",null,null,"No Aplica",{"$f":"+IF(AJ164=\"Si\",10,0)","v":0},"El control es manual",null,null,"No Aplica",{"$f":"+IF(AO164=\"Si\",10,0)","v":0}]
[null,null,null,null,null,null,null,null,null,null,null,null,null,null,null,"¿Ocasionar lesiones físicas o pérdida de vidas humanas? ","No Aplica",null,null,null,null,null,"La frecuencia de ejecución del control y seguimiento es adecuada ",null,null,"No Aplica",{"$f":"+IF(Z165=\"Si\",15,0)","v":0},"La frecuencia de ejecución del control y seguimiento es adecuada ",null,null,"No Aplica",{"$f":"+IF(AE165=\"Si\",15,0)","v":0},"La frecuencia de ejecución del control y seguimiento es adecuada ",null,null,"No Aplica",{"$f":"+IF(AJ165=\"Si\",15,0)","v":0},"La frecuencia de ejecución del control y seguimiento es adecuada ",null,null,"No Aplica",{"$f":"+IF(AO165=\"Si\",15,0)","v":0}]
[null,null,null,null,null,null,null,null,null,null,null,null,null,null,null,"¿Afectar la imagen regional?","No Aplica",null,null,null,null,null,"Se cuenta con evidencias de la ejecución y seguimiento del control",null,null,"No Aplica",{"$f":"+IF(Z166=\"Si\",10,0)","v":0},"Se cuenta con evidencias de la ejecución y seguimiento del control",null,null,"No Aplica",{"$f":"+IF(AE166=\"Si\",10,0)","v":0},"Se cuenta con evidencias de la ejecución y seguimiento del control",null,null,"No Aplica",{"$f":"+IF(AJ166=\"Si\",10,0)","v":0},"Se cuenta con evidencias de la ejecución y seguimiento del control",null,null,"No Aplica",{"$f":"+IF(AO166=\"Si\",10,0)","v":0}]
[null,null,null,null,null,null,null,null,null,null,null,null,null,null,null,"¿Afectar la imagen nacional?","No Aplica",null,null,null,null,null,"En el tiempo que lleva la herramienta ha demostrado ser efectiva",null,null,"No Aplica",{"$f":"+IF(Z167=\"Si\",30,0)","v":0},"En el tiempo que lleva la herramienta ha demostrado ser efectiva",null,null,"No Aplica",{"$f":"+IF(AE167=\"Si\",30,0)","v":0},"En el tiempo que lleva la herramienta ha demostrado ser efectiva",null,null,"No Aplica",{"$f":"+IF(AJ167=\"Si\",30,0)","v":0},"En el tiempo que lleva la herramienta ha demostrado ser efectiva",null,null,"No Aplica",{"$f":"+IF(AO167=\"Si\",30,0)","v":0}]
[]
[]
[]
[]
[]
[]
[]
[]
[]
[]
[]
[]
[]
[]
[]
[]
[]
[]
[null,null,null,null,null,null,null,null,null,null,null,null,null,null,null,null,null,null,null,null,null,null,null,null,null,null,null,null,null,null,null,null,null,null,null,null,null,null,null,null,null,null,null,null,null,null,null,null,null,null,null,null,null,null,null,null,null,null,null,null,null,null,null,null,"control"]
[]
[]
[]
[]
[]
[]
[]
[]
[]
[]
[]
[]
[]
[]
[]
[]
[]
[]
[]
[]
[]
[]
[]
[]
[]
[]
[]
[]
[]
[]
[]
[]
[]
[]
[]
[]
[]
[]
[]
[]
[]
[]
[]
[]
[]
[]
[]
[]
[]
[]
[]
[]
[]
[]
[]
[]
[]
[]
[]
[]
[]
[]
[]
[]
[]
[]
[]
[]
[]
[]
[]
[]
[]
[]
[]
[]
[]
[]
[]
[]
[]
[]
[]
[]
[]
[]
[]
[]
[]
[]
[]
[]
[]
[]
[]
[]
[]
[]
[]
[]
[]
[]
[]
[]
[]
[]
[]
[]
[]
[]
[]
[]
[]
[]
[]
[]
[]
[]
[]
[]
[]
[]
[]
[]
[]
[]
[]
[]
[]
[]
[]
[]
[]
[]
[]
[]
[]
[]
[]
[]
[]
[]
[]
[]
[]
[]
[]
[]
[]
[]
[]
[]
[]
[]
[]
[]
[]
[]
[]
[]
[]
[]
[]
[]
[]
[]
[]
[]
[]
[]
[]
[]
[]
[]
[]
[]
[]
[]
[]
[]
[]
[]
[]
[]
[]
[]
[]
[]
[]
[]
[]
[]
[]
[]
[]
[]
[]
[]
[]
[]
[]
[]
[]
[]
[]
[]
[]
[]
[]
[]
[]
[]
[]
[]
[]
[]
[]
[]
[]
[]
[]
[]
[]
[]
[]
[]
[]
[]
[]
[]
[]
[]
[]
[]
[]
[]
[]
[]
[]
[]
[]
[]
[]
[]
[]
[]
[]
[]
[]
[]
[]
[]
[]
[]
[]
[]
[]
[]
[]
[]
[]
[]
[]
[]
[]
[]
[]
[]
[]
[]
[]
[]
[]
[]
[]
[]
[]
[]
[]
[]
[]
[]
[]
[]
[]
[]
[]
[]
[]
[]
[]
[]
[]
[]
[]
[]
[]
[]
[]
[]
[]
[]
[]
[]
[]
[]
[]
[]
[]
[]
[]
[]
[]
[]
[]
[]
[]
[]
[]
[]
[]
[]
[]
[]
[]
[]
[]
[]
[]
[]
[]
[]
[]
[]
[]
[]
[]
[]
[]
[]
[]
[]
[]
[]
[]
[]
[]
[]
[]
[]
[]
[]
[]
[]
[]
[]
[]
[]
[]
[]
[]
[]
[]
[]
[]
[]
[]
[]
[]
[]
[]
[]
[]
[]
[]
[]
[]
[]
[]
[]
[]
[]
[]
[]
[]
[]
[]
[]
[]
[]
[]
[]
[]
[]
[]
[]
[]
[]
[]
[]
[]
[]
[]
[]
[]
[]
[]
[]
[]
[]
[]
[]
[]
[]
[]
[]
[]
[]
[]
[]
[]
[]
[]
[]
[]
[]
[]
[]
[]
[]
[]
[]
[]
[]
[]
[]
[]
[null,"TIPO DE RIESGO","CLASE DE RIESGO"]
[null,"Corrupción","G. Estratégico"]
[null,"Gestión","G. Imagen"]
[null,"No Aplica","G. Operativo"]
[null,null,"G. Financiero"]
[null,null,"G. Cumplimiento"]
[null,null,"G. Tecnología"]
[null,null,"Corrupción"]
[null,null,"C. Soborno"]
[null,null,"C. Piratería"]
[null,null,"C. Fraude"]
[null,null,"No Aplica"]
[null,"PROBABILIDAD",null,null,"Riesgo 1","Riesgo 2","Riesgo 3","Riesgo 4","Riesgo 5","Riesgo 6","Riesgo 7","Riesgo 8","Riesgo 9","Riesgo 10"]
[null,"Se espera que el evento ocurra en la mayoría de las circunstancias / Más de una vez al año.","Casi seguro",5,{"$f":"$L$6","v":"Corrupción"},{"$f":"$L$24","v":"Gestión"},{"$f":"#REF!","v":{"$error":"#REF!"}},{"$f":"$L$42","v":"Gestión"},{"$f":"$L$60","v":"Gestión"},{"$f":"$L$78","v":"No Aplica"},{"$f":"$L$96","v":"No Aplica"},{"$f":"$L$114","v":"No Aplica"},{"$f":"$L$132","v":"No Aplica"},{"$f":"$L$150","v":"No Aplica"}]
[null,"Es viable que el evento ocurra en la mayoría de las circunstancias / Al menos una vez en el último año.","Probable",4,{"$f":"$M$6","v":"Corrupción"},{"$f":"$M$24","v":"G. Cumplimiento"},{"$f":"#REF!","v":{"$error":"#REF!"}},{"$f":"$M$42","v":"G. Cumplimiento"},{"$f":"$M$60","v":"G. Financiero"},{"$f":"$M$78","v":"No Aplica"},{"$f":"$M$96","v":"No Aplica"},{"$f":"$M$114","v":"No Aplica"},{"$f":"$M$132","v":"No Aplica"},{"$f":"$M$150","v":"No Aplica"}]
[null,"El evento podrá ocurrir en algún momento /Al menos una vez en los últimos 2 años.","Posible",3,{"$f":"$N$6","v":"El evento puede ocurrir solo en circunstancias excepcionales (poco comunes o anormales) / No se ha presentado en los últimos cinco (5) años."},{"$f":"$N$24","v":"Es viable que el evento ocurra en la mayoría de las circunstancias / Al menos una vez en el último año."},{"$f":"#REF!","v":{"$error":"#REF!"}},{"$f":"$N$42","v":"El evento puede ocurrir en algún momento /Al menos una vez en los últimos 5 años."},{"$f":"$N$60","v":"Es viable que el evento ocurra en la mayoría de las circunstancias / Al menos una vez en el último año."},{"$f":"$N$78","v":"No Aplica"},{"$f":"$N$96","v":"No Aplica"},{"$f":"$N$114","v":"No Aplica"},{"$f":"$N$132","v":"No Aplica"},{"$f":"$N$150","v":"No Aplica"}]
[null,"El evento puede ocurrir en algún momento /Al menos una vez en los últimos 5 años.","Improbable",2,{"$f":"+IF(E639=$B$637,$C$637,(IF(E639=$B$638,$C$638,IF(E639=$B$639,$C$639,IF(E639=$B$640,$C$640,IF(E639=$B$641,$C$641,IF(E639=$B$642,$B$642,0)))))))","v":"Rara vez"},{"$f":"+IF(F639=$B$637,$C$637,(IF(F639=$B$638,$C$638,IF(F639=$B$639,$C$639,IF(F639=$B$640,$C$640,IF(F639=$B$641,$C$641,IF(F639=$B$642,$B$642,0)))))))","v":"Probable"},{"$error":"#REF!"},"Improbable","Probable","No Aplica","No Aplica","No Aplica","No Aplica","No Aplica"]
[null,"El evento puede ocurrir solo en circunstancias excepcionales (poco comunes o anormales) / No se ha presentado en los últimos cinco (5) años.","Rara vez",1,{"$f":"IF(E$640=$C637,$D637,IF(E$640=$C638,$D638,IF(E$640=$C639,$D639,IF(E$640=$C640,$D640,IF(E$640=$C641,$D641,0)))))","v":1},{"$f":"IF(F$640=$C637,$D637,IF(F$640=$C638,$D638,IF(F$640=$C639,$D639,IF(F$640=$C640,$D640,IF(F$640=$C641,$D641,0)))))","v":4},{"$error":"#REF!"},2,4,0,0,0,0,0]
[null,"No Aplica",null,"PI",{"$f":"IF(E637=\"No Aplica\",\"No Aplica\",E640)","v":"Rara vez"},{"$f":"IF(F637=\"No Aplica\",\"No Aplica\",F640)","v":"Probable"},{"$error":"#REF!"},"Improbable","Probable","No Aplica","No Aplica","No Aplica","No Aplica","No Aplica"]
[null,null,null,null,{"$f":"$I$784","v":"Rara vez"},{"$f":"$I$795","v":"Posible"},{"$f":"$I$806","v":{"$error":"#REF!"}},{"$f":"$I$817","v":"Rara vez"},{"$f":"$I$828","v":"Probable"},{"$f":"$I$839","v":"Rara vez"},{"$f":"$I$850","v":"Rara vez"},{"$f":"$I$861","v":"Rara vez"},{"$f":"$I$872","v":"Rara vez"},{"$f":"$I$883","v":"Rara vez"}]
[null,null,null,"PR",{"$f":"IF(E637=\"No Aplica\",\"No Aplica\",E643)","v":"Rara vez"},{"$f":"IF(F637=\"No Aplica\",\"No Aplica\",F643)","v":"Posible"},{"$error":"#REF!"},"Rara vez","Probable","No Aplica","No Aplica","No Aplica","No Aplica","No Aplica"]
[null,"PROBABILIDAD",null,null,{"$f":"IF(E$643=$C637,$D637,IF(E$643=$C638,$D638,IF(E$643=$C639,$D639,IF(E$643=$C640,$D640,IF(E$643=$C641,$D641,0)))))","v":1},{"$f":"IF(F$643=$C637,$D637,IF(F$643=$C638,$D638,IF(F$643=$C639,$D639,IF(F$643=$C640,$D640,IF(F$643=$C641,$D641,0)))))","v":3},{"$error":"#REF!"},1,4,1,1,1,1,1]
[null,"Si"]
[null,"No"]
[null,"No Aplica"]
[]
[null,"IMPACTO",null,null,"Riesgo 1","Riesgo 2","Riesgo 3","Riesgo 4","Riesgo 5","Riesgo 6","Riesgo 7","Riesgo 8","Riesgo 9","Riesgo 10"]
[null,"Catastrófico","C: mas de 11 / G: 5",null,{"$f":"COUNTIF($Q$6:$Q$23,\"Si\")","v":5},{"$f":"COUNTIF($Q$24:$Q$41,\"Si\")","v":0},{"$f":"COUNTIF(#REF!,\"Si\")","v":{"$error":"#REF!"}},{"$f":"COUNTIF($Q$42:$Q$59,\"Si\")","v":0},{"$f":"COUNTIF($Q$60:$Q$77,\"Si\")","v":0},{"$f":"COUNTIF($Q$78:$Q$95,\"Si\")","v":0},{"$f":"COUNTIF($Q$96:$Q$113,\"Si\")","v":0},{"$f":"COUNTIF($Q$114:$Q$131,\"Si\")","v":0},{"$f":"COUNTIF($Q$132:$Q$149,\"Si\")","v":0},{"$f":"COUNTIF($Q$150:$Q$167,\"Si\")","v":0}]
[null,"Mayor","C. entre 6 y 11 / G: 4",null,{"$f":"IF(E651<=5,$B$653,IF(AND(E651>=6,E651<=11),$B$652,IF(E651>=12,$B$651)))","v":"Moderado"},"Moderado",{"$error":"#REF!"},"Moderado","Moderado","Moderado","Moderado","Moderado","Moderado","Moderado"]
[null,"Moderado","C: entre 1 y 5 / G: 3","II Corrupción",{"$f":"IF(E637=\"Corrupción\",E652,\"No Aplica\")","v":"Moderado"},{"$f":"IF(F637=\"Corrupción\",F652,\"No Aplica\")","v":"No Aplica"},{"$error":"#REF!"},"No Aplica","No Aplica","No Aplica","No Aplica","No Aplica","No Aplica","No Aplica"]
[null,"Menor","G: 2",null,{"$f":"+E651*E641","v":5},{"$f":"+F651*F641","v":0},{"$error":"#REF!"},0,0,0,0,0,0,0]
[null,"Insignificante","G: 1",null,{"$f":"IF(E$654<=10,$B665,IF(AND(E$654>=11,E$654<=25),$B666,IF(AND(E$654>=26,E$654<=50),$B667,IF(E$654>=51, $B668,”No Aplica”))))","v":"Baja"},{"$f":"IF(F$654<=10,$B665,IF(AND(F$654>=11,F$654<=25),$B666,IF(AND(F$654>=26,F$654<=50),$B667,IF(F$654>=51, $B668,”No Aplica”))))","v":"Baja"},{"$f":"IF(G$654<=10,$B665,IF(AND(G$654>=11,G$654<=25),$B666,IF(AND(G$654>=26,G$654<=50),$B667,IF(G$654>=51, $B668,”No Aplica”))))","v":{"$error":"#REF!"}},{"$f":"IF(H$654<=10,$B665,IF(AND(H$654>=11,H$654<=25),$B666,IF(AND(H$654>=26,H$654<=50),$B667,IF(H$654>=51, $B668,”No Aplica”))))","v":"Baja"},{"$f":"IF(I$654<=10,$B665,IF(AND(I$654>=11,I$654<=25),$B666,IF(AND(I$654>=26,I$654<=50),$B667,IF(I$654>=51, $B668,”No Aplica”))))","v":"Baja"},{"$f":"IF(J$654<=10,$B665,IF(AND(J$654>=11,J$654<=25),$B666,IF(AND(J$654>=26,J$654<=50),$B667,IF(J$654>=51, $B668,”No Aplica”))))","v":"Baja"},{"$f":"IF(K$654<=10,$B665,IF(AND(K$654>=11,K$654<=25),$B666,IF(AND(K$654>=26,K$654<=50),$B667,IF(K$654>=51, $B668,”No Aplica”))))","v":"Baja"},{"$f":"IF(L$654<=10,$B665,IF(AND(L$654>=11,L$654<=25),$B666,IF(AND(L$654>=26,L$654<=50),$B667,IF(L$654>=51, $B668,”No Aplica”))))","v":"Baja"},{"$f":"IF(M$654<=10,$B665,IF(AND(M$654>=11,M$654<=25),$B666,IF(AND(M$654>=26,M$654<=50),$B667,IF(M$654>=51, $B668,”No Aplica”))))","v":"Baja"},{"$f":"IF(N$654<=10,$B665,IF(AND(N$654>=11,N$654<=25),$B666,IF(AND(N$654>=26,N$654<=50),$B667,IF(N$654>=51, $B668,”No Aplica”))))","v":"Baja"}]
[null,null,null,"ZRC I",{"$f":"IF(E637=\"Corrupción\",E655,\"No Aplica\")","v":"Baja"},{"$f":"IF(F637=\"Corrupción\",F655,\"No Aplica\")","v":"No Aplica"},{"$error":"#REF!"},"No Aplica","No Aplica","No Aplica","No Aplica","No Aplica","No Aplica","No Aplica"]
[null,null,null,null,{"$f":"$K$784","v":"Moderado"},{"$f":"$K$795","v":"Moderado"},{"$f":"$K$806","v":{"$error":"#REF!"}},{"$f":"$K$817","v":"Moderado"},{"$f":"$K$828","v":"Moderado"},{"$f":"$K$839","v":"Moderado"},{"$f":"$K$850","v":"Moderado"},{"$f":"$K$861","v":"Moderado"},{"$f":"$K$872","v":"Moderado"},{"$f":"$K$883","v":"Moderado"}]
[null,null,null,"IR. Corrupción",{"$f":"IF(E637=\"Corrupción\",E657,\"No Aplica\")","v":"Moderado"},{"$f":"IF(F637=\"Corrupción\",F657,\"No Aplica\")","v":"No Aplica"},{"$error":"#REF!"},"No Aplica","No Aplica","No Aplica","No Aplica","No Aplica","No Aplica","No Aplica"]
[null,null,null,null,{"$f":"IF(E$657=$B651,12,IF(E$657=$B652,6,IF(E$657=$B653,4,0)))","v":4},4,{"$error":"#REF!"},4,4,4,4,4,4,4]
[null,null,null,null,{"$f":"+E659*E645","v":4},{"$f":"+F659*F645","v":12},{"$error":"#REF!"},4,16,4,4,4,4,4]
[null,null,null,null,{"$f":"IF(E$660<=10,$B665,IF(AND(E$660>=11,E$660<=25),$B666,IF(AND(E$660>=26,E$660<=50),$B667,IF(E$660>=51, $B668,”No Aplica”))))","v":"Baja"},{"$f":"IF(F$660<=10,$B665,IF(AND(F$660>=11,F$660<=25),$B666,IF(AND(F$660>=26,F$660<=50),$B667,IF(F$660>=51, $B668,”No Aplica”))))","v":"Moderada"},{"$f":"IF(G$660<=10,$B665,IF(AND(G$660>=11,G$660<=25),$B666,IF(AND(G$660>=26,G$660<=50),$B667,IF(G$660>=51, $B668,”No Aplica”))))","v":{"$error":"#REF!"}},{"$f":"IF(H$660<=10,$B665,IF(AND(H$660>=11,H$660<=25),$B666,IF(AND(H$660>=26,H$660<=50),$B667,IF(H$660>=51, $B668,”No Aplica”))))","v":"Baja"},{"$f":"IF(I$660<=10,$B665,IF(AND(I$660>=11,I$660<=25),$B666,IF(AND(I$660>=26,I$660<=50),$B667,IF(I$660>=51, $B668,”No Aplica”))))","v":"Moderada"},{"$f":"IF(J$660<=10,$B665,IF(AND(J$660>=11,J$660<=25),$B666,IF(AND(J$660>=26,J$660<=50),$B667,IF(J$660>=51, $B668,”No Aplica”))))","v":"Baja"},{"$f":"IF(K$660<=10,$B665,IF(AND(K$660>=11,K$660<=25),$B666,IF(AND(K$660>=26,K$660<=50),$B667,IF(K$660>=51, $B668,”No Aplica”))))","v":"Baja"},{"$f":"IF(L$660<=10,$B665,IF(AND(L$660>=11,L$660<=25),$B666,IF(AND(L$660>=26,L$660<=50),$B667,IF(L$660>=51, $B668,”No Aplica”))))","v":"Baja"},{"$f":"IF(M$660<=10,$B665,IF(AND(M$660>=11,M$660<=25),$B666,IF(AND(M$660>=26,M$660<=50),$B667,IF(M$660>=51, $B668,”No Aplica”))))","v":"Baja"},{"$f":"IF(N$660<=10,$B665,IF(AND(N$660>=11,N$660<=25),$B666,IF(AND(N$660>=26,N$660<=50),$B667,IF(N$660>=51, $B668,”No Aplica”))))","v":"Baja"}]
[null,null,null,"ZRCR Corrupción",{"$f":"IF(E637=\"Corrupción\",E661,\"No Aplica\")","v":"Baja"},{"$f":"IF(F637=\"Corrupción\",F661,\"No Aplica\")","v":"No Aplica"},{"$error":"#REF!"},"No Aplica","No Aplica","No Aplica","No Aplica","No Aplica","No Aplica","No Aplica"]
[]
[null,"ZONA DE RIESGO",null,null,{"$f":"+MAX(E687:E732)","v":0},5,{"$error":"#REF!"},1,4,0,0,0,0,0]
[null,"Baja",null,null,{"$f":"+IF(E664=5,$B$651,IF(E664=4,$B$652,(IF(E664=3,$B$653,IF(E664=2,$B$654,IF(E664=1,$B$655,\"No Aplica\"))))))","v":"No Aplica"},"Catastrófico",{"$error":"#REF!"},"Insignificante","Mayor","No Aplica","No Aplica","No Aplica","No Aplica","No Aplica"]
[null,"Moderada",11,"I. Gestión",{"$f":"IF(E637=\"Gestión\",E665,\"No Aplica\")","v":"No Aplica"},"Catastrófico",{"$error":"#REF!"},"Insignificante","Mayor","No Aplica","No Aplica","No Aplica","No Aplica","No Aplica"]
[null,"Alta",26,null,{"$f":"+MAX(E736:E760)","v":0},4,{"$error":"#REF!"},1,4,0,0,0,0,0]
[null,"Extrema",51,null,{"$f":"IF(E667=4,$B$668,IF(E667=3,$B$667,IF(E667=2,$B$666,IF(E667=1,$B$665,\"No Aplica\"))))","v":"No Aplica"},{"$f":"IF(F667=4,$B$668,IF(F667=3,$B$667,IF(F667=2,$B$666,IF(F667=1,$B$665,\"No Aplica\"))))","v":"Extrema"},{"$error":"#REF!"},"Baja","Extrema","No Aplica","No Aplica","No Aplica","No Aplica","No Aplica"]
[null,null,null,"ZRG I",{"$f":"IF(E637=\"Gestión\",E668,\"No Aplica\")","v":"No Aplica"},"Extrema",{"$error":"#REF!"},"Baja","Extrema","No Aplica","No Aplica","No Aplica","No Aplica","No Aplica"]
[null,null,null,"IR. Gestión",{"$f":"$K$785","v":"Insignificante"},{"$f":"$K$796","v":"Catastrófico"},{"$f":"$K$807","v":{"$error":"#REF!"}},{"$f":"$K$818","v":"Insignificante"},{"$f":"$K$829","v":"Mayor"},{"$f":"$K$840","v":"Insignificante"},{"$f":"$K$851","v":"Insignificante"},{"$f":"$K$862","v":"Insignificante"},{"$f":"$K$873","v":"Insignificante"},{"$f":"$K$884","v":"Insignificante"}]
[null,null,null,null,{"$f":"IF(E637=\"Gestión\",E670,\"No Aplica\")","v":"No Aplica"},{"$f":"IF(F637=\"Gestión\",F670,\"No Aplica\")","v":"Catastrófico"},{"$error":"#REF!"},"Insignificante","Mayor","No Aplica","No Aplica","No Aplica","No Aplica","No Aplica"]
[null,null,null,null,{"$f":"+MAX(E892:E916)","v":1},4,{"$error":"#REF!"},1,4,1,1,1,1,1]
[null,null,null,null,{"$f":"IF(E672=4,$B$668,IF(E672=3,$B$667,IF(E672=2,$B$666,IF(E672=1,$B$665,\"No Aplica\"))))","v":"Baja"},{"$f":"IF(F672=4,$B$668,IF(F672=3,$B$667,IF(F672=2,$B$666,IF(F672=1,$B$665,\"No Aplica\"))))","v":"Extrema"},{"$error":"#REF!"},"Baja","Extrema","Baja","Baja","Baja","Baja","Baja"]
[null,null,null,"ZRG R",{"$f":"IF(E637=\"Gestión\",E673,\"No Aplica\")","v":"No Aplica"},{"$f":"IF(F637=\"Gestión\",F673,\"No Aplica\")","v":"Extrema"},{"$error":"#REF!"},"Baja","Extrema","No Aplica","No Aplica","No Aplica","No Aplica","No Aplica"]
[]
[null,null,null,null,"Riesgo 1","Riesgo 2","Riesgo 3","Riesgo 4","Riesgo 5","Riesgo 6","Riesgo 7","Riesgo 8","Riesgo 9","Riesgo 10"]
[null,null,null,"ZRI",{"$f":"IF(E637=\"Corrupción\",E656,E669)","v":"Baja"},"Extrema",{"$error":"#REF!"},"Baja","Extrema","No Aplica","No Aplica","No Aplica","No Aplica","No Aplica"]
[null,null,null,"PR",{"$f":"E643","v":"Rara vez"},{"$f":"F643","v":"Posible"},{"$error":"#REF!"},"Rara vez","Probable","Rara vez","Rara vez","Rara vez","Rara vez","Rara vez"]
[null,null,null,"RR",{"$f":"IF(E637=\"Corrupción\",E658,E671)","v":"Moderado"},{"$f":"IF(F637=\"Corrupción\",F658,F671)","v":"Catastrófico"},{"$error":"#REF!"},"Insignificante","Mayor","No Aplica","No Aplica","No Aplica","No Aplica","No Aplica"]
[null,null,null,"ZRR",{"$f":"IF(E637=\"Corrupción\",E662,E674)","v":"Baja"},{"$f":"IF(F637=\"Corrupción\",F662,F674)","v":"Extrema"},{"$error":"#REF!"},"Baja","Extrema","No Aplica","No Aplica","No Aplica","No Aplica","No Aplica"]
[null,null,null,"Tratamiento ",{"$f":"IF(E637=\"Corrupción\", \"Evitar / Transferir\",IF(E680=\"Extrema\",\"Evitar / Transferir\",IF(E680=\"Alta\",\"Reducir / Transferir\",IF(E680=\"Moderada\",\"Reducir / Transferir\",IF(E680=\"Baja\",\"Asumir\",IF(E680=\"No Aplica\",\"No Aplica\",0))))))","v":"Evitar / Transferir"},{"$f":"IF(F637=\"Corrupción\", \"Evitar / Transferir\",IF(F680=\"Extrema\",\"Evitar / Transferir\",IF(F680=\"Alta\",\"Reducir / Transferir\",IF(F680=\"Moderada\",\"Reducir / Transferir\",IF(F680=\"Baja\",\"Asumir\",IF(F680=\"No Aplica\",\"No Aplica\",0))))))","v":"Evitar / Transferir"},{"$error":"#REF!"},"Asumir","Evitar / Transferir","No Aplica","No Aplica","No Aplica","No Aplica","No Aplica"]
[null,null,null,"Periodicidad",{"$f":"IF(E637=\"Corrupción\", \"Monitoreo permanente y se deja registro mensual\", IF(E680=\"Extrema\", \"Monitoreo permanente y se deja registro mensual\",IF(E680=\"Alta\", \"Monitoreo permanente y se deja registro mensual\",IF(E680=\"Moderada\", \"Monitoreo mensual y se deja registro trimestral\",IF(E680=\"Baja\", \"Monitoreo mensual y se deja registro trimestral\",\"No Aplica\")))))","v":"Monitoreo permanente y se deja registro mensual"},{"$f":"IF(F637=\"Corrupción\", \"Monitoreo permanente y se deja registro mensual\", IF(F680=\"Extrema\", \"Monitoreo permanente y se deja registro mensual\",IF(F680=\"Alta\", \"Monitoreo permanente y se deja registro mensual\",IF(F680=\"Moderada\", \"Monitoreo mensual y se deja registro trimestral\",IF(F680=\"Baja\", \"Monitoreo mensual y se deja registro trimestral\",\"No Aplica\")))))","v":"Monitoreo permanente y se deja registro mensual"},{"$error":"#REF!"},"Monitoreo mensual y se deja registro trimestral","Monitoreo permanente y se deja registro mensual","No Aplica","No Aplica","No Aplica","No Aplica","No Aplica"]
[null,null,null,"Responsable",{"$f":"+IF('Identificación de Riesgos'!F7=0,\"No Aplica\",'Identificación de Riesgos'!F7)","v":"Jefe Oficina Asesora Jurídica -\n Coordinador Grupo de Procesos Judiciales \ny de Acciones Constitucionales."},{"$f":"+E683","v":"Jefe Oficina Asesora Jurídica -\n Coordinador Grupo de Procesos Judiciales \ny de Acciones Constitucionales."},{"$f":"+F683","v":"Jefe Oficina Asesora Jurídica -\n Coordinador Grupo de Procesos Judiciales \ny de Acciones Constitucionales."},"Jefe Oficina Asesora Jurídica -\n Coordinador Grupo de Procesos Judiciales \ny de Acciones Constitucionales.","Jefe Oficina Asesora Jurídica -\n Coordinador Grupo de Procesos Judiciales \ny de Acciones Constitucionales.","Jefe Oficina Asesora Jurídica -\n Coordinador Grupo de Procesos Judiciales \ny de Acciones Constitucionales.","Jefe Oficina Asesora Jurídica -\n Coordinador Grupo de Procesos Judiciales \ny de Acciones Constitucionales.","Jefe Oficina Asesora Jurídica -\n Coordinador Grupo de Procesos Judiciales \ny de Acciones Constitucionales.","Jefe Oficina Asesora Jurídica -\n Coordinador Grupo de Procesos Judiciales \ny de Acciones Constitucionales.","Jefe Oficina Asesora Jurídica -\n Coordinador Grupo de Procesos Judiciales \ny de Acciones Constitucionales."]
[]
[]
[null,"Preguntas para calificar tipo de impacto en riesgo de gestión",null,null,"Riesgo 1","Riesgo 2","Riesgo 3","Riesgo 4","Riesgo 5","Riesgo 6","Riesgo 7","Riesgo 8","Riesgo 9","Riesgo 10"]
[null,"Afecta la ejecución presupuestal de la entidad","En un valor ≥ 10%",null,{"$f":"IF($T$6=$C687,5,0)","v":0},{"$f":"IF($T$24=$C687,5,0)","v":0},{"$f":"IF(#REF!=$C687,5,0)","v":{"$error":"#REF!"}},{"$f":"IF($T$42=$C687,5,0)","v":0},{"$f":"IF($T$60=$C687,5,0)","v":0},{"$f":"IF($T$78=$C687,5,0)","v":0},{"$f":"IF($T$96=$C687,5,0)","v":0},{"$f":"IF($T$114=$C687,5,0)","v":0},{"$f":"IF($T$132=$C687,5,0)","v":0},{"$f":"IF($T$150=$C687,5,0)","v":0}]
[null,null,"En un valor  ≥ 5%",null,{"$f":"IF($T$6=$C688,4,0)","v":0},{"$f":"IF($T$24=$C688,4,0)","v":0},{"$f":"IF(#REF!=$C688,4,0)","v":{"$error":"#REF!"}},{"$f":"IF($T$42=$C688,4,0)","v":0},{"$f":"IF($T$60=$C688,4,0)","v":0},{"$f":"IF($T$78=$C688,4,0)","v":0},{"$f":"IF($T$96=$C688,4,0)","v":0},{"$f":"IF($T$114=$C688,4,0)","v":0},{"$f":"IF($T$132=$C688,4,0)","v":0},{"$f":"IF($T$150=$C688,4,0)","v":0}]
[null,null,"En un valor ≥ 2%",null,{"$f":"IF($T$6=$C689,3,0)","v":0},{"$f":"IF($T$24=$C689,3,0)","v":0},{"$f":"IF(#REF!=$C689,3,0)","v":{"$error":"#REF!"}},{"$f":"IF($T$42=$C689,3,0)","v":0},{"$f":"IF($T$60=$C689,3,0)","v":0},{"$f":"IF($T$78=$C689,3,0)","v":0},{"$f":"IF($T$96=$C689,3,0)","v":0},{"$f":"IF($T$114=$C689,3,0)","v":0},{"$f":"IF($T$132=$C689,3,0)","v":0},{"$f":"IF($T$150=$C689,3,0)","v":0}]
[null,null,"En un valor ≥ 1 %",null,{"$f":"IF($T$6=$C690,2,0)","v":0},{"$f":"IF($T$24=$C690,2,0)","v":0},{"$f":"IF(#REF!=$C690,2,0)","v":{"$error":"#REF!"}},{"$f":"IF($T$42=$C690,2,0)","v":0},{"$f":"IF($T$60=$C690,2,0)","v":0},{"$f":"IF($T$78=$C690,2,0)","v":0},{"$f":"IF($T$96=$C690,2,0)","v":0},{"$f":"IF($T$114=$C690,2,0)","v":0},{"$f":"IF($T$132=$C690,2,0)","v":0},{"$f":"IF($T$150=$C690,2,0)","v":0}]
[null,null,"En un valor ≥ 0,5%",null,{"$f":"IF($T$6=$C691,1,0)","v":0},{"$f":"IF($T$24=$C691,1,0)","v":0},{"$f":"IF(#REF!=$C691,1,0)","v":{"$error":"#REF!"}},{"$f":"IF($T$42=$C691,1,0)","v":0},{"$f":"IF($T$60=$C691,1,0)","v":0},{"$f":"IF($T$78=$C691,1,0)","v":0},{"$f":"IF($T$96=$C691,1,0)","v":0},{"$f":"IF($T$114=$C691,1,0)","v":0},{"$f":"IF($T$132=$C691,1,0)","v":0},{"$f":"IF($T$150=$C691,1,0)","v":0}]
[null,null,"No Aplica",null,{"$f":"IF($T$6=$C692,\"No Aplica\",0)","v":"No Aplica"},{"$f":"IF($T$24=$C692,\"No Aplica\",0)","v":"No Aplica"},{"$f":"IF(#REF!=$C692,\"No Aplica\",0)","v":{"$error":"#REF!"}},{"$f":"IF($T$42=$C692,\"No Aplica\",0)","v":"No Aplica"},{"$f":"IF($T$60=$C692,\"No Aplica\",0)","v":"No Aplica"},{"$f":"IF($T$78=$C692,\"No Aplica\",0)","v":"No Aplica"},{"$f":"IF($T$96=$C692,\"No Aplica\",0)","v":"No Aplica"},{"$f":"IF($T$114=$C692,\"No Aplica\",0)","v":"No Aplica"},{"$f":"IF($T$132=$C692,\"No Aplica\",0)","v":"No Aplica"},{"$f":"IF($T$150=$C692,\"No Aplica\",0)","v":"No Aplica"}]
[null,"Pago de indemnizaciones por acciones legales que pueden afectar el presupuesto total de la entidad","En un valor ≥ 10%",null,{"$f":"IF($T$7=$C693,5,0)","v":0},{"$f":"IF($T$25=$C693,5,0)","v":0},{"$f":"IF(#REF!=$C693,5,0)","v":{"$error":"#REF!"}},{"$f":"IF($T$43=$C693,5,0)","v":0},{"$f":"IF($T$61=$C693,5,0)","v":0},{"$f":"IF($T$79=$C693,5,0)","v":0},{"$f":"IF($T$97=$C693,5,0)","v":0},{"$f":"IF($T$115=$C693,5,0)","v":0},{"$f":"IF($T$133=$C693,5,0)","v":0},{"$f":"IF($T$151=$C693,5,0)","v":0}]
[null,null,"En un valor  ≥ 5%",null,{"$f":"IF($T$7=$C694,4,0)","v":0},{"$f":"IF($T$25=$C694,4,0)","v":0},{"$f":"IF(#REF!=$C694,4,0)","v":{"$error":"#REF!"}},{"$f":"IF($T$43=$C694,4,0)","v":0},{"$f":"IF($T$61=$C694,4,0)","v":0},{"$f":"IF($T$79=$C694,4,0)","v":0},{"$f":"IF($T$97=$C694,4,0)","v":0},{"$f":"IF($T$115=$C694,4,0)","v":0},{"$f":"IF($T$133=$C694,4,0)","v":0},{"$f":"IF($T$151=$C694,4,0)","v":0}]
[null,null,"En un valor ≥ 2%",null,{"$f":"IF($T$7=$C695,3,0)","v":0},{"$f":"IF($T$25=$C695,3,0)","v":0},{"$f":"IF(#REF!=$C695,3,0)","v":{"$error":"#REF!"}},{"$f":"IF($T$43=$C695,3,0)","v":0},{"$f":"IF($T$61=$C695,3,0)","v":0},{"$f":"IF($T$79=$C695,3,0)","v":0},{"$f":"IF($T$97=$C695,3,0)","v":0},{"$f":"IF($T$115=$C695,3,0)","v":0},{"$f":"IF($T$133=$C695,3,0)","v":0},{"$f":"IF($T$151=$C695,3,0)","v":0}]
[null,null,"En un valor ≥ 1 %",null,{"$f":"IF($T$7=$C696,2,0)","v":0},{"$f":"IF($T$25=$C696,2,0)","v":0},{"$f":"IF(#REF!=$C696,2,0)","v":{"$error":"#REF!"}},{"$f":"IF($T$43=$C696,2,0)","v":0},{"$f":"IF($T$61=$C696,2,0)","v":0},{"$f":"IF($T$79=$C696,2,0)","v":0},{"$f":"IF($T$97=$C696,2,0)","v":0},{"$f":"IF($T$115=$C696,2,0)","v":0},{"$f":"IF($T$133=$C696,2,0)","v":0},{"$f":"IF($T$151=$C696,2,0)","v":0}]
[null,null,"En un valor ≥ 0,5%",null,{"$f":"IF($T$7=$C697,1,0)","v":0},{"$f":"IF($T$25=$C697,1,0)","v":0},{"$f":"IF(#REF!=$C697,1,0)","v":{"$error":"#REF!"}},{"$f":"IF($T$43=$C697,1,0)","v":0},{"$f":"IF($T$61=$C697,1,0)","v":0},{"$f":"IF($T$79=$C697,1,0)","v":0},{"$f":"IF($T$97=$C697,1,0)","v":0},{"$f":"IF($T$115=$C697,1,0)","v":0},{"$f":"IF($T$133=$C697,1,0)","v":0},{"$f":"IF($T$151=$C697,1,0)","v":0}]
[null,null,"No Aplica",null,{"$f":"IF($T$7=$C698,\"No Aplica\",0)","v":"No Aplica"},{"$f":"IF($T$25=$C698,\"No Aplica\",0)","v":"No Aplica"},{"$f":"IF(#REF!=$C698,\"No Aplica\",0)","v":{"$error":"#REF!"}},{"$f":"IF($T$43=$C698,\"No Aplica\",0)","v":"No Aplica"},{"$f":"IF($T$61=$C698,\"No Aplica\",0)","v":"No Aplica"},{"$f":"IF($T$79=$C698,\"No Aplica\",0)","v":"No Aplica"},{"$f":"IF($T$97=$C698,\"No Aplica\",0)","v":"No Aplica"},{"$f":"IF($T$115=$C698,\"No Aplica\",0)","v":"No Aplica"},{"$f":"IF($T$133=$C698,\"No Aplica\",0)","v":"No Aplica"},{"$f":"IF($T$151=$C698,\"No Aplica\",0)","v":"No Aplica"}]
[null,"Pago de sanciones económicas por incumplimiento de la normatividad  que pueden afectar el presupuesto total de la entidad","En un valor ≥ 10%",null,{"$f":"IF($T$8=$C699,5,0)","v":0},{"$f":"IF($T$26=$C699,5,0)","v":0},{"$f":"IF(#REF!=$C699,5,0)","v":{"$error":"#REF!"}},{"$f":"IF($T$44=$C699,5,0)","v":0},{"$f":"IF($T$62=$C699,5,0)","v":0},{"$f":"IF($T$80=$C699,5,0)","v":0},{"$f":"IF($T$98=$C699,5,0)","v":0},{"$f":"IF($T$116=$C699,5,0)","v":0},{"$f":"IF($T$134=$C699,5,0)","v":0},{"$f":"IF($T$152=$C699,5,0)","v":0}]
[null,null,"En un valor  ≥ 5%",null,{"$f":"IF($T$8=$C700,4,0)","v":0},{"$f":"IF($T$26=$C700,4,0)","v":0},{"$f":"IF(#REF!=$C700,4,0)","v":{"$error":"#REF!"}},{"$f":"IF($T$44=$C700,4,0)","v":0},{"$f":"IF($T$62=$C700,4,0)","v":0},{"$f":"IF($T$80=$C700,4,0)","v":0},{"$f":"IF($T$98=$C700,4,0)","v":0},{"$f":"IF($T$116=$C700,4,0)","v":0},{"$f":"IF($T$134=$C700,4,0)","v":0},{"$f":"IF($T$152=$C700,4,0)","v":0}]
[null,null,"En un valor ≥ 2%",null,{"$f":"IF($T$8=$C701,3,0)","v":0},{"$f":"IF($T$26=$C701,3,0)","v":0},{"$f":"IF(#REF!=$C701,3,0)","v":{"$error":"#REF!"}},{"$f":"IF($T$44=$C701,3,0)","v":0},{"$f":"IF($T$62=$C701,3,0)","v":0},{"$f":"IF($T$80=$C701,3,0)","v":0},{"$f":"IF($T$98=$C701,3,0)","v":0},{"$f":"IF($T$116=$C701,3,0)","v":0},{"$f":"IF($T$134=$C701,3,0)","v":0},{"$f":"IF($T$152=$C701,3,0)","v":0}]
[null,null,"En un valor ≥ 1 %",null,{"$f":"IF($T$8=$C702,2,0)","v":0},{"$f":"IF($T$26=$C702,2,0)","v":0},{"$f":"IF(#REF!=$C702,2,0)","v":{"$error":"#REF!"}},{"$f":"IF($T$44=$C702,2,0)","v":0},{"$f":"IF($T$62=$C702,2,0)","v":0},{"$f":"IF($T$80=$C702,2,0)","v":0},{"$f":"IF($T$98=$C702,2,0)","v":0},{"$f":"IF($T$116=$C702,2,0)","v":0},{"$f":"IF($T$134=$C702,2,0)","v":0},{"$f":"IF($T$152=$C702,2,0)","v":0}]
[null,null,"En un valor ≥ 0,5%",null,{"$f":"IF($T$8=$C703,1,0)","v":0},{"$f":"IF($T$26=$C703,1,0)","v":1},{"$f":"IF(#REF!=$C703,1,0)","v":{"$error":"#REF!"}},{"$f":"IF($T$44=$C703,1,0)","v":1},{"$f":"IF($T$62=$C703,1,0)","v":0},{"$f":"IF($T$80=$C703,1,0)","v":0},{"$f":"IF($T$98=$C703,1,0)","v":0},{"$f":"IF($T$116=$C703,1,0)","v":0},{"$f":"IF($T$134=$C703,1,0)","v":0},{"$f":"IF($T$152=$C703,1,0)","v":0}]
[null,null,"No Aplica",null,{"$f":"IF($T$8=$C704,\"No Aplica\",0)","v":"No Aplica"},{"$f":"IF($T$26=$C704,\"No Aplica\",0)","v":0},{"$f":"IF(#REF!=$C704,\"No Aplica\",0)","v":{"$error":"#REF!"}},{"$f":"IF($T$44=$C704,\"No Aplica\",0)","v":0},{"$f":"IF($T$62=$C704,\"No Aplica\",0)","v":"No Aplica"},{"$f":"IF($T$80=$C704,\"No Aplica\",0)","v":"No Aplica"},{"$f":"IF($T$98=$C704,\"No Aplica\",0)","v":"No Aplica"},{"$f":"IF($T$116=$C704,\"No Aplica\",0)","v":"No Aplica"},{"$f":"IF($T$134=$C704,\"No Aplica\",0)","v":"No Aplica"},{"$f":"IF($T$152=$C704,\"No Aplica\",0)","v":"No Aplica"}]
[null,"Interrupción de las operaciones de la Entidad","Por más de (5) días.",null,{"$f":"IF($T$10=$C705,5,0)","v":0},{"$f":"IF($T$28=$C705,5,0)","v":0},{"$f":"IF(#REF!=$C705,5,0)","v":{"$error":"#REF!"}},{"$f":"IF($T$46=$C705,5,0)","v":0},{"$f":"IF($T$64=$C705,5,0)","v":0},{"$f":"IF($T$82=$C705,5,0)","v":0},{"$f":"IF($T$100=$C705,5,0)","v":0},{"$f":"IF($T$118=$C705,5,0)","v":0},{"$f":"IF($T$136=$C705,5,0)","v":0},{"$f":"IF($T$154=$C705,5,0)","v":0}]
[null,null,"Por más de   (2) días.",null,{"$f":"IF($T$10=$C706,4,0)","v":0},{"$f":"IF($T$28=$C706,4,0)","v":0},{"$f":"IF(#REF!=$C706,4,0)","v":{"$error":"#REF!"}},{"$f":"IF($T$46=$C706,4,0)","v":0},{"$f":"IF($T$64=$C706,4,0)","v":0},{"$f":"IF($T$82=$C706,4,0)","v":0},{"$f":"IF($T$100=$C706,4,0)","v":0},{"$f":"IF($T$118=$C706,4,0)","v":0},{"$f":"IF($T$136=$C706,4,0)","v":0},{"$f":"IF($T$154=$C706,4,0)","v":0}]
[null,null,"Por más de   (1) día.",null,{"$f":"IF($T$10=$C707,3,0)","v":0},{"$f":"IF($T$28=$C707,3,0)","v":0},{"$f":"IF(#REF!=$C707,3,0)","v":{"$error":"#REF!"}},{"$f":"IF($T$46=$C707,3,0)","v":0},{"$f":"IF($T$64=$C707,3,0)","v":0},{"$f":"IF($T$82=$C707,3,0)","v":0},{"$f":"IF($T$100=$C707,3,0)","v":0},{"$f":"IF($T$118=$C707,3,0)","v":0},{"$f":"IF($T$136=$C707,3,0)","v":0},{"$f":"IF($T$154=$C707,3,0)","v":0}]
[null,null,"Por algunas horas",null,{"$f":"IF($T$10=$C708,2,0)","v":0},{"$f":"IF($T$28=$C708,2,0)","v":0},{"$f":"IF(#REF!=$C708,2,0)","v":{"$error":"#REF!"}},{"$f":"IF($T$46=$C708,2,0)","v":0},{"$f":"IF($T$64=$C708,2,0)","v":0},{"$f":"IF($T$82=$C708,2,0)","v":0},{"$f":"IF($T$100=$C708,2,0)","v":0},{"$f":"IF($T$118=$C708,2,0)","v":0},{"$f":"IF($T$136=$C708,2,0)","v":0},{"$f":"IF($T$154=$C708,2,0)","v":0}]
[null,null,"No hay interrupción de operaciones",null,{"$f":"IF($T$10=$C709,1,0)","v":0},{"$f":"IF($T$28=$C709,1,0)","v":0},{"$f":"IF(#REF!=$C709,1,0)","v":{"$error":"#REF!"}},{"$f":"IF($T$46=$C709,1,0)","v":0},{"$f":"IF($T$64=$C709,1,0)","v":0},{"$f":"IF($T$82=$C709,1,0)","v":0},{"$f":"IF($T$100=$C709,1,0)","v":0},{"$f":"IF($T$118=$C709,1,0)","v":0},{"$f":"IF($T$136=$C709,1,0)","v":0},{"$f":"IF($T$154=$C709,1,0)","v":0}]
[null,null,"No Aplica",null,{"$f":"IF($T$10=$C710,\"No Aplica\",0)","v":"No Aplica"},{"$f":"IF($T$28=$C710,\"No Aplica\",0)","v":"No Aplica"},{"$f":"IF(#REF!=$C710,\"No Aplica\",0)","v":{"$error":"#REF!"}},{"$f":"IF($T$46=$C710,\"No Aplica\",0)","v":"No Aplica"},{"$f":"IF($T$64=$C710,\"No Aplica\",0)","v":"No Aplica"},{"$f":"IF($T$82=$C710,\"No Aplica\",0)","v":"No Aplica"},{"$f":"IF($T$100=$C710,\"No Aplica\",0)","v":"No Aplica"},{"$f":"IF($T$118=$C710,\"No Aplica\",0)","v":"No Aplica"},{"$f":"IF($T$136=$C710,\"No Aplica\",0)","v":"No Aplica"},{"$f":"IF($T$154=$C710,\"No Aplica\",0)","v":"No Aplica"}]
[null,"Investigación, reclamación o sanción","Sanción por parte del ente de control u otro ente regulador.",null,{"$f":"IF($T$13=$C711,5,0)","v":0},{"$f":"IF($T$31=$C711,5,0)","v":5},{"$f":"IF(#REF!=$C711,5,0)","v":{"$error":"#REF!"}},{"$f":"IF($T$49=$C711,5,0)","v":0},{"$f":"IF($T$67=$C711,5,0)","v":0},{"$f":"IF($T$85=$C711,5,0)","v":0},{"$f":"IF($T$103=$C711,5,0)","v":0},{"$f":"IF($T$121=$C711,5,0)","v":0},{"$f":"IF($T$139=$C711,5,0)","v":0},{"$f":"IF($T$157=$C711,5,0)","v":0}]
[null,null,"Reclamaciones o quejas de los usuarios que podrían implicar una denuncia ante los entes reguladores o una demanda de largo alcance para la entidad.",null,{"$f":"IF($T$13=$C712,4,0)","v":0},{"$f":"IF($T$31=$C712,4,0)","v":0},{"$f":"IF(#REF!=$C712,4,0)","v":{"$error":"#REF!"}},{"$f":"IF($T$49=$C712,4,0)","v":0},{"$f":"IF($T$67=$C712,4,0)","v":0},{"$f":"IF($T$85=$C712,4,0)","v":0},{"$f":"IF($T$103=$C712,4,0)","v":0},{"$f":"IF($T$121=$C712,4,0)","v":0},{"$f":"IF($T$139=$C712,4,0)","v":0},{"$f":"IF($T$157=$C712,4,0)","v":0}]
[null,null,"Investigaciones penales, fiscales o disciplinarias.",null,{"$f":"IF($T$13=$C713,3,0)","v":0},{"$f":"IF($T$31=$C713,3,0)","v":0},{"$f":"IF(#REF!=$C713,3,0)","v":{"$error":"#REF!"}},{"$f":"IF($T$49=$C713,3,0)","v":0},{"$f":"IF($T$67=$C713,3,0)","v":0},{"$f":"IF($T$85=$C713,3,0)","v":0},{"$f":"IF($T$103=$C713,3,0)","v":0},{"$f":"IF($T$121=$C713,3,0)","v":0},{"$f":"IF($T$139=$C713,3,0)","v":0},{"$f":"IF($T$157=$C713,3,0)","v":0}]
[null,null,"Reclamaciones o quejas de los usuarios que implican investigaciones internas disciplinarias.",null,{"$f":"IF($T$13=$C714,2,0)","v":0},{"$f":"IF($T$31=$C714,2,0)","v":0},{"$f":"IF(#REF!=$C714,2,0)","v":{"$error":"#REF!"}},{"$f":"IF($T$49=$C714,2,0)","v":0},{"$f":"IF($T$67=$C714,2,0)","v":0},{"$f":"IF($T$85=$C714,2,0)","v":0},{"$f":"IF($T$103=$C714,2,0)","v":0},{"$f":"IF($T$121=$C714,2,0)","v":0},{"$f":"IF($T$139=$C714,2,0)","v":0},{"$f":"IF($T$157=$C714,2,0)","v":0}]
[null,null,"No se generan sanciones económicas o administrativas.",null,{"$f":"IF($T$13=$C715,1,0)","v":0},{"$f":"IF($T$31=$C715,1,0)","v":0},{"$f":"IF(#REF!=$C715,1,0)","v":{"$error":"#REF!"}},{"$f":"IF($T$49=$C715,1,0)","v":1},{"$f":"IF($T$67=$C715,1,0)","v":0},{"$f":"IF($T$85=$C715,1,0)","v":0},{"$f":"IF($T$103=$C715,1,0)","v":0},{"$f":"IF($T$121=$C715,1,0)","v":0},{"$f":"IF($T$139=$C715,1,0)","v":0},{"$f":"IF($T$157=$C715,1,0)","v":0}]
[null,null,"No Aplica",null,{"$f":"IF($T$13=$C716,\"No Aplica\",0)","v":"No Aplica"},{"$f":"IF($T$31=$C716,\"No Aplica\",0)","v":0},{"$f":"IF(#REF!=$C716,\"No Aplica\",0)","v":{"$error":"#REF!"}},{"$f":"IF($T$49=$C716,\"No Aplica\",0)","v":0},{"$f":"IF($T$67=$C716,\"No Aplica\",0)","v":"No Aplica"},{"$f":"IF($T$85=$C716,\"No Aplica\",0)","v":"No Aplica"},{"$f":"IF($T$103=$C716,\"No Aplica\",0)","v":"No Aplica"},{"$f":"IF($T$121=$C716,\"No Aplica\",0)","v":"No Aplica"},{"$f":"IF($T$139=$C716,\"No Aplica\",0)","v":"No Aplica"},{"$f":"IF($T$157=$C716,\"No Aplica\",0)","v":"No Aplica"}]
[null,"Información","Pérdida de Información crítica para la entidad que no se puede recuperar.",null,{"$f":"IF($T$15=$C717,5,0)","v":0},{"$f":"IF($T$33=$C717,5,0)","v":0},{"$f":"IF(#REF!=$C717,5,0)","v":{"$error":"#REF!"}},{"$f":"IF($T$51=$C717,5,0)","v":0},{"$f":"IF($T$69=$C717,5,0)","v":0},{"$f":"IF($T$87=$C717,5,0)","v":0},{"$f":"IF($T$105=$C717,5,0)","v":0},{"$f":"IF($T$123=$C717,5,0)","v":0},{"$f":"IF($T$141=$C717,5,0)","v":0},{"$f":"IF($T$159=$C717,5,0)","v":0}]
[null,null,"Pérdida de información crítica que puede ser recuperada de forma parcial o incompleta.",null,{"$f":"IF($T$15=$C718,4,0)","v":0},{"$f":"IF($T$33=$C718,4,0)","v":0},{"$f":"IF(#REF!=$C718,4,0)","v":{"$error":"#REF!"}},{"$f":"IF($T$51=$C718,4,0)","v":0},{"$f":"IF($T$69=$C718,4,0)","v":0},{"$f":"IF($T$87=$C718,4,0)","v":0},{"$f":"IF($T$105=$C718,4,0)","v":0},{"$f":"IF($T$123=$C718,4,0)","v":0},{"$f":"IF($T$141=$C718,4,0)","v":0},{"$f":"IF($T$159=$C718,4,0)","v":0}]
[null,null,"Inoportunidad en la información ocasionando retrasos en la atención a los usuarios.",null,{"$f":"IF($T$15=$C719,3,0)","v":0},{"$f":"IF($T$33=$C719,3,0)","v":0},{"$f":"IF(#REF!=$C719,3,0)","v":{"$error":"#REF!"}},{"$f":"IF($T$51=$C719,3,0)","v":0},{"$f":"IF($T$69=$C719,3,0)","v":0},{"$f":"IF($T$87=$C719,3,0)","v":0},{"$f":"IF($T$105=$C719,3,0)","v":0},{"$f":"IF($T$123=$C719,3,0)","v":0},{"$f":"IF($T$141=$C719,3,0)","v":0},{"$f":"IF($T$159=$C719,3,0)","v":0}]
[null,null,"No genera pérdida o inoportunidad de la información ",null,{"$f":"IF($T$15=$C720,1,0)","v":0},{"$f":"IF($T$33=$C720,1,0)","v":0},{"$f":"IF(#REF!=$C720,1,0)","v":{"$error":"#REF!"}},{"$f":"IF($T$51=$C720,1,0)","v":0},{"$f":"IF($T$69=$C720,1,0)","v":0},{"$f":"IF($T$87=$C720,1,0)","v":0},{"$f":"IF($T$105=$C720,1,0)","v":0},{"$f":"IF($T$123=$C720,1,0)","v":0},{"$f":"IF($T$141=$C720,1,0)","v":0},{"$f":"IF($T$159=$C720,1,0)","v":0}]
[null,null,"No Aplica",null,{"$f":"IF($T$15=$C721,\"No Aplica\",0)","v":"No Aplica"},{"$f":"IF($T$33=$C721,\"No Aplica\",0)","v":"No Aplica"},{"$f":"IF(#REF!=$C721,\"No Aplica\",0)","v":{"$error":"#REF!"}},{"$f":"IF($T$51=$C721,\"No Aplica\",0)","v":"No Aplica"},{"$f":"IF($T$69=$C721,\"No Aplica\",0)","v":"No Aplica"},{"$f":"IF($T$87=$C721,\"No Aplica\",0)","v":"No Aplica"},{"$f":"IF($T$105=$C721,\"No Aplica\",0)","v":"No Aplica"},{"$f":"IF($T$123=$C721,\"No Aplica\",0)","v":"No Aplica"},{"$f":"IF($T$141=$C721,\"No Aplica\",0)","v":"No Aplica"},{"$f":"IF($T$159=$C721,\"No Aplica\",0)","v":"No Aplica"}]
[null,"Imagen institucional afectada","Por actos o hechos de corrupción comprobados.",null,{"$f":"IF($T$17=$C722,5,0)","v":0},{"$f":"IF($T$35=$C722,5,0)","v":0},{"$f":"IF(#REF!=$C722,5,0)","v":{"$error":"#REF!"}},{"$f":"IF($T$53=$C722,5,0)","v":0},{"$f":"IF($T$71=$C722,5,0)","v":0},{"$f":"IF($T$89=$C722,5,0)","v":0},{"$f":"IF($T$107=$C722,5,0)","v":0},{"$f":"IF($T$125=$C722,5,0)","v":0},{"$f":"IF($T$143=$C722,5,0)","v":0},{"$f":"IF($T$161=$C722,5,0)","v":0}]
[null,null,"En el orden nacional o regional por incumplimientos en la prestación del servicio",null,{"$f":"IF($T$17=$C723,4,0)","v":0},{"$f":"IF($T$35=$C723,4,0)","v":0},{"$f":"IF(#REF!=$C723,4,0)","v":{"$error":"#REF!"}},{"$f":"IF($T$53=$C723,4,0)","v":0},{"$f":"IF($T$71=$C723,4,0)","v":0},{"$f":"IF($T$89=$C723,4,0)","v":0},{"$f":"IF($T$107=$C723,4,0)","v":0},{"$f":"IF($T$125=$C723,4,0)","v":0},{"$f":"IF($T$143=$C723,4,0)","v":0},{"$f":"IF($T$161=$C723,4,0)","v":0}]
[null,null,"En el orden nacional o regional por retrasos en la prestación del servicio",null,{"$f":"IF($T$17=$C724,3,0)","v":0},{"$f":"IF($T$35=$C724,3,0)","v":0},{"$f":"IF(#REF!=$C724,3,0)","v":{"$error":"#REF!"}},{"$f":"IF($T$53=$C724,3,0)","v":0},{"$f":"IF($T$71=$C724,3,0)","v":0},{"$f":"IF($T$89=$C724,3,0)","v":0},{"$f":"IF($T$107=$C724,3,0)","v":0},{"$f":"IF($T$125=$C724,3,0)","v":0},{"$f":"IF($T$143=$C724,3,0)","v":0},{"$f":"IF($T$161=$C724,3,0)","v":0}]
[null,null,"Localmente por retrasos en la prestación del servicio",null,{"$f":"IF($T$17=$C725,2,0)","v":0},{"$f":"IF($T$35=$C725,2,0)","v":0},{"$f":"IF(#REF!=$C725,2,0)","v":{"$error":"#REF!"}},{"$f":"IF($T$53=$C725,2,0)","v":0},{"$f":"IF($T$71=$C725,2,0)","v":0},{"$f":"IF($T$89=$C725,2,0)","v":0},{"$f":"IF($T$107=$C725,2,0)","v":0},{"$f":"IF($T$125=$C725,2,0)","v":0},{"$f":"IF($T$143=$C725,2,0)","v":0},{"$f":"IF($T$161=$C725,2,0)","v":0}]
[null,null,"No se afecta la imagen institucional de forma significativa.",null,{"$f":"IF($T$17=$C726,1,0)","v":0},{"$f":"IF($T$35=$C726,1,0)","v":0},{"$f":"IF(#REF!=$C726,1,0)","v":{"$error":"#REF!"}},{"$f":"IF($T$53=$C726,1,0)","v":0},{"$f":"IF($T$71=$C726,1,0)","v":0},{"$f":"IF($T$89=$C726,1,0)","v":0},{"$f":"IF($T$107=$C726,1,0)","v":0},{"$f":"IF($T$125=$C726,1,0)","v":0},{"$f":"IF($T$143=$C726,1,0)","v":0},{"$f":"IF($T$161=$C726,1,0)","v":0}]
[null,null,"No Aplica",null,{"$f":"IF($T$17=$C727,\"No Aplica\",0)","v":"No Aplica"},{"$f":"IF($T$35=$C727,\"No Aplica\",0)","v":"No Aplica"},{"$f":"IF(#REF!=$C727,\"No Aplica\",0)","v":{"$error":"#REF!"}},{"$f":"IF($T$53=$C727,\"No Aplica\",0)","v":"No Aplica"},{"$f":"IF($T$71=$C727,\"No Aplica\",0)","v":"No Aplica"},{"$f":"IF($T$89=$C727,\"No Aplica\",0)","v":"No Aplica"},{"$f":"IF($T$107=$C727,\"No Aplica\",0)","v":"No Aplica"},{"$f":"IF($T$125=$C727,\"No Aplica\",0)","v":"No Aplica"},{"$f":"IF($T$143=$C727,\"No Aplica\",0)","v":"No Aplica"},{"$f":"IF($T$161=$C727,\"No Aplica\",0)","v":"No Aplica"}]
[null,"Metas, objetivos y operaciones ","Incumplimiento en las metas y objetivos institucionales afectando de forma grave la ejecución presupuestal.",null,{"$f":"IF($T$19=$C728,5,0)","v":0},{"$f":"IF($T$37=$C728,5,0)","v":0},{"$f":"IF(#REF!=$C728,5,0)","v":{"$error":"#REF!"}},{"$f":"IF($T$55=$C728,5,0)","v":0},{"$f":"IF($T$73=$C728,5,0)","v":0},{"$f":"IF($T$91=$C728,5,0)","v":0},{"$f":"IF($T$109=$C728,5,0)","v":0},{"$f":"IF($T$127=$C728,5,0)","v":0},{"$f":"IF($T$145=$C728,5,0)","v":0},{"$f":"IF($T$163=$C728,5,0)","v":0}]
[null,null,"Incumplimiento en las metas y objetivos institucionales afectando el cumplimiento en las metas de gobierno.",null,{"$f":"IF($T$19=$C729,4,0)","v":0},{"$f":"IF($T$37=$C729,4,0)","v":0},{"$f":"IF(#REF!=$C729,4,0)","v":{"$error":"#REF!"}},{"$f":"IF($T$55=$C729,4,0)","v":0},{"$f":"IF($T$73=$C729,4,0)","v":4},{"$f":"IF($T$91=$C729,4,0)","v":0},{"$f":"IF($T$109=$C729,4,0)","v":0},{"$f":"IF($T$127=$C729,4,0)","v":0},{"$f":"IF($T$145=$C729,4,0)","v":0},{"$f":"IF($T$163=$C729,4,0)","v":0}]
[null,null,"Reproceso de actividades y aumento de carga operativa.",null,{"$f":"IF($T$19=$C730,3,0)","v":0},{"$f":"IF($T$37=$C730,3,0)","v":3},{"$f":"IF(#REF!=$C730,3,0)","v":{"$error":"#REF!"}},{"$f":"IF($T$55=$C730,3,0)","v":0},{"$f":"IF($T$73=$C730,3,0)","v":0},{"$f":"IF($T$91=$C730,3,0)","v":0},{"$f":"IF($T$109=$C730,3,0)","v":0},{"$f":"IF($T$127=$C730,3,0)","v":0},{"$f":"IF($T$145=$C730,3,0)","v":0},{"$f":"IF($T$163=$C730,3,0)","v":0}]
[null,null,"No hay interrupción de las operaciones de la Entidad.",null,{"$f":"IF($T$19=$C731,1,0)","v":0},{"$f":"IF($T$37=$C731,1,0)","v":0},{"$f":"IF(#REF!=$C731,1,0)","v":{"$error":"#REF!"}},{"$f":"IF($T$55=$C731,1,0)","v":0},{"$f":"IF($T$73=$C731,1,0)","v":0},{"$f":"IF($T$91=$C731,1,0)","v":0},{"$f":"IF($T$109=$C731,1,0)","v":0},{"$f":"IF($T$127=$C731,1,0)","v":0},{"$f":"IF($T$145=$C731,1,0)","v":0},{"$f":"IF($T$163=$C731,1,0)","v":0}]
[null,null,"No Aplica",null,{"$f":"IF($T$19=$C732,\"No Aplica\",0)","v":"No Aplica"},{"$f":"IF($T$37=$C732,\"No Aplica\",0)","v":0},{"$f":"IF(#REF!=$C732,\"No Aplica\",0)","v":{"$error":"#REF!"}},{"$f":"IF($T$55=$C732,\"No Aplica\",0)","v":"No Aplica"},{"$f":"IF($T$73=$C732,\"No Aplica\",0)","v":0},{"$f":"IF($T$91=$C732,\"No Aplica\",0)","v":"No Aplica"},{"$f":"IF($T$109=$C732,\"No Aplica\",0)","v":"No Aplica"},{"$f":"IF($T$127=$C732,\"No Aplica\",0)","v":"No Aplica"},{"$f":"IF($T$145=$C732,\"No Aplica\",0)","v":"No Aplica"},{"$f":"IF($T$163=$C732,\"No Aplica\",0)","v":"No Aplica"}]
[]
[null,"RIESGO INHERENTE EN GESTIÓN",null,null,{"$f":"+E640","v":"Rara vez"},"Probable",{"$error":"#REF!"},"Improbable","Probable","No Aplica","No Aplica","No Aplica","No Aplica","No Aplica"]
[null,"PROBABILIDAD","IMPACTO","ZR I",{"$f":"+E665","v":"No Aplica"},"Catastrófico",{"$error":"#REF!"},"Insignificante","Mayor","No Aplica","No Aplica","No Aplica","No Aplica","No Aplica"]
[null,"Rara Vez","Insignificante",1,{"$f":"+IF(AND($B736=E$734,$C736=E$735),$D736,0)","v":0},{"$f":"+IF(AND($B736=F$734,$C736=F$735),$D736,0)","v":0},{"$f":"+IF(AND($B736=G$734,$C736=G$735),$D736,0)","v":{"$error":"#REF!"}},0,0,0,0,0,0,0]
[null,"Rara Vez","Menor",1,{"$f":"+IF(AND(B737=E$734,C737=E$735),D737,0)","v":0},{"$f":"+IF(AND($B737=F$734,$C737=F$735),$D737,0)","v":0},{"$error":"#REF!"},0,0,0,0,0,0,0]
[null,"Rara Vez","Moderado",2,0,0,{"$error":"#REF!"},0,0,0,0,0,0,0]
[null,"Rara Vez","Mayor",3,0,0,{"$error":"#REF!"},0,0,0,0,0,0,0]
[null,"Rara Vez","Catastrófico",3,0,0,{"$error":"#REF!"},0,0,0,0,0,0,0]
[null,"Improbable","Insignificante",1,0,0,{"$error":"#REF!"},1,0,0,0,0,0,0]
[null,"Improbable","Menor",1,0,0,{"$error":"#REF!"},0,0,0,0,0,0,0]
[null,"Improbable","Moderado",2,0,0,{"$error":"#REF!"},0,0,0,0,0,0,0]
[null,"Improbable","Mayor",3,0,0,{"$error":"#REF!"},0,0,0,0,0,0,0]
[null,"Improbable","Catastrófico",4,0,0,{"$error":"#REF!"},0,0,0,0,0,0,0]
[null,"Posible","Insignificante",1,0,0,{"$error":"#REF!"},0,0,0,0,0,0,0]
[null,"Posible","Menor",2,0,0,{"$error":"#REF!"},0,0,0,0,0,0,0]
[null,"Posible","Moderado",3,0,0,{"$error":"#REF!"},0,0,0,0,0,0,0]
[null,"Posible","Mayor",4,0,0,{"$error":"#REF!"},0,0,0,0,0,0,0]
[null,"Posible","Catastrófico",4,0,0,{"$error":"#REF!"},0,0,0,0,0,0,0]
[null,"Probable","Insignificante",2,0,0,{"$error":"#REF!"},0,0,0,0,0,0,0]
[null,"Probable","Menor",3,0,0,{"$f":"+IF(AND($B752=G$734,$C752=G$735),$D752,0)","v":{"$error":"#REF!"}},0,0,0,0,0,0,0]
[null,"Probable","Moderado",3,0,{"$f":"+IF(AND($B753=F$734,$C753=F$735),$D753,0)","v":0},{"$error":"#REF!"},0,0,0,0,0,0,0]
[null,"Probable","Mayor",4,0,0,{"$error":"#REF!"},0,4,0,0,0,0,0]
[null,"Probable","Catastrófico",4,0,4,{"$error":"#REF!"},0,0,0,0,0,0,0]
[null,"Casi Seguro","Insignificante",3,0,0,{"$error":"#REF!"},0,0,0,0,0,0,0]
[null,"Casi Seguro","Menor",3,0,0,{"$error":"#REF!"},0,0,0,0,0,0,0]
[null,"Casi Seguro","Moderado",4,0,0,{"$error":"#REF!"},0,0,0,0,0,0,0]
[null,"Casi Seguro","Mayor",4,0,0,{"$error":"#REF!"},0,0,0,0,0,0,0]
[null,"Casi Seguro","Catastrófico",4,0,0,{"$error":"#REF!"},0,0,0,0,0,0,0]
[]
[null,"NATURALEZA DEL CONTROL"]
[null,"Preventivo"]
[null,"Detectivo"]
[null,"Correctivo"]
[null,"No Aplica"]
[]
[null,"PERIODICIDAD"]
[null,"Aleatoria","Monitoreo permanente y se deja registro mensual "]
[null,"Diaria"]
[null,"Semanal"]
[null,"Mensual"]
[null,"Trimestral","Monitoreo mensual y se deja registro trimestral "]
[null,"Semestral","No Aplica"]
[null,"Anual"]
[null,"Cuando se Requiera"]
[null,"No Aplica"]
[]
[null,"Controles",null,"Riesgo 1",null,null,null,"Tipo Riesgo","Probabilidad",null,"Impacto"]
[null,"Naturaleza del Control","Controles diligenciados","Tipo","Calificación ","Disminuye probabilidad","Disminuye impacto","Riesgo Inherente"]
[null,null,"Control 1",{"$f":"+W15","v":"Preventivo"},{"$f":"+Z16","v":85},{"$f":"+IF(D781=B782,E781,0)","v":85},{"$f":"+IF(D781=B782,0,E781)","v":0},"Corrupción",{"$f":"+E640","v":"Rara vez"},{"$f":"E641","v":1},{"$f":"$E$652","v":"Moderado"},{"$f":"IF(K781=\"Catastrófico\",5,IF(K781=\"Mayor\",4,IF(K781=\"Moderado\",3,IF(K781=\"Menor\",2,IF(K781=\"Insignificante\",1,0)))))","v":3}]
[null,"Preventivo","Control 2",{"$f":"+AB15","v":"No Aplica"},{"$f":"+AE16","v":0},{"$f":"+IF(D782=B782,E782,0)","v":0},{"$f":"+IF(D782=B782,0,E782)","v":0},"Gestión",null,null,{"$f":"$E$665","v":"No Aplica"},{"$f":"IF(K782=\"Catastrófico\",5,IF(K782=\"Mayor\",4,IF(K782=\"Moderado\",3,IF(K782=\"Menor\",2,IF(K782=\"Insignificante\",1,0)))))","v":0},null,"Catastrófico",null,"Casi seguro"]
[null,"Detectivo","Control 3",{"$f":"+AG15","v":"No Aplica"},{"$f":"+AJ16","v":0},{"$f":"+IF(D783=B782,E783,0)","v":0},{"$f":"+IF(D783=B782,0,E783)","v":0},"Riesgo Residual",null,null,null,null,null,"Mayor",null,"Probable"]
[null,"Correctivo","Control 4",{"$f":"+AL15","v":"No Aplica"},{"$f":"+AO16","v":0},{"$f":"+IF(D784=B782,E784,0)","v":0},{"$f":"+IF(D784=B782,0,E784)","v":0},"Corrupción",{"$f":"IF(J784=5,\"Casi seguro\",IF(J784=4,\"Probable\",IF(J784=3,\"Posible\",IF(J784=2,\"Improbable\",IF(J784=1,\"Rara vez\",0)))))","v":"Rara vez"},{"$f":"+IF(F787>0,J781-F786,1)","v":1},{"$f":"IF(L784=5,\"Catastrófico\",IF(L784=4,\"Mayor\",\"Moderado\"))","v":"Moderado"},{"$f":"+IF(G787>0,G787,1)","v":3},null,"Moderado",null,"Posible"]
[null,"No Aplica","Mejor evaluado ",null,null,{"$f":"MAX(F781:F784)","v":85},{"$f":"MAX(G781:G784)","v":0},"Gestión",null,null,{"$f":"IF(L785=5,\"Catastrófico\",IF(L785=4,\"Mayor\",IF(L785=3,\"Moderado\",IF(L785=2,\"Menor\",IF(L785=1,\"Insignificante\",0)))))","v":"Insignificante"},{"$f":"+IF(G788>0,G788,1)","v":1},null,"Menor",null,"Improbable"]
[null,null,"Total posiciones a desplazarse",null,null,{"$f":"+IF(F785>75,2,IF(AND(F785>50,F785<76),1,0))","v":2},{"$f":"+IF(G785>75,2,IF(AND(G785>50,G785<76),1,0))","v":0},{"$f":"+F786+G786","v":2},null,null,null,null,null,"Insignificante",null,"Rara vez"]
[null,null,"Nueva zona Corrupción",null,null,{"$f":"+J781-F786","v":-1},{"$f":"+L781-G786","v":3}]
[null,null,"Nueva zona Gestión",null,null,null,{"$f":"+L782-G786","v":0}]
[]
[null,"Controles",null,"Riesgo 2",null,null,null,"Tipo Riesgo","Probabilidad",null,"Impacto"]
[null,"Naturaleza del Control","Controles diligenciados","Tipo","Calificación ","Disminuye probabilidad","Disminuye impacto","Riesgo Inherente"]
[null,null,"Control 1",{"$f":"+W33","v":"Preventivo"},{"$f":"+Z34","v":45},{"$f":"+IF(D792=B793,E792,0)","v":45},{"$f":"+IF(D792=B793,0,E792)","v":0},"Corrupción",{"$f":"+F640","v":"Probable"},{"$f":"F641","v":4},{"$f":"$F$652","v":"Moderado"},{"$f":"IF(K792=\"Catastrófico\",5,IF(K792=\"Mayor\",4,IF(K792=\"Moderado\",3,IF(K792=\"Menor\",2,IF(K792=\"Insignificante\",1,0)))))","v":3}]
[null,"Preventivo","Control 2",{"$f":"+AB33","v":"Preventivo"},{"$f":"+AE34","v":70},{"$f":"+IF(D793=B793,E793,0)","v":70},{"$f":"+IF(D793=B793,0,E793)","v":0},"Gestión",null,null,{"$f":"$F$665","v":"Catastrófico"},{"$f":"IF(K793=\"Catastrófico\",5,IF(K793=\"Mayor\",4,IF(K793=\"Moderado\",3,IF(K793=\"Menor\",2,IF(K793=\"Insignificante\",1,0)))))","v":5}]
[null,"Detectivo","Control 3",{"$f":"+AG33","v":"Preventivo"},{"$f":"+AJ34","v":70},{"$f":"+IF(D794=B793,E794,0)","v":70},{"$f":"+IF(D794=B793,0,E794)","v":0},"Riesgo Residual"]
[null,"Correctivo","Control 4",{"$f":"+AL33","v":"No Aplica"},{"$f":"+AO34","v":0},{"$f":"+IF(D795=B793,E795,0)","v":0},{"$f":"+IF(D795=B793,0,E795)","v":0},"Corrupción",{"$f":"IF(J795=5,\"Casi seguro\",IF(J795=4,\"Probable\",IF(J795=3,\"Posible\",IF(J795=2,\"Improbable\",IF(J795=1,\"Rara vez\",0)))))","v":"Posible"},{"$f":"+IF(F798>0,J792-F797,1)","v":3},{"$f":"IF(L795=5,\"Catastrófico\",IF(L795=4,\"Mayor\",\"Moderado\"))","v":"Moderado"},{"$f":"+IF(G798>0,G798,1)","v":3}]
[null,"No Aplica","Mejor evaluado ",null,null,{"$f":"MAX(F792:F795)","v":70},{"$f":"MAX(G792:G795)","v":0},"Gestión",null,null,{"$f":"IF(L796=5,\"Catastrófico\",IF(L796=4,\"Mayor\",IF(L796=3,\"Moderado\",IF(L796=2,\"Menor\",IF(L796=1,\"Insignificante\",0)))))","v":"Catastrófico"},{"$f":"+IF(G799>0,G799,1)","v":5}]
[null,null,"Total posiciones a desplazarse",null,null,{"$f":"+IF(F796>75,2,IF(AND(F796>50,F796<76),1,0))","v":1},{"$f":"+IF(G796>75,2,IF(AND(G796>50,G796<76),1,0))","v":0},{"$f":"+F797+G797","v":1}]
[null,null,"Nueva zona Corrupción",null,null,{"$f":"+J792-F797","v":3},{"$f":"+L792-G797","v":3}]
[null,null,"Nueva zona Gestión",null,null,null,{"$f":"+L793-G797","v":5}]
[]
[null,"Controles",null,"Riesgo 3",null,null,null,"Tipo Riesgo","Probabilidad",null,"Impacto"]
[null,"Naturaleza del Control","Controles diligenciados","Tipo","Calificación ","Disminuye probabilidad","Disminuye impacto","Riesgo Inherente"]
[null,null,"Control 1",{"$f":"+#REF!","v":{"$error":"#REF!"}},{"$f":"+#REF!","v":{"$error":"#REF!"}},{"$f":"+IF(D803=B804,E803,0)","v":{"$error":"#REF!"}},{"$f":"+IF(D803=B804,0,E803)","v":{"$error":"#REF!"}},"Corrupción",{"$f":"+G640","v":{"$error":"#REF!"}},{"$f":"G641","v":{"$error":"#REF!"}},{"$f":"$G$652","v":{"$error":"#REF!"}},{"$f":"IF(K803=\"Catastrófico\",5,IF(K803=\"Mayor\",4,IF(K803=\"Moderado\",3,IF(K803=\"Menor\",2,IF(K803=\"Insignificante\",1,0)))))","v":{"$error":"#REF!"}}]
[null,"Preventivo","Control 2",{"$f":"+#REF!","v":{"$error":"#REF!"}},{"$f":"+#REF!","v":{"$error":"#REF!"}},{"$f":"+IF(D804=B804,E804,0)","v":{"$error":"#REF!"}},{"$f":"+IF(D804=B804,0,E804)","v":{"$error":"#REF!"}},"Gestión",null,null,{"$f":"$G$665","v":{"$error":"#REF!"}},{"$f":"IF(K804=\"Catastrófico\",5,IF(K804=\"Mayor\",4,IF(K804=\"Moderado\",3,IF(K804=\"Menor\",2,IF(K804=\"Insignificante\",1,0)))))","v":{"$error":"#REF!"}}]
[null,"Detectivo","Control 3",{"$f":"+#REF!","v":{"$error":"#REF!"}},{"$f":"+#REF!","v":{"$error":"#REF!"}},{"$f":"+IF(D805=B804,E805,0)","v":{"$error":"#REF!"}},{"$f":"+IF(D805=B804,0,E805)","v":{"$error":"#REF!"}},"Riesgo Residual"]
[null,"Correctivo","Control 4",{"$f":"+#REF!","v":{"$error":"#REF!"}},{"$f":"+#REF!","v":{"$error":"#REF!"}},{"$f":"+IF(D806=B804,E806,0)","v":{"$error":"#REF!"}},{"$f":"+IF(D806=B804,0,E806)","v":{"$error":"#REF!"}},"Corrupción",{"$f":"IF(J806=5,\"Casi seguro\",IF(J806=4,\"Probable\",IF(J806=3,\"Posible\",IF(J806=2,\"Improbable\",IF(J806=1,\"Rara vez\",0)))))","v":{"$error":"#REF!"}},{"$f":"+IF(F809>0,J803-F808,1)","v":{"$error":"#REF!"}},{"$f":"IF(L806=5,\"Catastrófico\",IF(L806=4,\"Mayor\",\"Moderado\"))","v":{"$error":"#REF!"}},{"$f":"+IF(G809>0,G809,1)","v":{"$error":"#REF!"}}]
[null,"No Aplica","Mejor evaluado ",null,null,{"$f":"MAX(F803:F806)","v":{"$error":"#REF!"}},{"$f":"MAX(G803:G806)","v":{"$error":"#REF!"}},"Gestión",null,null,{"$f":"IF(L807=5,\"Catastrófico\",IF(L807=4,\"Mayor\",IF(L807=3,\"Moderado\",IF(L807=2,\"Menor\",IF(L807=1,\"Insignificante\",0)))))","v":{"$error":"#REF!"}},{"$f":"+IF(G810>0,G810,1)","v":{"$error":"#REF!"}}]
[null,null,"Total posiciones a desplazarse",null,null,{"$f":"+IF(F807>75,2,IF(AND(F807>50,F807<76),1,0))","v":{"$error":"#REF!"}},{"$f":"+IF(G807>75,2,IF(AND(G807>50,G807<76),1,0))","v":{"$error":"#REF!"}},{"$f":"+F808+G808","v":{"$error":"#REF!"}}]
[null,null,"Nueva zona Corrupción",null,null,{"$f":"+J803-F808","v":{"$error":"#REF!"}},{"$f":"+L803-G808","v":{"$error":"#REF!"}}]
[null,null,"Nueva zona Gestión",null,null,null,{"$f":"+L804-G808","v":{"$error":"#REF!"}}]
[]
[null,"Controles",null,"Riesgo 4",null,null,null,"Tipo Riesgo","Probabilidad",null,"Impacto"]
[null,"Naturaleza del Control","Controles diligenciados","Tipo","Calificación ","Disminuye probabilidad","Disminuye impacto","Riesgo Inherente"]
[null,null,"Control 1",{"$f":"+W51","v":"Detectivo"},{"$f":"+Z52","v":85},{"$f":"+IF(D814=B815,E814,0)","v":0},{"$f":"+IF(D814=B815,0,E814)","v":85},"Corrupción",{"$f":"+H640","v":"Improbable"},{"$f":"H641","v":2},{"$f":"$H$652","v":"Moderado"},{"$f":"IF(K814=\"Catastrófico\",5,IF(K814=\"Mayor\",4,IF(K814=\"Moderado\",3,IF(K814=\"Menor\",2,IF(K814=\"Insignificante\",1,0)))))","v":3}]
[null,"Preventivo","Control 2",{"$f":"+AB51","v":"Preventivo"},{"$f":"+AE52","v":85},{"$f":"+IF(D815=B815,E815,0)","v":85},{"$f":"+IF(D815=B815,0,E815)","v":0},"Gestión",null,null,{"$f":"$H$665","v":"Insignificante"},{"$f":"IF(K815=\"Catastrófico\",5,IF(K815=\"Mayor\",4,IF(K815=\"Moderado\",3,IF(K815=\"Menor\",2,IF(K815=\"Insignificante\",1,0)))))","v":1}]
[null,"Detectivo","Control 3",{"$f":"+AG51","v":"Detectivo"},{"$f":"+AJ52","v":85},{"$f":"+IF(D816=B815,E816,0)","v":0},{"$f":"+IF(D816=B815,0,E816)","v":85},"Riesgo Residual"]
[null,"Correctivo","Control 4",{"$f":"+AL51","v":"No Aplica"},{"$f":"+AO52","v":0},{"$f":"+IF(D817=B815,E817,0)","v":0},{"$f":"+IF(D817=B815,0,E817)","v":0},"Corrupción",{"$f":"IF(J817=5,\"Casi seguro\",IF(J817=4,\"Probable\",IF(J817=3,\"Posible\",IF(J817=2,\"Improbable\",IF(J817=1,\"Rara vez\",0)))))","v":"Rara vez"},{"$f":"+IF(F820>0,J814-F819,1)","v":1},{"$f":"IF(L817=5,\"Catastrófico\",IF(L817=4,\"Mayor\",\"Moderado\"))","v":"Moderado"},{"$f":"+IF(G820>0,G820,1)","v":1}]
[null,"No Aplica","Mejor evaluado ",null,null,{"$f":"MAX(F814:F817)","v":85},{"$f":"MAX(G814:G817)","v":85},"Gestión",null,null,{"$f":"IF(L818=5,\"Catastrófico\",IF(L818=4,\"Mayor\",IF(L818=3,\"Moderado\",IF(L818=2,\"Menor\",IF(L818=1,\"Insignificante\",0)))))","v":"Insignificante"},{"$f":"+IF(G821>0,G821,1)","v":1}]
[null,null,"Total posiciones a desplazarse",null,null,{"$f":"+IF(F818>75,2,IF(AND(F818>50,F818<76),1,0))","v":2},{"$f":"+IF(G818>75,2,IF(AND(G818>50,G818<76),1,0))","v":2},{"$f":"+F819+G819","v":4}]
[null,null,"Nueva zona Corrupción",null,null,{"$f":"+J814-F819","v":0},{"$f":"+L814-G819","v":1}]
[null,null,"Nueva zona Gestión",null,null,null,{"$f":"+L815-G819","v":-1}]
[]
[null,"Controles",null,"Riesgo 5",null,null,null,"Tipo Riesgo","Probabilidad",null,"Impacto"]
[null,"Naturaleza del Control","Controles diligenciados","Tipo","Calificación ","Disminuye probabilidad","Disminuye impacto","Riesgo Inherente"]
[null,null,"Control 1",{"$f":"+W69","v":"Correctivo"},{"$f":"+Z70","v":25},{"$f":"+IF(D825=B826,E825,0)","v":0},{"$f":"+IF(D825=B826,0,E825)","v":25},"Corrupción",{"$f":"+I640","v":"Probable"},{"$f":"I641","v":4},{"$f":"$I$652","v":"Moderado"},{"$f":"IF(K825=\"Catastrófico\",5,IF(K825=\"Mayor\",4,IF(K825=\"Moderado\",3,IF(K825=\"Menor\",2,IF(K825=\"Insignificante\",1,0)))))","v":3}]
[null,"Preventivo","Control 2",{"$f":"+AB69","v":"No Aplica"},{"$f":"+AE70","v":0},{"$f":"+IF(D826=B826,E826,0)","v":0},{"$f":"+IF(D826=B826,0,E826)","v":0},"Gestión",null,null,{"$f":"$I$665","v":"Mayor"},{"$f":"IF(K826=\"Catastrófico\",5,IF(K826=\"Mayor\",4,IF(K826=\"Moderado\",3,IF(K826=\"Menor\",2,IF(K826=\"Insignificante\",1,0)))))","v":4}]
[null,"Detectivo","Control 3",{"$f":"+AG69","v":"No Aplica"},{"$f":"+AJ70","v":0},{"$f":"+IF(D827=B826,E827,0)","v":0},{"$f":"+IF(D827=B826,0,E827)","v":0},"Riesgo Residual"]
[null,"Correctivo","Control 4",{"$f":"+AL69","v":"No Aplica"},{"$f":"+AO70","v":0},{"$f":"+IF(D828=B826,E828,0)","v":0},{"$f":"+IF(D828=B826,0,E828)","v":0},"Corrupción",{"$f":"IF(J828=5,\"Casi seguro\",IF(J828=4,\"Probable\",IF(J828=3,\"Posible\",IF(J828=2,\"Improbable\",IF(J828=1,\"Rara vez\",0)))))","v":"Probable"},{"$f":"+IF(F831>0,J825-F830,1)","v":4},{"$f":"IF(L828=5,\"Catastrófico\",IF(L828=4,\"Mayor\",\"Moderado\"))","v":"Moderado"},{"$f":"+IF(G831>0,G831,1)","v":3}]
[null,"No Aplica","Mejor evaluado ",null,null,{"$f":"MAX(F825:F828)","v":0},{"$f":"MAX(G825:G828)","v":25},"Gestión",null,null,{"$f":"IF(L829=5,\"Catastrófico\",IF(L829=4,\"Mayor\",IF(L829=3,\"Moderado\",IF(L829=2,\"Menor\",IF(L829=1,\"Insignificante\",0)))))","v":"Mayor"},{"$f":"+IF(G832>0,G832,1)","v":4}]
[null,null,"Total posiciones a desplazarse",null,null,{"$f":"+IF(F829>75,2,IF(AND(F829>50,F829<76),1,0))","v":0},{"$f":"+IF(G829>75,2,IF(AND(G829>50,G829<76),1,0))","v":0},{"$f":"+F830+G830","v":0}]
[null,null,"Nueva zona Corrupción",null,null,{"$f":"+J825-F830","v":4},{"$f":"+L825-G830","v":3}]
[null,null,"Nueva zona Gestión",null,null,null,{"$f":"+L826-G830","v":4}]
[]
[null,"Controles",null,"Riesgo 6",null,null,null,"Tipo Riesgo","Probabilidad",null,"Impacto"]
[null,"Naturaleza del Control","Controles diligenciados","Tipo","Calificación ","Disminuye probabilidad","Disminuye impacto","Riesgo Inherente"]
[null,null,"Control 1",{"$f":"+W87","v":"No Aplica"},{"$f":"+Z88","v":0},{"$f":"+IF(D836=B837,E836,0)","v":0},{"$f":"+IF(D836=B837,0,E836)","v":0},"Corrupción",{"$f":"+J640","v":"No Aplica"},{"$f":"J641","v":0},{"$f":"$J$652","v":"Moderado"},{"$f":"IF(K836=\"Catastrófico\",5,IF(K836=\"Mayor\",4,IF(K836=\"Moderado\",3,IF(K836=\"Menor\",2,IF(K836=\"Insignificante\",1,0)))))","v":3}]
[null,"Preventivo","Control 2",{"$f":"+AB87","v":"No Aplica"},{"$f":"+AE88","v":0},{"$f":"+IF(D837=B837,E837,0)","v":0},{"$f":"+IF(D837=B837,0,E837)","v":0},"Gestión",null,null,{"$f":"$J$665","v":"No Aplica"},{"$f":"IF(K837=\"Catastrófico\",5,IF(K837=\"Mayor\",4,IF(K837=\"Moderado\",3,IF(K837=\"Menor\",2,IF(K837=\"Insignificante\",1,0)))))","v":0}]
[null,"Detectivo","Control 3",{"$f":"+AG87","v":"No Aplica"},{"$f":"+AJ88","v":0},{"$f":"+IF(D838=B837,E838,0)","v":0},{"$f":"+IF(D838=B837,0,E838)","v":0},"Riesgo Residual"]
[null,"Correctivo","Control 4",{"$f":"+AL87","v":"No Aplica"},{"$f":"+AO88","v":0},{"$f":"+IF(D839=B837,E839,0)","v":0},{"$f":"+IF(D839=B837,0,E839)","v":0},"Corrupción",{"$f":"IF(J839=5,\"Casi seguro\",IF(J839=4,\"Probable\",IF(J839=3,\"Posible\",IF(J839=2,\"Improbable\",IF(J839=1,\"Rara vez\",0)))))","v":"Rara vez"},{"$f":"+IF(F842>0,J836-F841,1)","v":1},{"$f":"IF(L839=5,\"Catastrófico\",IF(L839=4,\"Mayor\",\"Moderado\"))","v":"Moderado"},{"$f":"+IF(G842>0,G842,1)","v":3}]
[null,"No Aplica","Mejor evaluado ",null,null,{"$f":"MAX(F836:F839)","v":0},{"$f":"MAX(G836:G839)","v":0},"Gestión",null,null,{"$f":"IF(L840=5,\"Catastrófico\",IF(L840=4,\"Mayor\",IF(L840=3,\"Moderado\",IF(L840=2,\"Menor\",IF(L840=1,\"Insignificante\",0)))))","v":"Insignificante"},{"$f":"+IF(G843>0,G843,1)","v":1}]
[null,null,"Total posiciones a desplazarse",null,null,{"$f":"+IF(F840>75,2,IF(AND(F840>50,F840<76),1,0))","v":0},{"$f":"+IF(G840>75,2,IF(AND(G840>50,G840<76),1,0))","v":0},{"$f":"+F841+G841","v":0}]
[null,null,"Nueva zona Corrupción",null,null,{"$f":"+J836-F841","v":0},{"$f":"+L836-G841","v":3}]
[null,null,"Nueva zona Gestión",null,null,null,{"$f":"+L837-G841","v":0}]
[]
[null,"Controles",null,"Riesgo 7",null,null,null,"Tipo Riesgo","Probabilidad",null,"Impacto"]
[null,"Naturaleza del Control","Controles diligenciados","Tipo","Calificación ","Disminuye probabilidad","Disminuye impacto","Riesgo Inherente"]
[null,null,"Control 1",{"$f":"+W105","v":"No Aplica"},{"$f":"+Z106","v":0},{"$f":"+IF(D847=B848,E847,0)","v":0},{"$f":"+IF(D847=B848,0,E847)","v":0},"Corrupción",{"$f":"+K640","v":"No Aplica"},{"$f":"K641","v":0},{"$f":"$K$652","v":"Moderado"},{"$f":"IF(K847=\"Catastrófico\",5,IF(K847=\"Mayor\",4,IF(K847=\"Moderado\",3,IF(K847=\"Menor\",2,IF(K847=\"Insignificante\",1,0)))))","v":3}]
[null,"Preventivo","Control 2",{"$f":"+AB105","v":"No Aplica"},{"$f":"+AE106","v":0},{"$f":"+IF(D848=B848,E848,0)","v":0},{"$f":"+IF(D848=B848,0,E848)","v":0},"Gestión",null,null,{"$f":"$K$665","v":"No Aplica"},{"$f":"IF(K848=\"Catastrófico\",5,IF(K848=\"Mayor\",4,IF(K848=\"Moderado\",3,IF(K848=\"Menor\",2,IF(K848=\"Insignificante\",1,0)))))","v":0}]
[null,"Detectivo","Control 3",{"$f":"+AG105","v":"No Aplica"},{"$f":"+AJ106","v":0},{"$f":"+IF(D849=B848,E849,0)","v":0},{"$f":"+IF(D849=B848,0,E849)","v":0},"Riesgo Residual"]
[null,"Correctivo","Control 4",{"$f":"+AL105","v":"No Aplica"},{"$f":"+AO106","v":0},{"$f":"+IF(D850=B848,E850,0)","v":0},{"$f":"+IF(D850=B848,0,E850)","v":0},"Corrupción",{"$f":"IF(J850=5,\"Casi seguro\",IF(J850=4,\"Probable\",IF(J850=3,\"Posible\",IF(J850=2,\"Improbable\",IF(J850=1,\"Rara vez\",0)))))","v":"Rara vez"},{"$f":"+IF(F853>0,J847-F852,1)","v":1},{"$f":"IF(L850=5,\"Catastrófico\",IF(L850=4,\"Mayor\",\"Moderado\"))","v":"Moderado"},{"$f":"+IF(G853>0,G853,1)","v":3}]
[null,"No Aplica","Mejor evaluado ",null,null,{"$f":"MAX(F847:F850)","v":0},{"$f":"MAX(G847:G850)","v":0},"Gestión",null,null,{"$f":"IF(L851=5,\"Catastrófico\",IF(L851=4,\"Mayor\",IF(L851=3,\"Moderado\",IF(L851=2,\"Menor\",IF(L851=1,\"Insignificante\",0)))))","v":"Insignificante"},{"$f":"+IF(G854>0,G854,1)","v":1}]
[null,null,"Total posiciones a desplazarse",null,null,{"$f":"+IF(F851>75,2,IF(AND(F851>50,F851<76),1,0))","v":0},{"$f":"+IF(G851>75,2,IF(AND(G851>50,G851<76),1,0))","v":0},{"$f":"+F852+G852","v":0}]
[null,null,"Nueva zona Corrupción",null,null,{"$f":"+J847-F852","v":0},{"$f":"+L847-G852","v":3}]
[null,null,"Nueva zona Gestión",null,null,null,{"$f":"+L848-G852","v":0}]
[]
[null,"Controles",null,"Riesgo 8",null,null,null,"Tipo Riesgo","Probabilidad",null,"Impacto"]
[null,"Naturaleza del Control","Controles diligenciados","Tipo","Calificación ","Disminuye probabilidad","Disminuye impacto","Riesgo Inherente"]
[null,null,"Control 1",{"$f":"+W123","v":"No Aplica"},{"$f":"+Z124","v":0},{"$f":"+IF(D858=B859,E858,0)","v":0},{"$f":"+IF(D858=B859,0,E858)","v":0},"Corrupción",{"$f":"+L640","v":"No Aplica"},{"$f":"L641","v":0},{"$f":"$L$652","v":"Moderado"},{"$f":"IF(K858=\"Catastrófico\",5,IF(K858=\"Mayor\",4,IF(K858=\"Moderado\",3,IF(K858=\"Menor\",2,IF(K858=\"Insignificante\",1,0)))))","v":3}]
[null,"Preventivo","Control 2",{"$f":"+AB123","v":"No Aplica"},{"$f":"+AE124","v":0},{"$f":"+IF(D859=B859,E859,0)","v":0},{"$f":"+IF(D859=B859,0,E859)","v":0},"Gestión",null,null,{"$f":"$L$665","v":"No Aplica"},{"$f":"IF(K859=\"Catastrófico\",5,IF(K859=\"Mayor\",4,IF(K859=\"Moderado\",3,IF(K859=\"Menor\",2,IF(K859=\"Insignificante\",1,0)))))","v":0}]
[null,"Detectivo","Control 3",{"$f":"+AG123","v":"No Aplica"},{"$f":"+AJ124","v":0},{"$f":"+IF(D860=B859,E860,0)","v":0},{"$f":"+IF(D860=B859,0,E860)","v":0},"Riesgo Residual"]
[null,"Correctivo","Control 4",{"$f":"+AL123","v":"No Aplica"},{"$f":"+AO124","v":0},{"$f":"+IF(D861=B859,E861,0)","v":0},{"$f":"+IF(D861=B859,0,E861)","v":0},"Corrupción",{"$f":"IF(J861=5,\"Casi seguro\",IF(J861=4,\"Probable\",IF(J861=3,\"Posible\",IF(J861=2,\"Improbable\",IF(J861=1,\"Rara vez\",0)))))","v":"Rara vez"},{"$f":"+IF(F864>0,J858-F863,1)","v":1},{"$f":"IF(L861=5,\"Catastrófico\",IF(L861=4,\"Mayor\",\"Moderado\"))","v":"Moderado"},{"$f":"+IF(G864>0,G864,1)","v":3}]
[null,"No Aplica","Mejor evaluado ",null,null,{"$f":"MAX(F858:F861)","v":0},{"$f":"MAX(G858:G861)","v":0},"Gestión",null,null,{"$f":"IF(L862=5,\"Catastrófico\",IF(L862=4,\"Mayor\",IF(L862=3,\"Moderado\",IF(L862=2,\"Menor\",IF(L862=1,\"Insignificante\",0)))))","v":"Insignificante"},{"$f":"+IF(G865>0,G865,1)","v":1}]
[null,null,"Total posiciones a desplazarse",null,null,{"$f":"+IF(F862>75,2,IF(AND(F862>50,F862<76),1,0))","v":0},{"$f":"+IF(G862>75,2,IF(AND(G862>50,G862<76),1,0))","v":0},{"$f":"+F863+G863","v":0}]
[null,null,"Nueva zona Corrupción",null,null,{"$f":"+J858-F863","v":0},{"$f":"+L858-G863","v":3}]
[null,null,"Nueva zona Gestión",null,null,null,{"$f":"+L859-G863","v":0}]
[]
[null,"Controles",null,"Riesgo 9",null,null,null,"Tipo Riesgo","Probabilidad",null,"Impacto"]
[null,"Naturaleza del Control","Controles diligenciados","Tipo","Calificación ","Disminuye probabilidad","Disminuye impacto","Riesgo Inherente"]
[null,null,"Control 1",{"$f":"+W141","v":"No Aplica"},{"$f":"+Z142","v":0},{"$f":"+IF(D869=B870,E869,0)","v":0},{"$f":"+IF(D869=B870,0,E869)","v":0},"Corrupción",{"$f":"+M640","v":"No Aplica"},{"$f":"M641","v":0},{"$f":"$M$652","v":"Moderado"},{"$f":"IF(K869=\"Catastrófico\",5,IF(K869=\"Mayor\",4,IF(K869=\"Moderado\",3,IF(K869=\"Menor\",2,IF(K869=\"Insignificante\",1,0)))))","v":3}]
[null,"Preventivo","Control 2",{"$f":"+AB141","v":"No Aplica"},{"$f":"+AE142","v":0},{"$f":"+IF(D870=B870,E870,0)","v":0},{"$f":"+IF(D870=B870,0,E870)","v":0},"Gestión",null,null,{"$f":"$M$665","v":"No Aplica"},{"$f":"IF(K870=\"Catastrófico\",5,IF(K870=\"Mayor\",4,IF(K870=\"Moderado\",3,IF(K870=\"Menor\",2,IF(K870=\"Insignificante\",1,0)))))","v":0}]
[null,"Detectivo","Control 3",{"$f":"+AG141","v":"No Aplica"},{"$f":"+AJ142","v":0},{"$f":"+IF(D871=B870,E871,0)","v":0},{"$f":"+IF(D871=B870,0,E871)","v":0},"Riesgo Residual"]
[null,"Correctivo","Control 4",{"$f":"+AL141","v":"No Aplica"},{"$f":"+AO142","v":0},{"$f":"+IF(D872=B870,E872,0)","v":0},{"$f":"+IF(D872=B870,0,E872)","v":0},"Corrupción",{"$f":"IF(J872=5,\"Casi seguro\",IF(J872=4,\"Probable\",IF(J872=3,\"Posible\",IF(J872=2,\"Improbable\",IF(J872=1,\"Rara vez\",0)))))","v":"Rara vez"},{"$f":"+IF(F875>0,J869-F874,1)","v":1},{"$f":"IF(L872=5,\"Catastrófico\",IF(L872=4,\"Mayor\",\"Moderado\"))","v":"Moderado"},{"$f":"+IF(G875>0,G875,1)","v":3}]
[null,"No Aplica","Mejor evaluado ",null,null,{"$f":"MAX(F869:F872)","v":0},{"$f":"MAX(G869:G872)","v":0},"Gestión",null,null,{"$f":"IF(L873=5,\"Catastrófico\",IF(L873=4,\"Mayor\",IF(L873=3,\"Moderado\",IF(L873=2,\"Menor\",IF(L873=1,\"Insignificante\",0)))))","v":"Insignificante"},{"$f":"+IF(G876>0,G876,1)","v":1}]
[null,null,"Total posiciones a desplazarse",null,null,{"$f":"+IF(F873>75,2,IF(AND(F873>50,F873<76),1,0))","v":0},{"$f":"+IF(G873>75,2,IF(AND(G873>50,G873<76),1,0))","v":0},{"$f":"+F874+G874","v":0}]
[null,null,"Nueva zona Corrupción",null,null,{"$f":"+J869-F874","v":0},{"$f":"+L869-G874","v":3}]
[null,null,"Nueva zona Gestión",null,null,null,{"$f":"+L870-G874","v":0}]
[]
[null,"Controles",null,"Riesgo 10",null,null,null,"Tipo Riesgo","Probabilidad",null,"Impacto"]
[null,"Naturaleza del Control","Controles diligenciados","Tipo","Calificación ","Disminuye probabilidad","Disminuye impacto","Riesgo Inherente"]
[null,null,"Control 1",{"$f":"+W159","v":"No Aplica"},{"$f":"+Z160","v":0},{"$f":"+IF(D880=B881,E880,0)","v":0},{"$f":"+IF(D880=B881,0,E880)","v":0},"Corrupción",{"$f":"+N640","v":"No Aplica"},{"$f":"N641","v":0},{"$f":"$N$652","v":"Moderado"},{"$f":"IF(K880=\"Catastrófico\",5,IF(K880=\"Mayor\",4,IF(K880=\"Moderado\",3,IF(K880=\"Menor\",2,IF(K880=\"Insignificante\",1,0)))))","v":3}]
[null,"Preventivo","Control 2",{"$f":"+AB159","v":"No Aplica"},{"$f":"+AE160","v":0},{"$f":"+IF(D881=B881,E881,0)","v":0},{"$f":"+IF(D881=B881,0,E881)","v":0},"Gestión",null,null,{"$f":"$N$665","v":"No Aplica"},{"$f":"IF(K881=\"Catastrófico\",5,IF(K881=\"Mayor\",4,IF(K881=\"Moderado\",3,IF(K881=\"Menor\",2,IF(K881=\"Insignificante\",1,0)))))","v":0}]
[null,"Detectivo","Control 3",{"$f":"+AG159","v":"No Aplica"},{"$f":"+AJ160","v":0},{"$f":"+IF(D882=B881,E882,0)","v":0},{"$f":"+IF(D882=B881,0,E882)","v":0},"Riesgo Residual"]
[null,"Correctivo","Control 4",{"$f":"+AL159","v":"No Aplica"},{"$f":"+AO160","v":0},{"$f":"+IF(D883=B881,E883,0)","v":0},{"$f":"+IF(D883=B881,0,E883)","v":0},"Corrupción",{"$f":"IF(J883=5,\"Casi seguro\",IF(J883=4,\"Probable\",IF(J883=3,\"Posible\",IF(J883=2,\"Improbable\",IF(J883=1,\"Rara vez\",0)))))","v":"Rara vez"},{"$f":"+IF(F886>0,J880-F885,1)","v":1},{"$f":"IF(L883=5,\"Catastrófico\",IF(L883=4,\"Mayor\",\"Moderado\"))","v":"Moderado"},{"$f":"+IF(G886>0,G886,1)","v":3}]
[null,"No Aplica","Mejor evaluado ",null,null,{"$f":"MAX(F880:F883)","v":0},{"$f":"MAX(G880:G883)","v":0},"Gestión",null,null,{"$f":"IF(L884=5,\"Catastrófico\",IF(L884=4,\"Mayor\",IF(L884=3,\"Moderado\",IF(L884=2,\"Menor\",IF(L884=1,\"Insignificante\",0)))))","v":"Insignificante"},{"$f":"+IF(G887>0,G887,1)","v":1}]
[null,null,"Total posiciones a desplazarse",null,null,{"$f":"+IF(F884>75,2,IF(AND(F884>50,F884<76),1,0))","v":0},{"$f":"+IF(G884>75,2,IF(AND(G884>50,G884<76),1,0))","v":0},{"$f":"+F885+G885","v":0}]
[null,null,"Nueva zona Corrupción",null,null,{"$f":"+J880-F885","v":0},{"$f":"+L880-G885","v":3}]
[null,null,"Nueva zona Gestión",null,null,null,{"$f":"+L881-G885","v":0}]
[]
[]
[null,"RIESGO RESIDUAL EN GESTIÓN",null,null,{"$f":"+E643","v":"Rara vez"},{"$f":"+F643","v":"Posible"},{"$error":"#REF!"},"Rara vez","Probable","Rara vez","Rara vez","Rara vez","Rara vez","Rara vez"]
[null,"PROBABILIDAD","IMPACTO","ZR I",{"$f":"+E670","v":"Insignificante"},{"$f":"+F670","v":"Catastrófico"},{"$error":"#REF!"},"Insignificante","Mayor","Insignificante","Insignificante","Insignificante","Insignificante","Insignificante"]
[null,"Rara Vez","Insignificante",1,{"$f":"+IF(AND($B892=E$890,$C892=E$891),$D892,0)","v":1},{"$f":"+IF(AND($B892=F$890,$C892=F$891),$D892,0)","v":0},{"$error":"#REF!"},1,0,1,1,1,1,1]
[null,"Rara Vez","Menor",1,{"$f":"+IF(AND($B893=E$890,$C893=E$891),$D893,0)","v":0},0,{"$error":"#REF!"},0,0,0,0,0,0,0]
[null,"Rara Vez","Moderado",2,0,0,{"$error":"#REF!"},0,0,0,0,0,0,0]
[null,"Rara Vez","Mayor",3,0,0,{"$error":"#REF!"},0,0,0,0,0,0,0]
[null,"Rara Vez","Catastrófico",3,0,0,{"$error":"#REF!"},0,0,0,0,0,0,0]
[null,"Improbable","Insignificante",1,0,0,{"$error":"#REF!"},0,0,0,0,0,0,0]
[null,"Improbable","Menor",1,0,0,{"$error":"#REF!"},0,0,0,0,0,0,0]
[null,"Improbable","Moderado",2,0,0,{"$error":"#REF!"},0,0,0,0,0,0,0]
[null,"Improbable","Mayor",3,0,0,{"$error":"#REF!"},0,0,0,0,0,0,0]
[null,"Improbable","Catastrófico",4,0,0,{"$error":"#REF!"},0,0,0,0,0,0,0]
[null,"Posible","Insignificante",1,0,0,{"$error":"#REF!"},0,0,0,0,0,0,0]
[null,"Posible","Menor",2,0,0,{"$error":"#REF!"},0,0,0,0,0,0,0]
[null,"Posible","Moderado",3,0,0,{"$error":"#REF!"},0,0,0,0,0,0,0]
[null,"Posible","Mayor",4,0,0,{"$error":"#REF!"},0,0,0,0,0,0,0]
[null,"Posible","Catastrófico",4,0,4,{"$error":"#REF!"},0,0,0,0,0,0,0]
[null,"Probable","Insignificante",2,0,0,{"$error":"#REF!"},0,0,0,0,0,0,0]
[null,"Probable","Menor",3,0,0,{"$error":"#REF!"},0,0,0,0,0,0,0]
[null,"Probable","Moderado",3,0,0,{"$error":"#REF!"},0,0,0,0,0,0,0]
[null,"Probable","Mayor",4,0,0,{"$error":"#REF!"},0,4,0,0,0,0,0]
[null,"Probable","Catastrófico",4,0,0,{"$error":"#REF!"},0,0,0,0,0,0,0]
[null,"Casi Seguro","Insignificante",3,0,0,{"$error":"#REF!"},0,0,0,0,0,0,0]
[null,"Casi Seguro","Menor",3,0,0,{"$error":"#REF!"},0,0,0,0,0,0,0]
[null,"Casi Seguro","Moderado",4,0,0,{"$error":"#REF!"},0,0,0,0,0,0,0]
[null,"Casi Seguro","Mayor",4,0,0,{"$error":"#REF!"},0,0,0,0,0,0,0]
[null,"Casi Seguro","Catastrófico",4,0,0,{"$error":"#REF!"},0,0,0,0,0,0,0]